Workbook

Sheet ввод
A1: PTVERENE | B1: 1. Вставить почасовой профиль электроэнергии в закрашенные ячейки
A2: =мощность!B1 -> февраль | B2: 2. Перейти в лист "Расчёт"
A3: Дата\Часы | B3: Фактический почасовой объем электрической энергии, кВтч | Z3: Итого
B4: 1 | C4: 2 | D4: 3 | E4: 4 | F4: 5 | G4: 6 | H4: 7 | I4: 8 | J4: 9 | K4: 10 | L4: 11 | M4: 12 | N4: 13 | O4: 14 | P4: 15 | Q4: 16 | R4: 17 | S4: 18 | T4: 19 | U4: 20 | V4: 21 | W4: 22 | X4: 23 | Y4: 24
A5: =мощность!AA4 -> 01.02.2026 | Z5: =SUM(B5:Y5) -> 0
A6: =мощность!AA5 -> 02.02.2026 | Z6: =SUM(B6:Y6) -> 0
A7: =мощность!AA6 -> 03.02.2026 | Z7: 0
A8: =мощность!AA7 -> 04.02.2026 | Z8: 0
A9: =мощность!AA8 -> 05.02.2026 | Z9: 0
A10: =мощность!AA9 -> 06.02.2026 | Z10: 0
A11: =мощность!AA10 -> 07.02.2026 | Z11: 0
A12: =мощность!AA11 -> 08.02.2026 | Z12: 0
A13: =мощность!AA12 -> 09.02.2026 | Z13: 0
A14: =мощность!AA13 -> 10.02.2026 | Z14: 0
A15: =мощность!AA14 -> 11.02.2026 | Z15: 0
A16: =мощность!AA15 -> 12.02.2026 | Z16: 0
A17: =мощность!AA16 -> 13.02.2026 | Z17: 0
A18: =мощность!AA17 -> 14.02.2026 | Z18: 0
A19: =мощность!AA18 -> 15.02.2026 | Z19: 0
A20: =мощность!AA19 -> 16.02.2026 | Z20: 0
A21: =мощность!AA20 -> 17.02.2026 | Z21: 0
A22: =мощность!AA21 -> 18.02.2026 | Z22: 0
A23: =мощность!AA22 -> 19.02.2026 | Z23: 0
A24: =мощность!AA23 -> 20.02.2026 | Z24: 0
A25: =мощность!AA24 -> 21.02.2026 | Z25: 0
A26: =мощность!AA25 -> 22.02.2026 | Z26: 0
A27: =мощность!AA26 -> 23.02.2026 | Z27: 0
A28: =мощность!AA27 -> 24.02.2026 | Z28: 0
A29: =мощность!AA28 -> 25.02.2026 | Z29: 0
A30: =мощность!AA29 -> 26.02.2026 | Z30: 0
A31: =мощность!AA30 -> 27.02.2026 | Z31: 0
A32: =мощность!AA31 -> 28.02.2026 | Z32: 0
A33: =мощность!AA32 -> 01.03.2026 | Z33: 0
A34: =мощность!AA33 -> 02.03.2026 | Z34: 0
A35: =мощность!AA34 -> 03.03.2026 | Z35: 0
A36: ИТОГО | B36: =SUM(B5:B35) -> 0 | C36: =SUM(C5:C35) -> 0 | D36: 0 | E36: 0 | F36: 0 | G36: 0 | H36: 0 | I36: 0 | J36: 0 | K36: 0 | L36: 0 | M36: 0 | N36: 0 | O36: 0 | P36: 0 | Q36: 0 | R36: 0 | S36: 0 | T36: 0 | U36: 0 | V36: 0 | W36: =SUM(W5:W35) -> 0 | X36: 0 | Y36: 0 | Z36: =SUM(Z5:Z35) -> 0

Sheet расчет
A1: Расчёт объемов и стоимости электроэнергии (мощности) выполнен за | G1: =ввод!A2 -> февраль
A3: 1. Сформирован округленный фактический почасовой объем электрической энергии, кВтч
A4: Дата\Часы | B4: 1 | C4: 2 | D4: 3 | E4: 4 | F4: 5 | G4: 6 | H4: 7 | I4: 8 | J4: 9 | K4: 10 | L4: 11 | M4: 12 | N4: 13 | O4: 14 | P4: 15 | Q4: 16 | R4: 17 | S4: 18 | T4: 19 | U4: 20 | V4: 21 | W4: 22 | X4: 23 | Y4: 24 | Z4: Итого
A5: =мощность!AA4 -> 01.02.2026 | B5: =мощность!B4 -> 0 | C5: =мощность!C4 -> 0 | D5: =мощность!D4 -> 0 | E5: =мощность!E4 -> 0 | F5: =мощность!F4 -> 0 | G5: =мощность!G4 -> 0 | H5: =мощность!H4 -> 0 | I5: =мощность!I4 -> 0 | J5: =мощность!J4 -> 0 | K5: =мощность!K4 -> 0 | L5: =мощность!L4 -> 0 | M5: =мощность!M4 -> 0 | N5: =мощность!N4 -> 0 | O5: =мощность!O4 -> 0 | P5: =мощность!P4 -> 0 | Q5: =мощность!Q4 -> 0 | R5: =мощность!R4 -> 0 | S5: =мощность!S4 -> 0 | T5: =мощность!T4 -> 0 | U5: =мощность!U4 -> 0 | V5: =мощность!V4 -> 0 | W5: =мощность!W4 -> 0 | X5: =мощность!X4 -> 0 | Y5: =мощность!Y4 -> 0 | Z5: =SUM(B5:Y5) -> 0
A6: =мощность!AA5 -> 02.02.2026 | B6: =мощность!B5 -> 0 | C6: =мощность!C5 -> 0 | D6: =мощность!D5 -> 0 | E6: =мощность!E5 -> 0 | F6: =мощность!F5 -> 0 | G6: =мощность!G5 -> 0 | H6: =мощность!H5 -> 0 | I6: =мощность!I5 -> 0 | J6: =мощность!J5 -> 0 | K6: =мощность!K5 -> 0 | L6: =мощность!L5 -> 0 | M6: =мощность!M5 -> 0 | N6: =мощность!N5 -> 0 | O6: =мощность!O5 -> 0 | P6: =мощность!P5 -> 0 | Q6: =мощность!Q5 -> 0 | R6: =мощность!R5 -> 0 | S6: =мощность!S5 -> 0 | T6: =мощность!T5 -> 0 | U6: =мощность!U5 -> 0 | V6: =мощность!V5 -> 0 | W6: =мощность!W5 -> 0 | X6: =мощность!X5 -> 0 | Y6: =мощность!Y5 -> 0 | Z6: =SUM(B6:Y6) -> 0
A7: =мощность!AA6 -> 03.02.2026 | B7: =мощность!B6 -> 0 | C7: =мощность!C6 -> 0 | D7: =мощность!D6 -> 0 | E7: =мощность!E6 -> 0 | F7: =мощность!F6 -> 0 | G7: =мощность!G6 -> 0 | H7: =мощность!H6 -> 0 | I7: =мощность!I6 -> 0 | J7: =мощность!J6 -> 0 | K7: =мощность!K6 -> 0 | L7: =мощность!L6 -> 0 | M7: =мощность!M6 -> 0 | N7: =мощность!N6 -> 0 | O7: =мощность!O6 -> 0 | P7: =мощность!P6 -> 0 | Q7: =мощность!Q6 -> 0 | R7: =мощность!R6 -> 0 | S7: =мощность!S6 -> 0 | T7: =мощность!T6 -> 0 | U7: =мощность!U6 -> 0 | V7: =мощность!V6 -> 0 | W7: =мощность!W6 -> 0 | X7: =мощность!X6 -> 0 | Y7: =мощность!Y6 -> 0 | Z7: 0
A8: =мощность!AA7 -> 04.02.2026 | B8: =мощность!B7 -> 0 | C8: =мощность!C7 -> 0 | D8: =мощность!D7 -> 0 | E8: =мощность!E7 -> 0 | F8: =мощность!F7 -> 0 | G8: =мощность!G7 -> 0 | H8: =мощность!H7 -> 0 | I8: =мощность!I7 -> 0 | J8: =мощность!J7 -> 0 | K8: =мощность!K7 -> 0 | L8: =мощность!L7 -> 0 | M8: =мощность!M7 -> 0 | N8: =мощность!N7 -> 0 | O8: =мощность!O7 -> 0 | P8: =мощность!P7 -> 0 | Q8: =мощность!Q7 -> 0 | R8: =мощность!R7 -> 0 | S8: =мощность!S7 -> 0 | T8: =мощность!T7 -> 0 | U8: =мощность!U7 -> 0 | V8: =мощность!V7 -> 0 | W8: =мощность!W7 -> 0 | X8: =мощность!X7 -> 0 | Y8: =мощность!Y7 -> 0 | Z8: 0
A9: =мощность!AA8 -> 05.02.2026 | B9: =мощность!B8 -> 0 | C9: =мощность!C8 -> 0 | D9: =мощность!D8 -> 0 | E9: =мощность!E8 -> 0 | F9: =мощность!F8 -> 0 | G9: =мощность!G8 -> 0 | H9: =мощность!H8 -> 0 | I9: =мощность!I8 -> 0 | J9: =мощность!J8 -> 0 | K9: =мощность!K8 -> 0 | L9: =мощность!L8 -> 0 | M9: =мощность!M8 -> 0 | N9: =мощность!N8 -> 0 | O9: =мощность!O8 -> 0 | P9: =мощность!P8 -> 0 | Q9: =мощность!Q8 -> 0 | R9: =мощность!R8 -> 0 | S9: =мощность!S8 -> 0 | T9: =мощность!T8 -> 0 | U9: =мощность!U8 -> 0 | V9: =мощность!V8 -> 0 | W9: =мощность!W8 -> 0 | X9: =мощность!X8 -> 0 | Y9: =мощность!Y8 -> 0 | Z9: 0
A10: =мощность!AA9 -> 06.02.2026 | B10: =мощность!B9 -> 0 | C10: =мощность!C9 -> 0 | D10: =мощность!D9 -> 0 | E10: =мощность!E9 -> 0 | F10: =мощность!F9 -> 0 | G10: =мощность!G9 -> 0 | H10: =мощность!H9 -> 0 | I10: =мощность!I9 -> 0 | J10: =мощность!J9 -> 0 | K10: =мощность!K9 -> 0 | L10: =мощность!L9 -> 0 | M10: =мощность!M9 -> 0 | N10: =мощность!N9 -> 0 | O10: =мощность!O9 -> 0 | P10: =мощность!P9 -> 0 | Q10: =мощность!Q9 -> 0 | R10: =мощность!R9 -> 0 | S10: =мощность!S9 -> 0 | T10: =мощность!T9 -> 0 | U10: =мощность!U9 -> 0 | V10: =мощность!V9 -> 0 | W10: =мощность!W9 -> 0 | X10: =мощность!X9 -> 0 | Y10: =мощность!Y9 -> 0 | Z10: 0
A11: =мощность!AA10 -> 07.02.2026 | B11: =мощность!B10 -> 0 | C11: =мощность!C10 -> 0 | D11: =мощность!D10 -> 0 | E11: =мощность!E10 -> 0 | F11: =мощность!F10 -> 0 | G11: =мощность!G10 -> 0 | H11: =мощность!H10 -> 0 | I11: =мощность!I10 -> 0 | J11: =мощность!J10 -> 0 | K11: =мощность!K10 -> 0 | L11: =мощность!L10 -> 0 | M11: =мощность!M10 -> 0 | N11: =мощность!N10 -> 0 | O11: =мощность!O10 -> 0 | P11: =мощность!P10 -> 0 | Q11: =мощность!Q10 -> 0 | R11: =мощность!R10 -> 0 | S11: =мощность!S10 -> 0 | T11: =мощность!T10 -> 0 | U11: =мощность!U10 -> 0 | V11: =мощность!V10 -> 0 | W11: =мощность!W10 -> 0 | X11: =мощность!X10 -> 0 | Y11: =мощность!Y10 -> 0 | Z11: 0
A12: =мощность!AA11 -> 08.02.2026 | B12: =мощность!B11 -> 0 | C12: =мощность!C11 -> 0 | D12: =мощность!D11 -> 0 | E12: =мощность!E11 -> 0 | F12: =мощность!F11 -> 0 | G12: =мощность!G11 -> 0 | H12: =мощность!H11 -> 0 | I12: =мощность!I11 -> 0 | J12: =мощность!J11 -> 0 | K12: =мощность!K11 -> 0 | L12: =мощность!L11 -> 0 | M12: =мощность!M11 -> 0 | N12: =мощность!N11 -> 0 | O12: =мощность!O11 -> 0 | P12: =мощность!P11 -> 0 | Q12: =мощность!Q11 -> 0 | R12: =мощность!R11 -> 0 | S12: =мощность!S11 -> 0 | T12: =мощность!T11 -> 0 | U12: =мощность!U11 -> 0 | V12: =мощность!V11 -> 0 | W12: =мощность!W11 -> 0 | X12: =мощность!X11 -> 0 | Y12: =мощность!Y11 -> 0 | Z12: 0
A13: =мощность!AA12 -> 09.02.2026 | B13: =мощность!B12 -> 0 | C13: =мощность!C12 -> 0 | D13: =мощность!D12 -> 0 | E13: =мощность!E12 -> 0 | F13: =мощность!F12 -> 0 | G13: =мощность!G12 -> 0 | H13: =мощность!H12 -> 0 | I13: =мощность!I12 -> 0 | J13: =мощность!J12 -> 0 | K13: =мощность!K12 -> 0 | L13: =мощность!L12 -> 0 | M13: =мощность!M12 -> 0 | N13: =мощность!N12 -> 0 | O13: =мощность!O12 -> 0 | P13: =мощность!P12 -> 0 | Q13: =мощность!Q12 -> 0 | R13: =мощность!R12 -> 0 | S13: =мощность!S12 -> 0 | T13: =мощность!T12 -> 0 | U13: =мощность!U12 -> 0 | V13: =мощность!V12 -> 0 | W13: =мощность!W12 -> 0 | X13: =мощность!X12 -> 0 | Y13: =мощность!Y12 -> 0 | Z13: 0
A14: =мощность!AA13 -> 10.02.2026 | B14: =мощность!B13 -> 0 | C14: =мощность!C13 -> 0 | D14: =мощность!D13 -> 0 | E14: =мощность!E13 -> 0 | F14: =мощность!F13 -> 0 | G14: =мощность!G13 -> 0 | H14: =мощность!H13 -> 0 | I14: =мощность!I13 -> 0 | J14: =мощность!J13 -> 0 | K14: =мощность!K13 -> 0 | L14: =мощность!L13 -> 0 | M14: =мощность!M13 -> 0 | N14: =мощность!N13 -> 0 | O14: =мощность!O13 -> 0 | P14: =мощность!P13 -> 0 | Q14: =мощность!Q13 -> 0 | R14: =мощность!R13 -> 0 | S14: =мощность!S13 -> 0 | T14: =мощность!T13 -> 0 | U14: =мощность!U13 -> 0 | V14: =мощность!V13 -> 0 | W14: =мощность!W13 -> 0 | X14: =мощность!X13 -> 0 | Y14: =мощность!Y13 -> 0 | Z14: 0
A15: =мощность!AA14 -> 11.02.2026 | B15: =мощность!B14 -> 0 | C15: =мощность!C14 -> 0 | D15: =мощность!D14 -> 0 | E15: =мощность!E14 -> 0 | F15: =мощность!F14 -> 0 | G15: =мощность!G14 -> 0 | H15: =мощность!H14 -> 0 | I15: =мощность!I14 -> 0 | J15: =мощность!J14 -> 0 | K15: =мощность!K14 -> 0 | L15: =мощность!L14 -> 0 | M15: =мощность!M14 -> 0 | N15: =мощность!N14 -> 0 | O15: =мощность!O14 -> 0 | P15: =мощность!P14 -> 0 | Q15: =мощность!Q14 -> 0 | R15: =мощность!R14 -> 0 | S15: =мощность!S14 -> 0 | T15: =мощность!T14 -> 0 | U15: =мощность!U14 -> 0 | V15: =мощность!V14 -> 0 | W15: =мощность!W14 -> 0 | X15: =мощность!X14 -> 0 | Y15: =мощность!Y14 -> 0 | Z15: 0
A16: =мощность!AA15 -> 12.02.2026 | B16: =мощность!B15 -> 0 | C16: =мощность!C15 -> 0 | D16: =мощность!D15 -> 0 | E16: =мощность!E15 -> 0 | F16: =мощность!F15 -> 0 | G16: =мощность!G15 -> 0 | H16: =мощность!H15 -> 0 | I16: =мощность!I15 -> 0 | J16: =мощность!J15 -> 0 | K16: =мощность!K15 -> 0 | L16: =мощность!L15 -> 0 | M16: =мощность!M15 -> 0 | N16: =мощность!N15 -> 0 | O16: =мощность!O15 -> 0 | P16: =мощность!P15 -> 0 | Q16: =мощность!Q15 -> 0 | R16: =мощность!R15 -> 0 | S16: =мощность!S15 -> 0 | T16: =мощность!T15 -> 0 | U16: =мощность!U15 -> 0 | V16: =мощность!V15 -> 0 | W16: =мощность!W15 -> 0 | X16: =мощность!X15 -> 0 | Y16: =мощность!Y15 -> 0 | Z16: 0
A17: =мощность!AA16 -> 13.02.2026 | B17: =мощность!B16 -> 0 | C17: =мощность!C16 -> 0 | D17: =мощность!D16 -> 0 | E17: =мощность!E16 -> 0 | F17: =мощность!F16 -> 0 | G17: =мощность!G16 -> 0 | H17: =мощность!H16 -> 0 | I17: =мощность!I16 -> 0 | J17: =мощность!J16 -> 0 | K17: =мощность!K16 -> 0 | L17: =мощность!L16 -> 0 | M17: =мощность!M16 -> 0 | N17: =мощность!N16 -> 0 | O17: =мощность!O16 -> 0 | P17: =мощность!P16 -> 0 | Q17: =мощность!Q16 -> 0 | R17: =мощность!R16 -> 0 | S17: =мощность!S16 -> 0 | T17: =мощность!T16 -> 0 | U17: =мощность!U16 -> 0 | V17: =мощность!V16 -> 0 | W17: =мощность!W16 -> 0 | X17: =мощность!X16 -> 0 | Y17: =мощность!Y16 -> 0 | Z17: 0
A18: =мощность!AA17 -> 14.02.2026 | B18: =мощность!B17 -> 0 | C18: =мощность!C17 -> 0 | D18: =мощность!D17 -> 0 | E18: =мощность!E17 -> 0 | F18: =мощность!F17 -> 0 | G18: =мощность!G17 -> 0 | H18: =мощность!H17 -> 0 | I18: =мощность!I17 -> 0 | J18: =мощность!J17 -> 0 | K18: =мощность!K17 -> 0 | L18: =мощность!L17 -> 0 | M18: =мощность!M17 -> 0 | N18: =мощность!N17 -> 0 | O18: =мощность!O17 -> 0 | P18: =мощность!P17 -> 0 | Q18: =мощность!Q17 -> 0 | R18: =мощность!R17 -> 0 | S18: =мощность!S17 -> 0 | T18: =мощность!T17 -> 0 | U18: =мощность!U17 -> 0 | V18: =мощность!V17 -> 0 | W18: =мощность!W17 -> 0 | X18: =мощность!X17 -> 0 | Y18: =мощность!Y17 -> 0 | Z18: 0
A19: =мощность!AA18 -> 15.02.2026 | B19: =мощность!B18 -> 0 | C19: =мощность!C18 -> 0 | D19: =мощность!D18 -> 0 | E19: =мощность!E18 -> 0 | F19: =мощность!F18 -> 0 | G19: =мощность!G18 -> 0 | H19: =мощность!H18 -> 0 | I19: =мощность!I18 -> 0 | J19: =мощность!J18 -> 0 | K19: =мощность!K18 -> 0 | L19: =мощность!L18 -> 0 | M19: =мощность!M18 -> 0 | N19: =мощность!N18 -> 0 | O19: =мощность!O18 -> 0 | P19: =мощность!P18 -> 0 | Q19: =мощность!Q18 -> 0 | R19: =мощность!R18 -> 0 | S19: =мощность!S18 -> 0 | T19: =мощность!T18 -> 0 | U19: =мощность!U18 -> 0 | V19: =мощность!V18 -> 0 | W19: =мощность!W18 -> 0 | X19: =мощность!X18 -> 0 | Y19: =мощность!Y18 -> 0 | Z19: 0
A20: =мощность!AA19 -> 16.02.2026 | B20: =мощность!B19 -> 0 | C20: =мощность!C19 -> 0 | D20: =мощность!D19 -> 0 | E20: =мощность!E19 -> 0 | F20: =мощность!F19 -> 0 | G20: =мощность!G19 -> 0 | H20: =мощность!H19 -> 0 | I20: =мощность!I19 -> 0 | J20: =мощность!J19 -> 0 | K20: =мощность!K19 -> 0 | L20: =мощность!L19 -> 0 | M20: =мощность!M19 -> 0 | N20: =мощность!N19 -> 0 | O20: =мощность!O19 -> 0 | P20: =мощность!P19 -> 0 | Q20: =мощность!Q19 -> 0 | R20: =мощность!R19 -> 0 | S20: =мощность!S19 -> 0 | T20: =мощность!T19 -> 0 | U20: =мощность!U19 -> 0 | V20: =мощность!V19 -> 0 | W20: =мощность!W19 -> 0 | X20: =мощность!X19 -> 0 | Y20: =мощность!Y19 -> 0 | Z20: 0
A21: =мощность!AA20 -> 17.02.2026 | B21: =мощность!B20 -> 0 | C21: =мощность!C20 -> 0 | D21: =мощность!D20 -> 0 | E21: =мощность!E20 -> 0 | F21: =мощность!F20 -> 0 | G21: =мощность!G20 -> 0 | H21: =мощность!H20 -> 0 | I21: =мощность!I20 -> 0 | J21: =мощность!J20 -> 0 | K21: =мощность!K20 -> 0 | L21: =мощность!L20 -> 0 | M21: =мощность!M20 -> 0 | N21: =мощность!N20 -> 0 | O21: =мощность!O20 -> 0 | P21: =мощность!P20 -> 0 | Q21: =мощность!Q20 -> 0 | R21: =мощность!R20 -> 0 | S21: =мощность!S20 -> 0 | T21: =мощность!T20 -> 0 | U21: =мощность!U20 -> 0 | V21: =мощность!V20 -> 0 | W21: =мощность!W20 -> 0 | X21: =мощность!X20 -> 0 | Y21: =мощность!Y20 -> 0 | Z21: 0
A22: =мощность!AA21 -> 18.02.2026 | B22: =мощность!B21 -> 0 | C22: =мощность!C21 -> 0 | D22: =мощность!D21 -> 0 | E22: =мощность!E21 -> 0 | F22: =мощность!F21 -> 0 | G22: =мощность!G21 -> 0 | H22: =мощность!H21 -> 0 | I22: =мощность!I21 -> 0 | J22: =мощность!J21 -> 0 | K22: =мощность!K21 -> 0 | L22: =мощность!L21 -> 0 | M22: =мощность!M21 -> 0 | N22: =мощность!N21 -> 0 | O22: =мощность!O21 -> 0 | P22: =мощность!P21 -> 0 | Q22: =мощность!Q21 -> 0 | R22: =мощность!R21 -> 0 | S22: =мощность!S21 -> 0 | T22: =мощность!T21 -> 0 | U22: =мощность!U21 -> 0 | V22: =мощность!V21 -> 0 | W22: =мощность!W21 -> 0 | X22: =мощность!X21 -> 0 | Y22: =мощность!Y21 -> 0 | Z22: 0
A23: =мощность!AA22 -> 19.02.2026 | B23: =мощность!B22 -> 0 | C23: =мощность!C22 -> 0 | D23: =мощность!D22 -> 0 | E23: =мощность!E22 -> 0 | F23: =мощность!F22 -> 0 | G23: =мощность!G22 -> 0 | H23: =мощность!H22 -> 0 | I23: =мощность!I22 -> 0 | J23: =мощность!J22 -> 0 | K23: =мощность!K22 -> 0 | L23: =мощность!L22 -> 0 | M23: =мощность!M22 -> 0 | N23: =мощность!N22 -> 0 | O23: =мощность!O22 -> 0 | P23: =мощность!P22 -> 0 | Q23: =мощность!Q22 -> 0 | R23: =мощность!R22 -> 0 | S23: =мощность!S22 -> 0 | T23: =мощность!T22 -> 0 | U23: =мощность!U22 -> 0 | V23: =мощность!V22 -> 0 | W23: =мощность!W22 -> 0 | X23: =мощность!X22 -> 0 | Y23: =мощность!Y22 -> 0 | Z23: 0
A24: =мощность!AA23 -> 20.02.2026 | B24: =мощность!B23 -> 0 | C24: =мощность!C23 -> 0 | D24: =мощность!D23 -> 0 | E24: =мощность!E23 -> 0 | F24: =мощность!F23 -> 0 | G24: =мощность!G23 -> 0 | H24: =мощность!H23 -> 0 | I24: =мощность!I23 -> 0 | J24: =мощность!J23 -> 0 | K24: =мощность!K23 -> 0 | L24: =мощность!L23 -> 0 | M24: =мощность!M23 -> 0 | N24: =мощность!N23 -> 0 | O24: =мощность!O23 -> 0 | P24: =мощность!P23 -> 0 | Q24: =мощность!Q23 -> 0 | R24: =мощность!R23 -> 0 | S24: =мощность!S23 -> 0 | T24: =мощность!T23 -> 0 | U24: =мощность!U23 -> 0 | V24: =мощность!V23 -> 0 | W24: =мощность!W23 -> 0 | X24: =мощность!X23 -> 0 | Y24: =мощность!Y23 -> 0 | Z24: 0
A25: =мощность!AA24 -> 21.02.2026 | B25: =мощность!B24 -> 0 | C25: =мощность!C24 -> 0 | D25: =мощность!D24 -> 0 | E25: =мощность!E24 -> 0 | F25: =мощность!F24 -> 0 | G25: =мощность!G24 -> 0 | H25: =мощность!H24 -> 0 | I25: =мощность!I24 -> 0 | J25: =мощность!J24 -> 0 | K25: =мощность!K24 -> 0 | L25: =мощность!L24 -> 0 | M25: =мощность!M24 -> 0 | N25: =мощность!N24 -> 0 | O25: =мощность!O24 -> 0 | P25: =мощность!P24 -> 0 | Q25: =мощность!Q24 -> 0 | R25: =мощность!R24 -> 0 | S25: =мощность!S24 -> 0 | T25: =мощность!T24 -> 0 | U25: =мощность!U24 -> 0 | V25: =мощность!V24 -> 0 | W25: =мощность!W24 -> 0 | X25: =мощность!X24 -> 0 | Y25: =мощность!Y24 -> 0 | Z25: 0
A26: =мощность!AA25 -> 22.02.2026 | B26: =мощность!B25 -> 0 | C26: =мощность!C25 -> 0 | D26: =мощность!D25 -> 0 | E26: =мощность!E25 -> 0 | F26: =мощность!F25 -> 0 | G26: =мощность!G25 -> 0 | H26: =мощность!H25 -> 0 | I26: =мощность!I25 -> 0 | J26: =мощность!J25 -> 0 | K26: =мощность!K25 -> 0 | L26: =мощность!L25 -> 0 | M26: =мощность!M25 -> 0 | N26: =мощность!N25 -> 0 | O26: =мощность!O25 -> 0 | P26: =мощность!P25 -> 0 | Q26: =мощность!Q25 -> 0 | R26: =мощность!R25 -> 0 | S26: =мощность!S25 -> 0 | T26: =мощность!T25 -> 0 | U26: =мощность!U25 -> 0 | V26: =мощность!V25 -> 0 | W26: =мощность!W25 -> 0 | X26: =мощность!X25 -> 0 | Y26: =мощность!Y25 -> 0 | Z26: 0
A27: =мощность!AA26 -> 23.02.2026 | B27: =мощность!B26 -> 0 | C27: =мощность!C26 -> 0 | D27: =мощность!D26 -> 0 | E27: =мощность!E26 -> 0 | F27: =мощность!F26 -> 0 | G27: =мощность!G26 -> 0 | H27: =мощность!H26 -> 0 | I27: =мощность!I26 -> 0 | J27: =мощность!J26 -> 0 | K27: =мощность!K26 -> 0 | L27: =мощность!L26 -> 0 | M27: =мощность!M26 -> 0 | N27: =мощность!N26 -> 0 | O27: =мощность!O26 -> 0 | P27: =мощность!P26 -> 0 | Q27: =мощность!Q26 -> 0 | R27: =мощность!R26 -> 0 | S27: =мощность!S26 -> 0 | T27: =мощность!T26 -> 0 | U27: =мощность!U26 -> 0 | V27: =мощность!V26 -> 0 | W27: =мощность!W26 -> 0 | X27: =мощность!X26 -> 0 | Y27: =мощность!Y26 -> 0 | Z27: 0
A28: =мощность!AA27 -> 24.02.2026 | B28: =мощность!B27 -> 0 | C28: =мощность!C27 -> 0 | D28: =мощность!D27 -> 0 | E28: =мощность!E27 -> 0 | F28: =мощность!F27 -> 0 | G28: =мощность!G27 -> 0 | H28: =мощность!H27 -> 0 | I28: =мощность!I27 -> 0 | J28: =мощность!J27 -> 0 | K28: =мощность!K27 -> 0 | L28: =мощность!L27 -> 0 | M28: =мощность!M27 -> 0 | N28: =мощность!N27 -> 0 | O28: =мощность!O27 -> 0 | P28: =мощность!P27 -> 0 | Q28: =мощность!Q27 -> 0 | R28: =мощность!R27 -> 0 | S28: =мощность!S27 -> 0 | T28: =мощность!T27 -> 0 | U28: =мощность!U27 -> 0 | V28: =мощность!V27 -> 0 | W28: =мощность!W27 -> 0 | X28: =мощность!X27 -> 0 | Y28: =мощность!Y27 -> 0 | Z28: 0
A29: =мощность!AA28 -> 25.02.2026 | B29: =мощность!B28 -> 0 | C29: =мощность!C28 -> 0 | D29: =мощность!D28 -> 0 | E29: =мощность!E28 -> 0 | F29: =мощность!F28 -> 0 | G29: =мощность!G28 -> 0 | H29: =мощность!H28 -> 0 | I29: =мощность!I28 -> 0 | J29: =мощность!J28 -> 0 | K29: =мощность!K28 -> 0 | L29: =мощность!L28 -> 0 | M29: =мощность!M28 -> 0 | N29: =мощность!N28 -> 0 | O29: =мощность!O28 -> 0 | P29: =мощность!P28 -> 0 | Q29: =мощность!Q28 -> 0 | R29: =мощность!R28 -> 0 | S29: =мощность!S28 -> 0 | T29: =мощность!T28 -> 0 | U29: =мощность!U28 -> 0 | V29: =мощность!V28 -> 0 | W29: =мощность!W28 -> 0 | X29: =мощность!X28 -> 0 | Y29: =мощность!Y28 -> 0 | Z29: 0
A30: =мощность!AA29 -> 26.02.2026 | B30: =мощность!B29 -> 0 | C30: =мощность!C29 -> 0 | D30: =мощность!D29 -> 0 | E30: =мощность!E29 -> 0 | F30: =мощность!F29 -> 0 | G30: =мощность!G29 -> 0 | H30: =мощность!H29 -> 0 | I30: =мощность!I29 -> 0 | J30: =мощность!J29 -> 0 | K30: =мощность!K29 -> 0 | L30: =мощность!L29 -> 0 | M30: =мощность!M29 -> 0 | N30: =мощность!N29 -> 0 | O30: =мощность!O29 -> 0 | P30: =мощность!P29 -> 0 | Q30: =мощность!Q29 -> 0 | R30: =мощность!R29 -> 0 | S30: =мощность!S29 -> 0 | T30: =мощность!T29 -> 0 | U30: =мощность!U29 -> 0 | V30: =мощность!V29 -> 0 | W30: =мощность!W29 -> 0 | X30: =мощность!X29 -> 0 | Y30: =мощность!Y29 -> 0 | Z30: 0
A31: =мощность!AA30 -> 27.02.2026 | B31: =мощность!B30 -> 0 | C31: =мощность!C30 -> 0 | D31: =мощность!D30 -> 0 | E31: =мощность!E30 -> 0 | F31: =мощность!F30 -> 0 | G31: =мощность!G30 -> 0 | H31: =мощность!H30 -> 0 | I31: =мощность!I30 -> 0 | J31: =мощность!J30 -> 0 | K31: =мощность!K30 -> 0 | L31: =мощность!L30 -> 0 | M31: =мощность!M30 -> 0 | N31: =мощность!N30 -> 0 | O31: =мощность!O30 -> 0 | P31: =мощность!P30 -> 0 | Q31: =мощность!Q30 -> 0 | R31: =мощность!R30 -> 0 | S31: =мощность!S30 -> 0 | T31: =мощность!T30 -> 0 | U31: =мощность!U30 -> 0 | V31: =мощность!V30 -> 0 | W31: =мощность!W30 -> 0 | X31: =мощность!X30 -> 0 | Y31: =мощность!Y30 -> 0 | Z31: 0
A32: =мощность!AA31 -> 28.02.2026 | B32: =мощность!B31 -> 0 | C32: =мощность!C31 -> 0 | D32: =мощность!D31 -> 0 | E32: =мощность!E31 -> 0 | F32: =мощность!F31 -> 0 | G32: =мощность!G31 -> 0 | H32: =мощность!H31 -> 0 | I32: =мощность!I31 -> 0 | J32: =мощность!J31 -> 0 | K32: =мощность!K31 -> 0 | L32: =мощность!L31 -> 0 | M32: =мощность!M31 -> 0 | N32: =мощность!N31 -> 0 | O32: =мощность!O31 -> 0 | P32: =мощность!P31 -> 0 | Q32: =мощность!Q31 -> 0 | R32: =мощность!R31 -> 0 | S32: =мощность!S31 -> 0 | T32: =мощность!T31 -> 0 | U32: =мощность!U31 -> 0 | V32: =мощность!V31 -> 0 | W32: =мощность!W31 -> 0 | X32: =мощность!X31 -> 0 | Y32: =мощность!Y31 -> 0 | Z32: 0
A33: =мощность!AA32 -> 01.03.2026 | B33: =мощность!B32 -> 0 | C33: =мощность!C32 -> 0 | D33: =мощность!D32 -> 0 | E33: =мощность!E32 -> 0 | F33: =мощность!F32 -> 0 | G33: =мощность!G32 -> 0 | H33: =мощность!H32 -> 0 | I33: =мощность!I32 -> 0 | J33: =мощность!J32 -> 0 | K33: =мощность!K32 -> 0 | L33: =мощность!L32 -> 0 | M33: =мощность!M32 -> 0 | N33: =мощность!N32 -> 0 | O33: =мощность!O32 -> 0 | P33: =мощность!P32 -> 0 | Q33: =мощность!Q32 -> 0 | R33: =мощность!R32 -> 0 | S33: =мощность!S32 -> 0 | T33: =мощность!T32 -> 0 | U33: =мощность!U32 -> 0 | V33: =мощность!V32 -> 0 | W33: =мощность!W32 -> 0 | X33: =мощность!X32 -> 0 | Y33: =мощность!Y32 -> 0 | Z33: 0
A34: =мощность!AA33 -> 02.03.2026 | B34: =мощность!B33 -> 0 | C34: =мощность!C33 -> 0 | D34: =мощность!D33 -> 0 | E34: =мощность!E33 -> 0 | F34: =мощность!F33 -> 0 | G34: =мощность!G33 -> 0 | H34: =мощность!H33 -> 0 | I34: =мощность!I33 -> 0 | J34: =мощность!J33 -> 0 | K34: =мощность!K33 -> 0 | L34: =мощность!L33 -> 0 | M34: =мощность!M33 -> 0 | N34: =мощность!N33 -> 0 | O34: =мощность!O33 -> 0 | P34: =мощность!P33 -> 0 | Q34: =мощность!Q33 -> 0 | R34: =мощность!R33 -> 0 | S34: =мощность!S33 -> 0 | T34: =мощность!T33 -> 0 | U34: =мощность!U33 -> 0 | V34: =мощность!V33 -> 0 | W34: =мощность!W33 -> 0 | X34: =мощность!X33 -> 0 | Y34: =мощность!Y33 -> 0 | Z34: 0
A35: =мощность!AA34 -> 03.03.2026 | B35: =мощность!B34 -> 0 | C35: =мощность!C34 -> 0 | D35: =мощность!D34 -> 0 | E35: =мощность!E34 -> 0 | F35: =мощность!F34 -> 0 | G35: =мощность!G34 -> 0 | H35: =мощность!H34 -> 0 | I35: =мощность!I34 -> 0 | J35: =мощность!J34 -> 0 | K35: =мощность!K34 -> 0 | L35: =мощность!L34 -> 0 | M35: =мощность!M34 -> 0 | N35: =мощность!N34 -> 0 | O35: =мощность!O34 -> 0 | P35: =мощность!P34 -> 0 | Q35: =мощность!Q34 -> 0 | R35: =мощность!R34 -> 0 | S35: =мощность!S34 -> 0 | T35: =мощность!T34 -> 0 | U35: =мощность!U34 -> 0 | V35: =мощность!V34 -> 0 | W35: =мощность!W34 -> 0 | X35: =мощность!X34 -> 0 | Y35: =мощность!Y34 -> 0 | Z35: 0
A36: ИТОГО | B36: =SUM(B5:B35) -> 0 | C36: =SUM(C5:C35) -> 0 | D36: 0 | E36: 0 | F36: 0 | G36: 0 | H36: 0 | I36: 0 | J36: 0 | K36: 0 | L36: 0 | M36: 0 | N36: 0 | O36: 0 | P36: 0 | Q36: 0 | R36: 0 | S36: 0 | T36: 0 | U36: 0 | V36: 0 | W36: =SUM(W5:W35) -> 0 | X36: 0 | Y36: 0 | Z36: =SUM(Z5:Z35) -> 0
A38: 2. Объем и стоиомсть электрической энергии и мощности по договорам купли-продажи электрической энергии (мощности) для розничной генерации (за исключением микрогенерации)
A39: Показатель | B39: Объём, МВтч (МВт) | C39: Цена руб/МВтч (МВт) | D39: Стоимость без НДС, руб. | E39: Стоимость с НДС, руб. | F39: в т.ч. НДС (22%)
A40: Электроэнергия | B40: =цены!C680/1000 -> 0 | C40: =IF(B40=0,"",цены!D680) ->  | D40: =IF(B40=0,"",цены!E680) ->  | E40: =IF(B40=0,"",цены!F680) ->  | F40: =IF(B40=0,"",цены!G680) -> 
A41: Мощность | B41: =цены!C681/1000 -> 0 | C41: =IF(B41=0,"",цены!D681) ->  | D41: =IF(B41=0,"",цены!E681) ->  | E41: =IF(B41=0,"",цены!F681) ->  | F41: =IF(B41=0,"",цены!G681) -> 
A42: ИТОГО | B42: Х | D42: =SUM(D40:D41) -> 0 | E42: =SUM(E40:E41) -> 0 | F42: =SUM(F40:F41) -> 0

Sheet мощность (hidden)
A1: Месяц | B1: =IF(E1=1,"январь",IF(E1=2,"февраль",IF(E1=3,"март",IF(E1=4,"апрель",IF(E1=5,"май",IF(E1=6,"июнь",IF(E1=7,"июль",IF(E1=8,"август",IF(E1=9,"сентябрь",IF(E1=10,"октябрь",IF(E1=11,"ноябрь",IF(E1=12,"декабрь",0)))))))))))) -> февраль | E1: =MONTH(H1) -> 2 | H1: 2026-02-01 | I1: заполнять зеленые ячейки | AA1: =TODAY() -> 2026-03-13 | AF1: ='[1]Лист 1'!$J$7 -> 0
A2: Дата\Часы | B2: Фактический почасовой объем производства электрической энергии (мощности), кВтч | Z2: Итого | AC2: max | AD2: в
B3: 1 | C3: 2 | D3: 3 | E3: 4 | F3: 5 | G3: 6 | H3: 7 | I3: 8 | J3: 9 | K3: 10 | L3: 11 | M3: 12 | N3: 13 | O3: 14 | P3: 15 | Q3: 16 | R3: 17 | S3: 18 | T3: 19 | U3: 20 | V3: 21 | W3: 22 | X3: 23 | Y3: 24 | AC3: час | AD3: дата
A4: 1 | B4: =округл!$B$66 -> 0 | C4: =округл!$B$67 -> 0 | D4: =округл!$B$68 -> 0 | E4: =округл!$B$69 -> 0 | F4: =округл!$B$70 -> 0 | G4: =округл!$B$71 -> 0 | H4: =округл!$B$72 -> 0 | I4: =округл!$B$73 -> 0 | J4: =округл!$B$74 -> 0 | K4: =округл!$B$75 -> 0 | L4: =округл!$B$76 -> 0 | M4: =округл!$B$77 -> 0 | N4: =округл!$B$78 -> 0 | O4: =округл!$B$79 -> 0 | P4: =округл!$B$80 -> 0 | Q4: =округл!$B$81 -> 0 | R4: =округл!$B$82 -> 0 | S4: =округл!$B$83 -> 0 | T4: =округл!$B$84 -> 0 | U4: =округл!$B$85 -> 0 | V4: =округл!$B$86 -> 0 | W4: =округл!$B$87 -> 0 | X4: =округл!$B$88 -> 0 | Y4: =округл!$B$89 -> 0 | Z4: =SUM(B4:Y4) -> 0 | AA4: =B43 -> 01.02.2026 | AB4: =IF(AD4="выходной","",INDEX($B$4:$Y$34,A4,LOOKUP(AC4,$B$3:$Y$3))) ->  | AC4: =VLOOKUP(AA4,'Часы пик'!$A$7:$B$60,2,0) ->  | AD4: =IF($B$45="",$B$44,$B$45) -> выходной
A5: 2 | B5: =округл!$C$66 -> 0 | C5: =округл!$C$67 -> 0 | D5: =округл!$C$68 -> 0 | E5: =округл!$C$69 -> 0 | F5: =округл!$C$70 -> 0 | G5: =округл!$C$71 -> 0 | H5: =округл!$C$72 -> 0 | I5: =округл!$C$73 -> 0 | J5: =округл!$C$74 -> 0 | K5: =округл!$C$75 -> 0 | L5: =округл!$C$76 -> 0 | M5: =округл!$C$77 -> 0 | N5: =округл!$C$78 -> 0 | O5: =округл!$C$79 -> 0 | P5: =округл!$C$80 -> 0 | Q5: =округл!$C$81 -> 0 | R5: =округл!$C$82 -> 0 | S5: =округл!$C$83 -> 0 | T5: =округл!$C$84 -> 0 | U5: =округл!$C$85 -> 0 | V5: =округл!$C$86 -> 0 | W5: =округл!$C$87 -> 0 | X5: =округл!$C$88 -> 0 | Y5: =округл!$C$89 -> 0 | Z5: =SUM(B5:Y5) -> 0 | AA5: =$C$43 -> 02.02.2026 | AB5: =IF(AD5="выходной","",INDEX($B$4:$Y$34,A5,LOOKUP(AC5,$B$3:$Y$3))) -> 0 | AC5: =VLOOKUP(AA5,'Часы пик'!$A$7:$B$60,2,0) -> 11 | AD5: =IF($C$45="",$C$44,$C$45) -> рабочий
A6: 3 | B6: =округл!$D$66 -> 0 | C6: =округл!$D$67 -> 0 | D6: =округл!$D$68 -> 0 | E6: =округл!$D$69 -> 0 | F6: =округл!$D$70 -> 0 | G6: =округл!$D$71 -> 0 | H6: =округл!$D$72 -> 0 | I6: =округл!$D$73 -> 0 | J6: =округл!$D$74 -> 0 | K6: =округл!$D$75 -> 0 | L6: =округл!$D$76 -> 0 | M6: =округл!$D$77 -> 0 | N6: =округл!$D$78 -> 0 | O6: =округл!$D$79 -> 0 | P6: =округл!$D$80 -> 0 | Q6: =округл!$D$81 -> 0 | R6: =округл!$D$82 -> 0 | S6: =округл!$D$83 -> 0 | T6: =округл!$D$84 -> 0 | U6: =округл!$D$85 -> 0 | V6: =округл!$D$86 -> 0 | W6: =округл!$D$87 -> 0 | X6: =округл!$D$88 -> 0 | Y6: =округл!$D$89 -> 0 | Z6: 0 | AA6: =$D$43 -> 03.02.2026 | AB6: =IF(AD6="выходной","",INDEX($B$4:$Y$34,A6,LOOKUP(AC6,$B$3:$Y$3))) -> 0 | AC6: =VLOOKUP(AA6,'Часы пик'!$A$7:$B$60,2,0) -> 11 | AD6: =IF($D$45="",$D$44,$D$45) -> рабочий
A7: 4 | B7: =округл!$E$66 -> 0 | C7: =округл!$E$67 -> 0 | D7: =округл!$E$68 -> 0 | E7: =округл!$E$69 -> 0 | F7: =округл!$E$70 -> 0 | G7: =округл!$E$71 -> 0 | H7: =округл!$E$72 -> 0 | I7: =округл!$E$73 -> 0 | J7: =округл!$E$74 -> 0 | K7: =округл!$E$75 -> 0 | L7: =округл!$E$76 -> 0 | M7: =округл!$E$77 -> 0 | N7: =округл!$E$78 -> 0 | O7: =округл!$E$79 -> 0 | P7: =округл!$E$80 -> 0 | Q7: =округл!$E$81 -> 0 | R7: =округл!$E$82 -> 0 | S7: =округл!$E$83 -> 0 | T7: =округл!$E$84 -> 0 | U7: =округл!$E$85 -> 0 | V7: =округл!$E$86 -> 0 | W7: =округл!$E$87 -> 0 | X7: =округл!$E$88 -> 0 | Y7: =округл!$E$89 -> 0 | Z7: 0 | AA7: =$E$43 -> 04.02.2026 | AB7: 0 | AC7: =VLOOKUP(AA7,'Часы пик'!$A$7:$B$60,2,0) -> 10 | AD7: =IF($E$45="",$E$44,$E$45) -> рабочий
A8: 5 | B8: =округл!$F$66 -> 0 | C8: =округл!$F$67 -> 0 | D8: =округл!$F$68 -> 0 | E8: =округл!$F$69 -> 0 | F8: =округл!$F$70 -> 0 | G8: =округл!$F$71 -> 0 | H8: =округл!$F$72 -> 0 | I8: =округл!$F$73 -> 0 | J8: =округл!$F$74 -> 0 | K8: =округл!$F$75 -> 0 | L8: =округл!$F$76 -> 0 | M8: =округл!$F$77 -> 0 | N8: =округл!$F$78 -> 0 | O8: =округл!$F$79 -> 0 | P8: =округл!$F$80 -> 0 | Q8: =округл!$F$81 -> 0 | R8: =округл!$F$82 -> 0 | S8: =округл!$F$83 -> 0 | T8: =округл!$F$84 -> 0 | U8: =округл!$F$85 -> 0 | V8: =округл!$F$86 -> 0 | W8: =округл!$F$87 -> 0 | X8: =округл!$F$88 -> 0 | Y8: =округл!$F$89 -> 0 | Z8: 0 | AA8: =$F$43 -> 05.02.2026 | AB8: 0 | AC8: =VLOOKUP(AA8,'Часы пик'!$A$7:$B$60,2,0) -> 10 | AD8: =IF($F$45="",$F$44,$F$45) -> рабочий
A9: 6 | B9: =округл!$G$66 -> 0 | C9: =округл!$G$67 -> 0 | D9: =округл!$G$68 -> 0 | E9: =округл!$G$69 -> 0 | F9: =округл!$G$70 -> 0 | G9: =округл!$G$71 -> 0 | H9: =округл!$G$72 -> 0 | I9: =округл!$G$73 -> 0 | J9: =округл!$G$74 -> 0 | K9: =округл!$G$75 -> 0 | L9: =округл!$G$76 -> 0 | M9: =округл!$G$77 -> 0 | N9: =округл!$G$78 -> 0 | O9: =округл!$G$79 -> 0 | P9: =округл!$G$80 -> 0 | Q9: =округл!$G$81 -> 0 | R9: =округл!$G$82 -> 0 | S9: =округл!$G$83 -> 0 | T9: =округл!$G$84 -> 0 | U9: =округл!$G$85 -> 0 | V9: =округл!$G$86 -> 0 | W9: =округл!$G$87 -> 0 | X9: =округл!$G$88 -> 0 | Y9: =округл!$G$89 -> 0 | Z9: 0 | AA9: =$G$43 -> 06.02.2026 | AB9: =IF(AD9="выходной","",INDEX($B$4:$Y$34,A9,LOOKUP(AC9,$B$3:$Y$3))) -> 0 | AC9: =VLOOKUP(AA9,'Часы пик'!$A$7:$B$60,2,0) -> 10 | AD9: =IF($G$45="",$G$44,$G$45) -> рабочий
A10: 7 | B10: =округл!$H$66 -> 0 | C10: =округл!$H$67 -> 0 | D10: =округл!$H$68 -> 0 | E10: =округл!$H$69 -> 0 | F10: =округл!$H$70 -> 0 | G10: =округл!$H$71 -> 0 | H10: =округл!$H$72 -> 0 | I10: =округл!$H$73 -> 0 | J10: =округл!$H$74 -> 0 | K10: =округл!$H$75 -> 0 | L10: =округл!$H$76 -> 0 | M10: =округл!$H$77 -> 0 | N10: =округл!$H$78 -> 0 | O10: =округл!$H$79 -> 0 | P10: =округл!$H$80 -> 0 | Q10: =округл!$H$81 -> 0 | R10: =округл!$H$82 -> 0 | S10: =округл!$H$83 -> 0 | T10: =округл!$H$84 -> 0 | U10: =округл!$H$85 -> 0 | V10: =округл!$H$86 -> 0 | W10: =округл!$H$87 -> 0 | X10: =округл!$H$88 -> 0 | Y10: =округл!$H$89 -> 0 | Z10: 0 | AA10: =$H$43 -> 07.02.2026 | AC10: =VLOOKUP(AA10,'Часы пик'!$A$7:$B$60,2,0) ->  | AD10: =IF($H$45="",$H$44,$H$45) -> выходной
A11: 8 | B11: =округл!$I$66 -> 0 | C11: =округл!$I$67 -> 0 | D11: =округл!$I$68 -> 0 | E11: =округл!$I$69 -> 0 | F11: =округл!$I$70 -> 0 | G11: =округл!$I$71 -> 0 | H11: =округл!$I$72 -> 0 | I11: =округл!$I$73 -> 0 | J11: =округл!$I$74 -> 0 | K11: =округл!$I$75 -> 0 | L11: =округл!$I$76 -> 0 | M11: =округл!$I$77 -> 0 | N11: =округл!$I$78 -> 0 | O11: =округл!$I$79 -> 0 | P11: =округл!$I$80 -> 0 | Q11: =округл!$I$81 -> 0 | R11: =округл!$I$82 -> 0 | S11: =округл!$I$83 -> 0 | T11: =округл!$I$84 -> 0 | U11: =округл!$I$85 -> 0 | V11: =округл!$I$86 -> 0 | W11: =округл!$I$87 -> 0 | X11: =округл!$I$88 -> 0 | Y11: =округл!$I$89 -> 0 | Z11: 0 | AA11: =$I$43 -> 08.02.2026 | AB11: =IF(AD11="выходной","",INDEX($B$4:$Y$34,A11,LOOKUP(AC11,$B$3:$Y$3))) ->  | AC11: =VLOOKUP(AA11,'Часы пик'!$A$7:$B$60,2,0) ->  | AD11: =IF($I$45="",$I$44,$I$45) -> выходной
A12: 9 | B12: =округл!$J$66 -> 0 | C12: =округл!$J$67 -> 0 | D12: =округл!$J$68 -> 0 | E12: =округл!$J$69 -> 0 | F12: =округл!$J$70 -> 0 | G12: =округл!$J$71 -> 0 | H12: =округл!$J$72 -> 0 | I12: =округл!$J$73 -> 0 | J12: =округл!$J$74 -> 0 | K12: =округл!$J$75 -> 0 | L12: =округл!$J$76 -> 0 | M12: =округл!$J$77 -> 0 | N12: =округл!$J$78 -> 0 | O12: =округл!$J$79 -> 0 | P12: =округл!$J$80 -> 0 | Q12: =округл!$J$81 -> 0 | R12: =округл!$J$82 -> 0 | S12: =округл!$J$83 -> 0 | T12: =округл!$J$84 -> 0 | U12: =округл!$J$85 -> 0 | V12: =округл!$J$86 -> 0 | W12: =округл!$J$87 -> 0 | X12: =округл!$J$88 -> 0 | Y12: =округл!$J$89 -> 0 | Z12: 0 | AA12: =$J$43 -> 09.02.2026 | AB12: =IF(AD12="выходной","",INDEX($B$4:$Y$34,A12,LOOKUP(AC12,$B$3:$Y$3))) -> 0 | AC12: =VLOOKUP(AA12,'Часы пик'!$A$7:$B$60,2,0) -> 11 | AD12: =IF($J$45="",$J$44,$J$45) -> рабочий
A13: 10 | B13: =округл!$K$66 -> 0 | C13: =округл!$K$67 -> 0 | D13: =округл!$K$68 -> 0 | E13: =округл!$K$69 -> 0 | F13: =округл!$K$70 -> 0 | G13: =округл!$K$71 -> 0 | H13: =округл!$K$72 -> 0 | I13: =округл!$K$73 -> 0 | J13: =округл!$K$74 -> 0 | K13: =округл!$K$75 -> 0 | L13: =округл!$K$76 -> 0 | M13: =округл!$K$77 -> 0 | N13: =округл!$K$78 -> 0 | O13: =округл!$K$79 -> 0 | P13: =округл!$K$80 -> 0 | Q13: =округл!$K$81 -> 0 | R13: =округл!$K$82 -> 0 | S13: =округл!$K$83 -> 0 | T13: =округл!$K$84 -> 0 | U13: =округл!$K$85 -> 0 | V13: =округл!$K$86 -> 0 | W13: =округл!$K$87 -> 0 | X13: =округл!$K$88 -> 0 | Y13: =округл!$K$89 -> 0 | Z13: 0 | AA13: =$K$43 -> 10.02.2026 | AB13: 0 | AC13: =VLOOKUP(AA13,'Часы пик'!$A$7:$B$60,2,0) -> 10 | AD13: =IF($K$45="",$K$44,$K$45) -> рабочий
A14: 11 | B14: =округл!$L$66 -> 0 | C14: =округл!$L$67 -> 0 | D14: =округл!$L$68 -> 0 | E14: =округл!$L$69 -> 0 | F14: =округл!$L$70 -> 0 | G14: =округл!$L$71 -> 0 | H14: =округл!$L$72 -> 0 | I14: =округл!$L$73 -> 0 | J14: =округл!$L$74 -> 0 | K14: =округл!$L$75 -> 0 | L14: =округл!$L$76 -> 0 | M14: =округл!$L$77 -> 0 | N14: =округл!$L$78 -> 0 | O14: =округл!$L$79 -> 0 | P14: =округл!$L$80 -> 0 | Q14: =округл!$L$81 -> 0 | R14: =округл!$L$82 -> 0 | S14: =округл!$L$83 -> 0 | T14: =округл!$L$84 -> 0 | U14: =округл!$L$85 -> 0 | V14: =округл!$L$86 -> 0 | W14: =округл!$L$87 -> 0 | X14: =округл!$L$88 -> 0 | Y14: =округл!$L$89 -> 0 | Z14: 0 | AA14: =$L$43 -> 11.02.2026 | AB14: =IF(AD14="выходной","",INDEX($B$4:$Y$34,A14,LOOKUP(AC14,$B$3:$Y$3))) -> 0 | AC14: =VLOOKUP(AA14,'Часы пик'!$A$7:$B$60,2,0) -> 11 | AD14: =IF($L$45="",$L$44,$L$45) -> рабочий
A15: 12 | B15: =округл!$M$66 -> 0 | C15: =округл!$M$67 -> 0 | D15: =округл!$M$68 -> 0 | E15: =округл!$M$69 -> 0 | F15: =округл!$M$70 -> 0 | G15: =округл!$M$71 -> 0 | H15: =округл!$M$72 -> 0 | I15: =округл!$M$73 -> 0 | J15: =округл!$M$74 -> 0 | K15: =округл!$M$75 -> 0 | L15: =округл!$M$76 -> 0 | M15: =округл!$M$77 -> 0 | N15: =округл!$M$78 -> 0 | O15: =округл!$M$79 -> 0 | P15: =округл!$M$80 -> 0 | Q15: =округл!$M$81 -> 0 | R15: =округл!$M$82 -> 0 | S15: =округл!$M$83 -> 0 | T15: =округл!$M$84 -> 0 | U15: =округл!$M$85 -> 0 | V15: =округл!$M$86 -> 0 | W15: =округл!$M$87 -> 0 | X15: =округл!$M$88 -> 0 | Y15: =округл!$M$89 -> 0 | Z15: 0 | AA15: =$M$43 -> 12.02.2026 | AB15: 0 | AC15: =VLOOKUP(AA15,'Часы пик'!$A$7:$B$60,2,0) -> 10 | AD15: =IF($M$45="",$M$44,$M$45) -> рабочий
A16: 13 | B16: =округл!$N$66 -> 0 | C16: =округл!$N$67 -> 0 | D16: =округл!$N$68 -> 0 | E16: =округл!$N$69 -> 0 | F16: =округл!$N$70 -> 0 | G16: =округл!$N$71 -> 0 | H16: =округл!$N$72 -> 0 | I16: =округл!$N$73 -> 0 | J16: =округл!$N$74 -> 0 | K16: =округл!$N$75 -> 0 | L16: =округл!$N$76 -> 0 | M16: =округл!$N$77 -> 0 | N16: =округл!$N$78 -> 0 | O16: =округл!$N$79 -> 0 | P16: =округл!$N$80 -> 0 | Q16: =округл!$N$81 -> 0 | R16: =округл!$N$82 -> 0 | S16: =округл!$N$83 -> 0 | T16: =округл!$N$84 -> 0 | U16: =округл!$N$85 -> 0 | V16: =округл!$N$86 -> 0 | W16: =округл!$N$87 -> 0 | X16: =округл!$N$88 -> 0 | Y16: =округл!$N$89 -> 0 | Z16: 0 | AA16: =$N$43 -> 13.02.2026 | AB16: 0 | AC16: =VLOOKUP(AA16,'Часы пик'!$A$7:$B$60,2,0) -> 19 | AD16: =IF($N$45="",$N$44,$N$45) -> рабочий
A17: 14 | B17: =округл!$O$66 -> 0 | C17: =округл!$O$67 -> 0 | D17: =округл!$O$68 -> 0 | E17: =округл!$O$69 -> 0 | F17: =округл!$O$70 -> 0 | G17: =округл!$O$71 -> 0 | H17: =округл!$O$72 -> 0 | I17: =округл!$O$73 -> 0 | J17: =округл!$O$74 -> 0 | K17: =округл!$O$75 -> 0 | L17: =округл!$O$76 -> 0 | M17: =округл!$O$77 -> 0 | N17: =округл!$O$78 -> 0 | O17: =округл!$O$79 -> 0 | P17: =округл!$O$80 -> 0 | Q17: =округл!$O$81 -> 0 | R17: =округл!$O$82 -> 0 | S17: =округл!$O$83 -> 0 | T17: =округл!$O$84 -> 0 | U17: =округл!$O$85 -> 0 | V17: =округл!$O$86 -> 0 | W17: =округл!$O$87 -> 0 | X17: =округл!$O$88 -> 0 | Y17: =округл!$O$89 -> 0 | Z17: 0 | AA17: =O$43 -> 14.02.2026 | AC17: =VLOOKUP(AA17,'Часы пик'!$A$7:$B$60,2,0) ->  | AD17: =IF($O$45="",$O$44,$O$45) -> выходной
A18: 15 | B18: =округл!$P$66 -> 0 | C18: =округл!$P$67 -> 0 | D18: =округл!$P$68 -> 0 | E18: =округл!$P$69 -> 0 | F18: =округл!$P$70 -> 0 | G18: =округл!$P$71 -> 0 | H18: =округл!$P$72 -> 0 | I18: =округл!$P$73 -> 0 | J18: =округл!$P$74 -> 0 | K18: =округл!$P$75 -> 0 | L18: =округл!$P$76 -> 0 | M18: =округл!$P$77 -> 0 | N18: =округл!$P$78 -> 0 | O18: =округл!$P$79 -> 0 | P18: =округл!$P$80 -> 0 | Q18: =округл!$P$81 -> 0 | R18: =округл!$P$82 -> 0 | S18: =округл!$P$83 -> 0 | T18: =округл!$P$84 -> 0 | U18: =округл!$P$85 -> 0 | V18: =округл!$P$86 -> 0 | W18: =округл!$P$87 -> 0 | X18: =округл!$P$88 -> 0 | Y18: =округл!$P$89 -> 0 | Z18: 0 | AA18: =$P$43 -> 15.02.2026 | AC18: =VLOOKUP(AA18,'Часы пик'!$A$7:$B$60,2,0) ->  | AD18: =IF($P$45="",$P$44,$P$45) -> выходной
A19: 16 | B19: =округл!$Q$66 -> 0 | C19: =округл!$Q$67 -> 0 | D19: =округл!$Q$68 -> 0 | E19: =округл!$Q$69 -> 0 | F19: =округл!$Q$70 -> 0 | G19: =округл!$Q$71 -> 0 | H19: =округл!$Q$72 -> 0 | I19: =округл!$Q$73 -> 0 | J19: =округл!$Q$74 -> 0 | K19: =округл!$Q$75 -> 0 | L19: =округл!$Q$76 -> 0 | M19: =округл!$Q$77 -> 0 | N19: =округл!$Q$78 -> 0 | O19: =округл!$Q$79 -> 0 | P19: =округл!$Q$80 -> 0 | Q19: =округл!$Q$81 -> 0 | R19: =округл!$Q$82 -> 0 | S19: =округл!$Q$83 -> 0 | T19: =округл!$Q$84 -> 0 | U19: =округл!$Q$85 -> 0 | V19: =округл!$Q$86 -> 0 | W19: =округл!$Q$87 -> 0 | X19: =округл!$Q$88 -> 0 | Y19: =округл!$Q$89 -> 0 | Z19: 0 | AA19: =$Q$43 -> 16.02.2026 | AB19: 0 | AC19: =VLOOKUP(AA19,'Часы пик'!$A$7:$B$60,2,0) -> 12 | AD19: =IF($Q$45="",$Q$44,$Q$45) -> рабочий
A20: 17 | B20: =округл!$R$66 -> 0 | C20: =округл!$R$67 -> 0 | D20: =округл!$R$68 -> 0 | E20: =округл!$R$69 -> 0 | F20: =округл!$R$70 -> 0 | G20: =округл!$R$71 -> 0 | H20: =округл!$R$72 -> 0 | I20: =округл!$R$73 -> 0 | J20: =округл!$R$74 -> 0 | K20: =округл!$R$75 -> 0 | L20: =округл!$R$76 -> 0 | M20: =округл!$R$77 -> 0 | N20: =округл!$R$78 -> 0 | O20: =округл!$R$79 -> 0 | P20: =округл!$R$80 -> 0 | Q20: =округл!$R$81 -> 0 | R20: =округл!$R$82 -> 0 | S20: =округл!$R$83 -> 0 | T20: =округл!$R$84 -> 0 | U20: =округл!$R$85 -> 0 | V20: =округл!$R$86 -> 0 | W20: =округл!$R$87 -> 0 | X20: =округл!$R$88 -> 0 | Y20: =округл!$R$89 -> 0 | Z20: 0 | AA20: =$R$43 -> 17.02.2026 | AB20: 0 | AC20: =VLOOKUP(AA20,'Часы пик'!$A$7:$B$60,2,0) -> 10 | AD20: =IF($R$45="",$R$44,$R$45) -> рабочий
A21: 18 | B21: =округл!$S$66 -> 0 | C21: =округл!$S$67 -> 0 | D21: =округл!$S$68 -> 0 | E21: =округл!$S$69 -> 0 | F21: =округл!$S$70 -> 0 | G21: =округл!$S$71 -> 0 | H21: =округл!$S$72 -> 0 | I21: =округл!$S$73 -> 0 | J21: =округл!$S$74 -> 0 | K21: =округл!$S$75 -> 0 | L21: =округл!$S$76 -> 0 | M21: =округл!$S$77 -> 0 | N21: =округл!$S$78 -> 0 | O21: =округл!$S$79 -> 0 | P21: =округл!$S$80 -> 0 | Q21: =округл!$S$81 -> 0 | R21: =округл!$S$82 -> 0 | S21: =округл!$S$83 -> 0 | T21: =округл!$S$84 -> 0 | U21: =округл!$S$85 -> 0 | V21: =округл!$S$86 -> 0 | W21: =округл!$S$87 -> 0 | X21: =округл!$S$88 -> 0 | Y21: =округл!$S$89 -> 0 | Z21: 0 | AA21: =$S$43 -> 18.02.2026 | AB21: 0 | AC21: =VLOOKUP(AA21,'Часы пик'!$A$7:$B$60,2,0) -> 11 | AD21: =IF($S$45="",$S$44,$S$45) -> рабочий
A22: 19 | B22: =округл!$T$66 -> 0 | C22: =округл!$T$67 -> 0 | D22: =округл!$T$68 -> 0 | E22: =округл!$T$69 -> 0 | F22: =округл!$T$70 -> 0 | G22: =округл!$T$71 -> 0 | H22: =округл!$T$72 -> 0 | I22: =округл!$T$73 -> 0 | J22: =округл!$T$74 -> 0 | K22: =округл!$T$75 -> 0 | L22: =округл!$T$76 -> 0 | M22: =округл!$T$77 -> 0 | N22: =округл!$T$78 -> 0 | O22: =округл!$T$79 -> 0 | P22: =округл!$T$80 -> 0 | Q22: =округл!$T$81 -> 0 | R22: =округл!$T$82 -> 0 | S22: =округл!$T$83 -> 0 | T22: =округл!$T$84 -> 0 | U22: =округл!$T$85 -> 0 | V22: =округл!$T$86 -> 0 | W22: =округл!$T$87 -> 0 | X22: =округл!$T$88 -> 0 | Y22: =округл!$T$89 -> 0 | Z22: 0 | AA22: =$T$43 -> 19.02.2026 | AB22: 0 | AC22: =VLOOKUP(AA22,'Часы пик'!$A$7:$B$60,2,0) -> 11 | AD22: =IF($T$45="",$T$44,$T$45) -> рабочий
A23: 20 | B23: =округл!$U$66 -> 0 | C23: =округл!$U$67 -> 0 | D23: =округл!$U$68 -> 0 | E23: =округл!$U$69 -> 0 | F23: =округл!$U$70 -> 0 | G23: =округл!$U$71 -> 0 | H23: =округл!$U$72 -> 0 | I23: =округл!$U$73 -> 0 | J23: =округл!$U$74 -> 0 | K23: =округл!$U$75 -> 0 | L23: =округл!$U$76 -> 0 | M23: =округл!$U$77 -> 0 | N23: =округл!$U$78 -> 0 | O23: =округл!$U$79 -> 0 | P23: =округл!$U$80 -> 0 | Q23: =округл!$U$81 -> 0 | R23: =округл!$U$82 -> 0 | S23: =округл!$U$83 -> 0 | T23: =округл!$U$84 -> 0 | U23: =округл!$U$85 -> 0 | V23: =округл!$U$86 -> 0 | W23: =округл!$U$87 -> 0 | X23: =округл!$U$88 -> 0 | Y23: =округл!$U$89 -> 0 | Z23: 0 | AA23: =$U$43 -> 20.02.2026 | AB23: 0 | AC23: =VLOOKUP(AA23,'Часы пик'!$A$7:$B$60,2,0) -> 11 | AD23: =IF($U$45="",$U$44,$U$45) -> рабочий
A24: 21 | B24: =округл!$V$66 -> 0 | C24: =округл!$V$67 -> 0 | D24: =округл!$V$68 -> 0 | E24: =округл!$V$69 -> 0 | F24: =округл!$V$70 -> 0 | G24: =округл!$V$71 -> 0 | H24: =округл!$V$72 -> 0 | I24: =округл!$V$73 -> 0 | J24: =округл!$V$74 -> 0 | K24: =округл!$V$75 -> 0 | L24: =округл!$V$76 -> 0 | M24: =округл!$V$77 -> 0 | N24: =округл!$V$78 -> 0 | O24: =округл!$V$79 -> 0 | P24: =округл!$V$80 -> 0 | Q24: =округл!$V$81 -> 0 | R24: =округл!$V$82 -> 0 | S24: =округл!$V$83 -> 0 | T24: =округл!$V$84 -> 0 | U24: =округл!$V$85 -> 0 | V24: =округл!$V$86 -> 0 | W24: =округл!$V$87 -> 0 | X24: =округл!$V$88 -> 0 | Y24: =округл!$V$89 -> 0 | Z24: 0 | AA24: =$V$43 -> 21.02.2026 | AC24: =VLOOKUP(AA24,'Часы пик'!$A$7:$B$60,2,0) ->  | AD24: =IF($V$45="",$V$44,$V$45) -> выходной
A25: 22 | B25: =округл!$W$66 -> 0 | C25: =округл!$W$67 -> 0 | D25: =округл!$W$68 -> 0 | E25: =округл!$W$69 -> 0 | F25: =округл!$W$70 -> 0 | G25: =округл!$W$71 -> 0 | H25: =округл!$W$72 -> 0 | I25: =округл!$W$73 -> 0 | J25: =округл!$W$74 -> 0 | K25: =округл!$W$75 -> 0 | L25: =округл!$W$76 -> 0 | M25: =округл!$W$77 -> 0 | N25: =округл!$W$78 -> 0 | O25: =округл!$W$79 -> 0 | P25: =округл!$W$80 -> 0 | Q25: =округл!$W$81 -> 0 | R25: =округл!$W$82 -> 0 | S25: =округл!$W$83 -> 0 | T25: =округл!$W$84 -> 0 | U25: =округл!$W$85 -> 0 | V25: =округл!$W$86 -> 0 | W25: =округл!$W$87 -> 0 | X25: =округл!$W$88 -> 0 | Y25: =округл!$W$89 -> 0 | Z25: 0 | AA25: =$W$43 -> 22.02.2026 | AC25: =VLOOKUP(AA25,'Часы пик'!$A$7:$B$60,2,0) ->  | AD25: =IF($W$45="",$W$44,$W$45) -> выходной
A26: 23 | B26: =округл!$X$66 -> 0 | C26: =округл!$X$67 -> 0 | D26: =округл!$X$68 -> 0 | E26: =округл!$X$69 -> 0 | F26: =округл!$X$70 -> 0 | G26: =округл!$X$71 -> 0 | H26: =округл!$X$72 -> 0 | I26: =округл!$X$73 -> 0 | J26: =округл!$X$74 -> 0 | K26: =округл!$X$75 -> 0 | L26: =округл!$X$76 -> 0 | M26: =округл!$X$77 -> 0 | N26: =округл!$X$78 -> 0 | O26: =округл!$X$79 -> 0 | P26: =округл!$X$80 -> 0 | Q26: =округл!$X$81 -> 0 | R26: =округл!$X$82 -> 0 | S26: =округл!$X$83 -> 0 | T26: =округл!$X$84 -> 0 | U26: =округл!$X$85 -> 0 | V26: =округл!$X$86 -> 0 | W26: =округл!$X$87 -> 0 | X26: =округл!$X$88 -> 0 | Y26: =округл!$X$89 -> 0 | Z26: 0 | AA26: =$X$43 -> 23.02.2026 | AC26: =VLOOKUP(AA26,'Часы пик'!$A$7:$B$60,2,0) ->  | AD26: =IF($X$45="",$X$44,$X$45) -> выходной
A27: 24 | B27: =округл!$Y$66 -> 0 | C27: =округл!$Y$67 -> 0 | D27: =округл!$Y$68 -> 0 | E27: =округл!$Y$69 -> 0 | F27: =округл!$Y$70 -> 0 | G27: =округл!$Y$71 -> 0 | H27: =округл!$Y$72 -> 0 | I27: =округл!$Y$73 -> 0 | J27: =округл!$Y$74 -> 0 | K27: =округл!$Y$75 -> 0 | L27: =округл!$Y$76 -> 0 | M27: =округл!$Y$77 -> 0 | N27: =округл!$Y$78 -> 0 | O27: =округл!$Y$79 -> 0 | P27: =округл!$Y$80 -> 0 | Q27: =округл!$Y$81 -> 0 | R27: =округл!$Y$82 -> 0 | S27: =округл!$Y$83 -> 0 | T27: =округл!$Y$84 -> 0 | U27: =округл!$Y$85 -> 0 | V27: =округл!$Y$86 -> 0 | W27: =округл!$Y$87 -> 0 | X27: =округл!$Y$88 -> 0 | Y27: =округл!$Y$89 -> 0 | Z27: 0 | AA27: =$Y$43 -> 24.02.2026 | AB27: 0 | AC27: =VLOOKUP(AA27,'Часы пик'!$A$7:$B$60,2,0) -> 10 | AD27: =IF($Y$45="",$Y$44,$Y$45) -> рабочий
A28: 25 | B28: =округл!$Z$66 -> 0 | C28: =округл!$Z$67 -> 0 | D28: =округл!$Z$68 -> 0 | E28: =округл!$Z$69 -> 0 | F28: =округл!$Z$70 -> 0 | G28: =округл!$Z$71 -> 0 | H28: =округл!$Z$72 -> 0 | I28: =округл!$Z$73 -> 0 | J28: =округл!$Z$74 -> 0 | K28: =округл!$Z$75 -> 0 | L28: =округл!$Z$76 -> 0 | M28: =округл!$Z$77 -> 0 | N28: =округл!$Z$78 -> 0 | O28: =округл!$Z$79 -> 0 | P28: =округл!$Z$80 -> 0 | Q28: =округл!$Z$81 -> 0 | R28: =округл!$Z$82 -> 0 | S28: =округл!$Z$83 -> 0 | T28: =округл!$Z$84 -> 0 | U28: =округл!$Z$85 -> 0 | V28: =округл!$Z$86 -> 0 | W28: =округл!$Z$87 -> 0 | X28: =округл!$Z$88 -> 0 | Y28: =округл!$Z$89 -> 0 | Z28: 0 | AA28: =$Z$43 -> 25.02.2026 | AB28: 0 | AC28: =VLOOKUP(AA28,'Часы пик'!$A$7:$B$60,2,0) -> 20 | AD28: =IF($Z$45="",$Z$44,$Z$45) -> рабочий
A29: 26 | B29: =округл!$AA$66 -> 0 | C29: =округл!$AA$67 -> 0 | D29: =округл!$AA$68 -> 0 | E29: =округл!$AA$69 -> 0 | F29: =округл!$AA$70 -> 0 | G29: =округл!$AA$71 -> 0 | H29: =округл!$AA$72 -> 0 | I29: =округл!$AA$73 -> 0 | J29: =округл!$AA$74 -> 0 | K29: =округл!$AA$75 -> 0 | L29: =округл!$AA$76 -> 0 | M29: =округл!$AA$77 -> 0 | N29: =округл!$AA$78 -> 0 | O29: =округл!$AA$79 -> 0 | P29: =округл!$AA$80 -> 0 | Q29: =округл!$AA$81 -> 0 | R29: =округл!$AA$82 -> 0 | S29: =округл!$AA$83 -> 0 | T29: =округл!$AA$84 -> 0 | U29: =округл!$AA$85 -> 0 | V29: =округл!$AA$86 -> 0 | W29: =округл!$AA$87 -> 0 | X29: =округл!$AA$88 -> 0 | Y29: =округл!$AA$89 -> 0 | Z29: 0 | AA29: =$AA$43 -> 26.02.2026 | AB29: 0 | AC29: =VLOOKUP(AA29,'Часы пик'!$A$7:$B$60,2,0) -> 10 | AD29: =IF($AA$45="",$AA$44,$AA$45) -> рабочий
A30: 27 | B30: =округл!$AB$66 -> 0 | C30: =округл!$AB$67 -> 0 | D30: =округл!$AB$68 -> 0 | E30: =округл!$AB$69 -> 0 | F30: =округл!$AB$70 -> 0 | G30: =округл!$AB$71 -> 0 | H30: =округл!$AB$72 -> 0 | I30: =округл!$AB$73 -> 0 | J30: =округл!$AB$74 -> 0 | K30: =округл!$AB$75 -> 0 | L30: =округл!$AB$76 -> 0 | M30: =округл!$AB$77 -> 0 | N30: =округл!$AB$78 -> 0 | O30: =округл!$AB$79 -> 0 | P30: =округл!$AB$80 -> 0 | Q30: =округл!$AB$81 -> 0 | R30: =округл!$AB$82 -> 0 | S30: =округл!$AB$83 -> 0 | T30: =округл!$AB$84 -> 0 | U30: =округл!$AB$85 -> 0 | V30: =округл!$AB$86 -> 0 | W30: =округл!$AB$87 -> 0 | X30: =округл!$AB$88 -> 0 | Y30: =округл!$AB$89 -> 0 | Z30: 0 | AA30: =$AB$43 -> 27.02.2026 | AB30: 0 | AC30: =VLOOKUP(AA30,'Часы пик'!$A$7:$B$60,2,0) -> 10 | AD30: =IF($AB$45="",$AB$44,$AB$45) -> рабочий
A31: 28 | B31: =округл!$AC$66 -> 0 | C31: =округл!$AC$67 -> 0 | D31: =округл!$AC$68 -> 0 | E31: =округл!$AC$69 -> 0 | F31: =округл!$AC$70 -> 0 | G31: =округл!$AC$71 -> 0 | H31: =округл!$AC$72 -> 0 | I31: =округл!$AC$73 -> 0 | J31: =округл!$AC$74 -> 0 | K31: =округл!$AC$75 -> 0 | L31: =округл!$AC$76 -> 0 | M31: =округл!$AC$77 -> 0 | N31: =округл!$AC$78 -> 0 | O31: =округл!$AC$79 -> 0 | P31: =округл!$AC$80 -> 0 | Q31: =округл!$AC$81 -> 0 | R31: =округл!$AC$82 -> 0 | S31: =округл!$AC$83 -> 0 | T31: =округл!$AC$84 -> 0 | U31: =округл!$AC$85 -> 0 | V31: =округл!$AC$86 -> 0 | W31: =округл!$AC$87 -> 0 | X31: =округл!$AC$88 -> 0 | Y31: =округл!$AC$89 -> 0 | Z31: 0 | AA31: =$AC$43 -> 28.02.2026 | AC31: =VLOOKUP(AA31,'Часы пик'!$A$7:$B$60,2,0) ->  | AD31: =IF($AC$45="",$AC$44,$AC$45) -> выходной
A32: 29 | B32: =округл!$AD$66 -> 0 | C32: =округл!$AD$67 -> 0 | D32: =округл!$AD$68 -> 0 | E32: =округл!$AD$69 -> 0 | F32: =округл!$AD$70 -> 0 | G32: =округл!$AD$71 -> 0 | H32: =округл!$AD$72 -> 0 | I32: =округл!$AD$73 -> 0 | J32: =округл!$AD$74 -> 0 | K32: =округл!$AD$75 -> 0 | L32: =округл!$AD$76 -> 0 | M32: =округл!$AD$77 -> 0 | N32: =округл!$AD$78 -> 0 | O32: =округл!$AD$79 -> 0 | P32: =округл!$AD$80 -> 0 | Q32: =округл!$AD$81 -> 0 | R32: =округл!$AD$82 -> 0 | S32: =округл!$AD$83 -> 0 | T32: =округл!$AD$84 -> 0 | U32: =округл!$AD$85 -> 0 | V32: =округл!$AD$86 -> 0 | W32: =округл!$AD$87 -> 0 | X32: =округл!$AD$88 -> 0 | Y32: =округл!$AD$89 -> 0 | Z32: 0 | AA32: =$AD$43 -> 01.03.2026 | AC32: =VLOOKUP(AA32,'Часы пик'!$A$7:$B$60,2,0) ->  | AD32: =IF($AD$45="",$AD$44,$AD$45) -> выходной
A33: 30 | B33: =округл!$AE$66 -> 0 | C33: =округл!$AE$67 -> 0 | D33: =округл!$AE$68 -> 0 | E33: =округл!$AE$69 -> 0 | F33: =округл!$AE$70 -> 0 | G33: =округл!$AE$71 -> 0 | H33: =округл!$AE$72 -> 0 | I33: =округл!$AE$73 -> 0 | J33: =округл!$AE$74 -> 0 | K33: =округл!$AE$75 -> 0 | L33: =округл!$AE$76 -> 0 | M33: =округл!$AE$77 -> 0 | N33: =округл!$AE$78 -> 0 | O33: =округл!$AE$79 -> 0 | P33: =округл!$AE$80 -> 0 | Q33: =округл!$AE$81 -> 0 | R33: =округл!$AE$82 -> 0 | S33: =округл!$AE$83 -> 0 | T33: =округл!$AE$84 -> 0 | U33: =округл!$AE$85 -> 0 | V33: =округл!$AE$86 -> 0 | W33: =округл!$AE$87 -> 0 | X33: =округл!$AE$88 -> 0 | Y33: =округл!$AE$89 -> 0 | Z33: 0 | AA33: =$AE$43 -> 02.03.2026 | AC33: =VLOOKUP(AA33,'Часы пик'!$A$7:$B$60,2,0) ->  | AD33: =IF($AE$45="",$AE$44,$AE$45) -> выходной
A34: 31 | B34: =округл!$AF$66 -> 0 | C34: =округл!$AF$67 -> 0 | D34: =округл!$AF$68 -> 0 | E34: =округл!$AF$69 -> 0 | F34: =округл!$AF$70 -> 0 | G34: =округл!$AF$71 -> 0 | H34: =округл!$AF$72 -> 0 | I34: =округл!$AF$73 -> 0 | J34: =округл!$AF$74 -> 0 | K34: =округл!$AF$75 -> 0 | L34: =округл!$AF$76 -> 0 | M34: =округл!$AF$77 -> 0 | N34: =округл!$AF$78 -> 0 | O34: =округл!$AF$79 -> 0 | P34: =округл!$AF$80 -> 0 | Q34: =округл!$AF$81 -> 0 | R34: =округл!$AF$82 -> 0 | S34: =округл!$AF$83 -> 0 | T34: =округл!$AF$84 -> 0 | U34: =округл!$AF$85 -> 0 | V34: =округл!$AF$86 -> 0 | W34: =округл!$AF$87 -> 0 | X34: =округл!$AF$88 -> 0 | Y34: =округл!$AF$89 -> 0 | Z34: 0 | AA34: =$AF$43 -> 03.03.2026 | AC34: =VLOOKUP(AA34,'Часы пик'!$A$7:$B$60,2,0) ->  | AD34: =IF($AF$45="",$AF$44,$AF$45) -> выходной
A35: ИТОГО | B35: =SUM(B4:B34) -> 0 | C35: =SUM(C4:C34) -> 0 | D35: 0 | E35: 0 | F35: 0 | G35: 0 | H35: 0 | I35: 0 | J35: 0 | K35: 0 | L35: 0 | M35: 0 | N35: 0 | O35: 0 | P35: 0 | Q35: 0 | R35: 0 | S35: 0 | T35: 0 | U35: 0 | V35: 0 | W35: =SUM(W4:W34) -> 0 | X35: 0 | Y35: 0 | Z35: =SUM(Z4:Z34) -> 0 | AB35: =AVERAGE(AB4:AB34) -> 0
Q38: Итого электроэнергия за расчетный период, кВтч: | W38: =Z35 -> 0
Q39: Итого мошность за расчетный период, кВт: | W39: =ROUND(AB35,0) -> 0
A42: День | B42: =CONCATENATE(PROPER(TEXT((DATE(YEAR($H$1),MONTH($H$1),DAY($H$1)+0)),"ДДДД"))) -> Воскресенье | C42: =CONCATENATE(PROPER(TEXT((DATE(YEAR($H$1),MONTH($H$1),DAY($H$1)+1)),"ДДДД"))) -> Понедельник | D42: =CONCATENATE(PROPER(TEXT((DATE(YEAR($H$1),MONTH($H$1),DAY($H$1)+2)),"ДДДД"))) -> Вторник | E42: =CONCATENATE(PROPER(TEXT((DATE(YEAR($H$1),MONTH($H$1),DAY($H$1)+3)),"ДДДД"))) -> Среда | F42: =CONCATENATE(PROPER(TEXT((DATE(YEAR($H$1),MONTH($H$1),DAY($H$1)+4)),"ДДДД"))) -> Четверг | G42: =CONCATENATE(PROPER(TEXT((DATE(YEAR($H$1),MONTH($H$1),DAY($H$1)+5)),"ДДДД"))) -> Пятница | H42: =CONCATENATE(PROPER(TEXT((DATE(YEAR($H$1),MONTH($H$1),DAY($H$1)+6)),"ДДДД"))) -> Суббота | I42: =CONCATENATE(PROPER(TEXT((DATE(YEAR($H$1),MONTH($H$1),DAY($H$1)+7)),"ДДДД"))) -> Воскресенье | J42: =CONCATENATE(PROPER(TEXT((DATE(YEAR($H$1),MONTH($H$1),DAY($H$1)+8)),"ДДДД"))) -> Понедельник | K42: =CONCATENATE(PROPER(TEXT((DATE(YEAR($H$1),MONTH($H$1),DAY($H$1)+9)),"ДДДД"))) -> Вторник | L42: =CONCATENATE(PROPER(TEXT((DATE(YEAR($H$1),MONTH($H$1),DAY($H$1)+10)),"ДДДД"))) -> Среда | M42: =CONCATENATE(PROPER(TEXT((DATE(YEAR($H$1),MONTH($H$1),DAY($H$1)+11)),"ДДДД"))) -> Четверг | N42: =CONCATENATE(PROPER(TEXT((DATE(YEAR($H$1),MONTH($H$1),DAY($H$1)+12)),"ДДДД"))) -> Пятница | O42: =CONCATENATE(PROPER(TEXT((DATE(YEAR($H$1),MONTH($H$1),DAY($H$1)+13)),"ДДДД"))) -> Суббота | P42: =CONCATENATE(PROPER(TEXT((DATE(YEAR($H$1),MONTH($H$1),DAY($H$1)+14)),"ДДДД"))) -> Воскресенье | Q42: =CONCATENATE(PROPER(TEXT((DATE(YEAR($H$1),MONTH($H$1),DAY($H$1)+15)),"ДДДД"))) -> Понедельник | R42: =CONCATENATE(PROPER(TEXT((DATE(YEAR($H$1),MONTH($H$1),DAY($H$1)+16)),"ДДДД"))) -> Вторник | S42: =CONCATENATE(PROPER(TEXT((DATE(YEAR($H$1),MONTH($H$1),DAY($H$1)+17)),"ДДДД"))) -> Среда | T42: =CONCATENATE(PROPER(TEXT((DATE(YEAR($H$1),MONTH($H$1),DAY($H$1)+18)),"ДДДД"))) -> Четверг | U42: =CONCATENATE(PROPER(TEXT((DATE(YEAR($H$1),MONTH($H$1),DAY($H$1)+19)),"ДДДД"))) -> Пятница | V42: =CONCATENATE(PROPER(TEXT((DATE(YEAR($H$1),MONTH($H$1),DAY($H$1)+20)),"ДДДД"))) -> Суббота | W42: =CONCATENATE(PROPER(TEXT((DATE(YEAR($H$1),MONTH($H$1),DAY($H$1)+21)),"ДДДД"))) -> Воскресенье | X42: =CONCATENATE(PROPER(TEXT((DATE(YEAR($H$1),MONTH($H$1),DAY($H$1)+22)),"ДДДД"))) -> Понедельник | Y42: =CONCATENATE(PROPER(TEXT((DATE(YEAR($H$1),MONTH($H$1),DAY($H$1)+23)),"ДДДД"))) -> Вторник | Z42: =CONCATENATE(PROPER(TEXT((DATE(YEAR($H$1),MONTH($H$1),DAY($H$1)+24)),"ДДДД"))) -> Среда | AA42: =CONCATENATE(PROPER(TEXT((DATE(YEAR($H$1),MONTH($H$1),DAY($H$1)+25)),"ДДДД"))) -> Четверг | AB42: =CONCATENATE(PROPER(TEXT((DATE(YEAR($H$1),MONTH($H$1),DAY($H$1)+26)),"ДДДД"))) -> Пятница | AC42: =CONCATENATE(PROPER(TEXT((DATE(YEAR($H$1),MONTH($H$1),DAY($H$1)+27)),"ДДДД"))) -> Суббота | AD42: =CONCATENATE(PROPER(TEXT((DATE(YEAR($H$1),MONTH($H$1),DAY($H$1)+28)),"ДДДД"))) -> Воскресенье | AE42: =CONCATENATE(PROPER(TEXT((DATE(YEAR($H$1),MONTH($H$1),DAY($H$1)+29)),"ДДДД"))) -> Понедельник | AF42: =CONCATENATE(PROPER(TEXT((DATE(YEAR($H$1),MONTH($H$1),DAY($H$1)+30)),"ДДДД"))) -> Вторник
A43: Дата | B43: =CONCATENATE(TEXT((DATE(YEAR($H$1),MONTH($H$1),DAY($H$1)+0)),"ДД.ММ.ГГГГ")) -> 01.02.2026 | C43: =CONCATENATE(TEXT((DATE(YEAR($H$1),MONTH($H$1),DAY($H$1)+1)),"ДД.ММ.ГГГГ")) -> 02.02.2026 | D43: =CONCATENATE(TEXT((DATE(YEAR($H$1),MONTH($H$1),DAY($H$1)+2)),"ДД.ММ.ГГГГ")) -> 03.02.2026 | E43: =CONCATENATE(TEXT((DATE(YEAR($H$1),MONTH($H$1),DAY($H$1)+3)),"ДД.ММ.ГГГГ")) -> 04.02.2026 | F43: =CONCATENATE(TEXT((DATE(YEAR($H$1),MONTH($H$1),DAY($H$1)+4)),"ДД.ММ.ГГГГ")) -> 05.02.2026 | G43: =CONCATENATE(TEXT((DATE(YEAR($H$1),MONTH($H$1),DAY($H$1)+5)),"ДД.ММ.ГГГГ")) -> 06.02.2026 | H43: =CONCATENATE(TEXT((DATE(YEAR($H$1),MONTH($H$1),DAY($H$1)+6)),"ДД.ММ.ГГГГ")) -> 07.02.2026 | I43: =CONCATENATE(TEXT((DATE(YEAR($H$1),MONTH($H$1),DAY($H$1)+7)),"ДД.ММ.ГГГГ")) -> 08.02.2026 | J43: =CONCATENATE(TEXT((DATE(YEAR($H$1),MONTH($H$1),DAY($H$1)+8)),"ДД.ММ.ГГГГ")) -> 09.02.2026 | K43: =CONCATENATE(TEXT((DATE(YEAR($H$1),MONTH($H$1),DAY($H$1)+9)),"ДД.ММ.ГГГГ")) -> 10.02.2026 | L43: =CONCATENATE(TEXT((DATE(YEAR($H$1),MONTH($H$1),DAY($H$1)+10)),"ДД.ММ.ГГГГ")) -> 11.02.2026 | M43: =CONCATENATE(TEXT((DATE(YEAR($H$1),MONTH($H$1),DAY($H$1)+11)),"ДД.ММ.ГГГГ")) -> 12.02.2026 | N43: =CONCATENATE(TEXT((DATE(YEAR($H$1),MONTH($H$1),DAY($H$1)+12)),"ДД.ММ.ГГГГ")) -> 13.02.2026 | O43: =CONCATENATE(TEXT((DATE(YEAR($H$1),MONTH($H$1),DAY($H$1)+13)),"ДД.ММ.ГГГГ")) -> 14.02.2026 | P43: =CONCATENATE(TEXT((DATE(YEAR($H$1),MONTH($H$1),DAY($H$1)+14)),"ДД.ММ.ГГГГ")) -> 15.02.2026 | Q43: =CONCATENATE(TEXT((DATE(YEAR($H$1),MONTH($H$1),DAY($H$1)+15)),"ДД.ММ.ГГГГ")) -> 16.02.2026 | R43: =CONCATENATE(TEXT((DATE(YEAR($H$1),MONTH($H$1),DAY($H$1)+16)),"ДД.ММ.ГГГГ")) -> 17.02.2026 | S43: =CONCATENATE(TEXT((DATE(YEAR($H$1),MONTH($H$1),DAY($H$1)+17)),"ДД.ММ.ГГГГ")) -> 18.02.2026 | T43: =CONCATENATE(TEXT((DATE(YEAR($H$1),MONTH($H$1),DAY($H$1)+18)),"ДД.ММ.ГГГГ")) -> 19.02.2026 | U43: =CONCATENATE(TEXT((DATE(YEAR($H$1),MONTH($H$1),DAY($H$1)+19)),"ДД.ММ.ГГГГ")) -> 20.02.2026 | V43: =CONCATENATE(TEXT((DATE(YEAR($H$1),MONTH($H$1),DAY($H$1)+20)),"ДД.ММ.ГГГГ")) -> 21.02.2026 | W43: =CONCATENATE(TEXT((DATE(YEAR($H$1),MONTH($H$1),DAY($H$1)+21)),"ДД.ММ.ГГГГ")) -> 22.02.2026 | X43: =CONCATENATE(TEXT((DATE(YEAR($H$1),MONTH($H$1),DAY($H$1)+22)),"ДД.ММ.ГГГГ")) -> 23.02.2026 | Y43: =CONCATENATE(TEXT((DATE(YEAR($H$1),MONTH($H$1),DAY($H$1)+23)),"ДД.ММ.ГГГГ")) -> 24.02.2026 | Z43: =CONCATENATE(TEXT((DATE(YEAR($H$1),MONTH($H$1),DAY($H$1)+24)),"ДД.ММ.ГГГГ")) -> 25.02.2026 | AA43: =CONCATENATE(TEXT((DATE(YEAR($H$1),MONTH($H$1),DAY($H$1)+25)),"ДД.ММ.ГГГГ")) -> 26.02.2026 | AB43: =CONCATENATE(TEXT((DATE(YEAR($H$1),MONTH($H$1),DAY($H$1)+26)),"ДД.ММ.ГГГГ")) -> 27.02.2026 | AC43: =CONCATENATE(TEXT((DATE(YEAR($H$1),MONTH($H$1),DAY($H$1)+27)),"ДД.ММ.ГГГГ")) -> 28.02.2026 | AD43: =CONCATENATE(TEXT((DATE(YEAR($H$1),MONTH($H$1),DAY($H$1)+28)),"ДД.ММ.ГГГГ")) -> 01.03.2026 | AE43: =CONCATENATE(TEXT((DATE(YEAR($H$1),MONTH($H$1),DAY($H$1)+29)),"ДД.ММ.ГГГГ")) -> 02.03.2026 | AF43: =CONCATENATE(TEXT((DATE(YEAR($H$1),MONTH($H$1),DAY($H$1)+30)),"ДД.ММ.ГГГГ")) -> 03.03.2026
A44: В/Р | B44: =IF(B42="Понедельник","рабочий",IF(B42="Вторник","рабочий",IF(B42="Среда","рабочий",IF(B42="Четверг","рабочий",IF(B42="Пятница","рабочий",IF(B42="Суббота","выходной",IF(B42="Воскресенье","выходной",0))))))) -> выходной | C44: =IF(C42="Понедельник","рабочий",IF(C42="Вторник","рабочий",IF(C42="Среда","рабочий",IF(C42="Четверг","рабочий",IF(C42="Пятница","рабочий",IF(C42="Суббота","выходной",IF(C42="Воскресенье","выходной",0))))))) -> рабочий | D44: рабочий | E44: рабочий | F44: рабочий | G44: рабочий | H44: выходной | I44: выходной | J44: рабочий | K44: рабочий | L44: рабочий | M44: рабочий | N44: рабочий | O44: выходной | P44: выходной | Q44: рабочий | R44: рабочий | S44: рабочий | T44: рабочий | U44: рабочий | V44: выходной | W44: выходной | X44: рабочий | Y44: рабочий | Z44: рабочий | AA44: рабочий | AB44: рабочий | AC44: выходной | AD44: выходной | AE44: рабочий | AF44: рабочий
A45: вых/раб | X45: выходной | AD45: выходной | AE45: выходной | AF45: выходной
A47: рабочий
A48: выходной

Sheet цены (hidden)
A1: Дата | B1: Час | C1: Объём (КВтч) | D1: Цена руб/МВтч | E1: К*Цена руб/МВтч | F1: Стоимость (руб.) | G1: К*Стоимость (руб.)
A2: =мощность!$AA$4 -> 01.02.2026 | B2: 0 | C2: =мощность!B4 -> 0 | D2: 1971.28 | E2: =1*D2 -> 1971.28 | F2: =ROUND(C2*D2/1000,2) -> 0 | G2: =ROUND(C2*E2/1000,2) -> 0
A3: =мощность!$AA$4 -> 01.02.2026 | B3: 1 | C3: =мощность!C4 -> 0 | D3: 1901.27 | E3: =1*D3 -> 1901.27 | F3: =ROUND(C3*D3/1000,2) -> 0 | G3: =ROUND(C3*E3/1000,2) -> 0
A4: =мощность!$AA$4 -> 01.02.2026 | B4: 2 | C4: =мощность!D4 -> 0 | D4: 1751.18 | E4: 1751.18 | F4: 0 | G4: 0
A5: =мощность!$AA$4 -> 01.02.2026 | B5: 3 | C5: =мощность!E4 -> 0 | D5: 1702.87 | E5: 1702.87 | F5: 0 | G5: 0
A6: =мощность!$AA$4 -> 01.02.2026 | B6: 4 | C6: =мощность!F4 -> 0 | D6: 1754.27 | E6: 1754.27 | F6: 0 | G6: 0
A7: =мощность!$AA$4 -> 01.02.2026 | B7: 5 | C7: =мощность!G4 -> 0 | D7: 1855.32 | E7: 1855.32 | F7: =ROUND(C7*D7/1000,2) -> 0 | G7: 0
A8: =мощность!$AA$4 -> 01.02.2026 | B8: 6 | C8: =мощность!H4 -> 0 | D8: 1902.34 | E8: 1902.34 | F8: 0 | G8: =ROUND(C8*E8/1000,2) -> 0
A9: =мощность!$AA$4 -> 01.02.2026 | B9: 7 | C9: =мощность!I4 -> 0 | D9: 2012.94 | E9: 2012.94 | F9: 0 | G9: 0
A10: =мощность!$AA$4 -> 01.02.2026 | B10: 8 | C10: =мощность!J4 -> 0 | D10: 2253.28 | E10: 2253.28 | F10: 0 | G10: =ROUND(C10*E10/1000,2) -> 0
A11: =мощность!$AA$4 -> 01.02.2026 | B11: 9 | C11: =мощность!K4 -> 0 | D11: 2548.34 | E11: 2548.34 | F11: 0 | G11: =ROUND(C11*E11/1000,2) -> 0
A12: =мощность!$AA$4 -> 01.02.2026 | B12: 10 | C12: =мощность!L4 -> 0 | D12: 2632.36 | E12: 2632.36 | F12: 0 | G12: 0
A13: =мощность!$AA$4 -> 01.02.2026 | B13: 11 | C13: =мощность!M4 -> 0 | D13: 2668.84 | E13: 2668.84 | F13: 0 | G13: 0
A14: =мощность!$AA$4 -> 01.02.2026 | B14: 12 | C14: =мощность!N4 -> 0 | D14: 2661.79 | E14: 2661.79 | F14: 0 | G14: 0
A15: =мощность!$AA$4 -> 01.02.2026 | B15: 13 | C15: =мощность!O4 -> 0 | D15: 2665.76 | E15: 2665.76 | F15: 0 | G15: 0
A16: =мощность!$AA$4 -> 01.02.2026 | B16: 14 | C16: =мощность!P4 -> 0 | D16: 2621.12 | E16: 2621.12 | F16: 0 | G16: 0
A17: =мощность!$AA$4 -> 01.02.2026 | B17: 15 | C17: =мощность!Q4 -> 0 | D17: 2594.82 | E17: 2594.82 | F17: 0 | G17: 0
A18: =мощность!$AA$4 -> 01.02.2026 | B18: 16 | C18: =мощность!R4 -> 0 | D18: 2607.53 | E18: 2607.53 | F18: 0 | G18: 0
A19: =мощность!$AA$4 -> 01.02.2026 | B19: 17 | C19: =мощность!S4 -> 0 | D19: 2683.16 | E19: 2683.16 | F19: 0 | G19: 0
A20: =мощность!$AA$4 -> 01.02.2026 | B20: 18 | C20: =мощность!T4 -> 0 | D20: 2740.27 | E20: 2740.27 | F20: 0 | G20: 0
A21: =мощность!$AA$4 -> 01.02.2026 | B21: 19 | C21: =мощность!U4 -> 0 | D21: 2608.4 | E21: 2608.4 | F21: 0 | G21: 0
A22: =мощность!$AA$4 -> 01.02.2026 | B22: 20 | C22: =мощность!V4 -> 0 | D22: 2599 | E22: 2599 | F22: 0 | G22: 0
A23: =мощность!$AA$4 -> 01.02.2026 | B23: 21 | C23: =мощность!W4 -> 0 | D23: 2494.91 | E23: 2494.91 | F23: 0 | G23: 0
A24: =мощность!$AA$4 -> 01.02.2026 | B24: 22 | C24: =мощность!X4 -> 0 | D24: 2221.54 | E24: 2221.54 | F24: 0 | G24: 0
A25: =мощность!$AA$4 -> 01.02.2026 | B25: 23 | C25: =мощность!Y4 -> 0 | D25: 2021.71 | E25: 2021.71 | F25: 0 | G25: 0
A26: =мощность!$AA$5 -> 02.02.2026 | B26: 0 | C26: =мощность!B5 -> 0 | D26: 1915.81 | E26: 1915.81 | F26: 0 | G26: 0
A27: =мощность!$AA$5 -> 02.02.2026 | B27: 1 | C27: =мощность!C5 -> 0 | D27: 1859.32 | E27: 1859.32 | F27: 0 | G27: 0
A28: =мощность!$AA$5 -> 02.02.2026 | B28: 2 | C28: =мощность!D5 -> 0 | D28: 1638.82 | E28: 1638.82 | F28: 0 | G28: 0
A29: =мощность!$AA$5 -> 02.02.2026 | B29: 3 | C29: =мощность!E5 -> 0 | D29: 1612.51 | E29: 1612.51 | F29: 0 | G29: 0
A30: =мощность!$AA$5 -> 02.02.2026 | B30: 4 | C30: =мощность!F5 -> 0 | D30: 1711.38 | E30: 1711.38 | F30: 0 | G30: 0
A31: =мощность!$AA$5 -> 02.02.2026 | B31: 5 | C31: =мощность!G5 -> 0 | D31: 1914.9 | E31: 1914.9 | F31: 0 | G31: 0
A32: =мощность!$AA$5 -> 02.02.2026 | B32: 6 | C32: =мощность!H5 -> 0 | D32: 2069.64 | E32: 2069.64 | F32: 0 | G32: 0
A33: =мощность!$AA$5 -> 02.02.2026 | B33: 7 | C33: =мощность!I5 -> 0 | D33: 2297.42 | E33: 2297.42 | F33: 0 | G33: =ROUND(C33*E33/1000,2) -> 0
A34: =мощность!$AA$5 -> 02.02.2026 | B34: 8 | C34: =мощность!J5 -> 0 | D34: 2318.68 | E34: 2318.68 | F34: 0 | G34: 0
A35: =мощность!$AA$5 -> 02.02.2026 | B35: 9 | C35: =мощность!K5 -> 0 | D35: 2345.39 | E35: 2345.39 | F35: 0 | G35: 0
A36: =мощность!$AA$5 -> 02.02.2026 | B36: 10 | C36: =мощность!L5 -> 0 | D36: 2447.8 | E36: 2447.8 | F36: 0 | G36: 0
A37: =мощность!$AA$5 -> 02.02.2026 | B37: 11 | C37: =мощность!M5 -> 0 | D37: 2537.93 | E37: 2537.93 | F37: 0 | G37: 0
A38: =мощность!$AA$5 -> 02.02.2026 | B38: 12 | C38: =мощность!N5 -> 0 | D38: 2517.23 | E38: 2517.23 | F38: 0 | G38: 0
A39: =мощность!$AA$5 -> 02.02.2026 | B39: 13 | C39: =мощность!O5 -> 0 | D39: 2531.67 | E39: 2531.67 | F39: 0 | G39: 0
A40: =мощность!$AA$5 -> 02.02.2026 | B40: 14 | C40: =мощность!P5 -> 0 | D40: 2375.36 | E40: 2375.36 | F40: 0 | G40: 0
A41: =мощность!$AA$5 -> 02.02.2026 | B41: 15 | C41: =мощность!Q5 -> 0 | D41: 2350.71 | E41: 2350.71 | F41: 0 | G41: 0
A42: =мощность!$AA$5 -> 02.02.2026 | B42: 16 | C42: =мощность!R5 -> 0 | D42: 2337.69 | E42: 2337.69 | F42: 0 | G42: 0
A43: =мощность!$AA$5 -> 02.02.2026 | B43: 17 | C43: =мощность!S5 -> 0 | D43: 2345.49 | E43: 2345.49 | F43: 0 | G43: 0
A44: =мощность!$AA$5 -> 02.02.2026 | B44: 18 | C44: =мощность!T5 -> 0 | D44: 2363.52 | E44: 2363.52 | F44: 0 | G44: 0
A45: =мощность!$AA$5 -> 02.02.2026 | B45: 19 | C45: =мощность!U5 -> 0 | D45: 2361.89 | E45: 2361.89 | F45: 0 | G45: 0
A46: =мощность!$AA$5 -> 02.02.2026 | B46: 20 | C46: =мощность!V5 -> 0 | D46: 2324.21 | E46: 2324.21 | F46: 0 | G46: 0
A47: =мощность!$AA$5 -> 02.02.2026 | B47: 21 | C47: =мощность!W5 -> 0 | D47: 2265.8 | E47: 2265.8 | F47: 0 | G47: 0
A48: =мощность!$AA$5 -> 02.02.2026 | B48: 22 | C48: =мощность!X5 -> 0 | D48: 2207.46 | E48: 2207.46 | F48: 0 | G48: 0
A49: =мощность!$AA$5 -> 02.02.2026 | B49: 23 | C49: =мощность!Y5 -> 0 | D49: 1918.43 | E49: 1918.43 | F49: 0 | G49: 0
A50: =мощность!$AA$6 -> 03.02.2026 | B50: 0 | C50: =мощность!B6 -> 0 | D50: 1910.25 | E50: 1910.25 | F50: 0 | G50: 0
A51: =мощность!$AA$6 -> 03.02.2026 | B51: 1 | C51: =мощность!C6 -> 0 | D51: 1797.3 | E51: 1797.3 | F51: 0 | G51: 0
A52: =мощность!$AA$6 -> 03.02.2026 | B52: 2 | C52: =мощность!D6 -> 0 | D52: 1590.16 | E52: 1590.16 | F52: 0 | G52: 0
A53: =мощность!$AA$6 -> 03.02.2026 | B53: 3 | C53: =мощность!E6 -> 0 | D53: 1558.88 | E53: 1558.88 | F53: 0 | G53: 0
A54: =мощность!$AA$6 -> 03.02.2026 | B54: 4 | C54: =мощность!F6 -> 0 | D54: 1594.36 | E54: 1594.36 | F54: 0 | G54: 0
A55: =мощность!$AA$6 -> 03.02.2026 | B55: 5 | C55: =мощность!G6 -> 0 | D55: 1913.67 | E55: 1913.67 | F55: 0 | G55: 0
A56: =мощность!$AA$6 -> 03.02.2026 | B56: 6 | C56: =мощность!H6 -> 0 | D56: 2018.35 | E56: 2018.35 | F56: 0 | G56: 0
A57: =мощность!$AA$6 -> 03.02.2026 | B57: 7 | C57: =мощность!I6 -> 0 | D57: 2245.75 | E57: 2245.75 | F57: 0 | G57: 0
A58: =мощность!$AA$6 -> 03.02.2026 | B58: 8 | C58: =мощность!J6 -> 0 | D58: 2318.16 | E58: 2318.16 | F58: 0 | G58: 0
A59: =мощность!$AA$6 -> 03.02.2026 | B59: 9 | C59: =мощность!K6 -> 0 | D59: 2370.25 | E59: 2370.25 | F59: 0 | G59: 0
A60: =мощность!$AA$6 -> 03.02.2026 | B60: 10 | C60: =мощность!L6 -> 0 | D60: 2496.46 | E60: 2496.46 | F60: 0 | G60: 0
A61: =мощность!$AA$6 -> 03.02.2026 | B61: 11 | C61: =мощность!M6 -> 0 | D61: 2610.87 | E61: 2610.87 | F61: 0 | G61: 0
A62: =мощность!$AA$6 -> 03.02.2026 | B62: 12 | C62: =мощность!N6 -> 0 | D62: 2513.2 | E62: 2513.2 | F62: 0 | G62: 0
A63: =мощность!$AA$6 -> 03.02.2026 | B63: 13 | C63: =мощность!O6 -> 0 | D63: 2522.54 | E63: 2522.54 | F63: 0 | G63: 0
A64: =мощность!$AA$6 -> 03.02.2026 | B64: 14 | C64: =мощность!P6 -> 0 | D64: 2501.94 | E64: 2501.94 | F64: 0 | G64: 0
A65: =мощность!$AA$6 -> 03.02.2026 | B65: 15 | C65: =мощность!Q6 -> 0 | D65: 2447.1 | E65: 2447.1 | F65: 0 | G65: 0
A66: =мощность!$AA$6 -> 03.02.2026 | B66: 16 | C66: =мощность!R6 -> 0 | D66: 2425.13 | E66: 2425.13 | F66: 0 | G66: 0
A67: =мощность!$AA$6 -> 03.02.2026 | B67: 17 | C67: =мощность!S6 -> 0 | D67: 2441.1 | E67: =1*D67 -> 2441.1 | F67: =ROUND(C67*D67/1000,2) -> 0 | G67: =ROUND(C67*E67/1000,2) -> 0
A68: =мощность!$AA$6 -> 03.02.2026 | B68: 18 | C68: =мощность!T6 -> 0 | D68: 2495.7 | E68: 2495.7 | F68: 0 | G68: 0
A69: =мощность!$AA$6 -> 03.02.2026 | B69: 19 | C69: =мощность!U6 -> 0 | D69: 2503.46 | E69: 2503.46 | F69: 0 | G69: 0
A70: =мощность!$AA$6 -> 03.02.2026 | B70: 20 | C70: =мощность!V6 -> 0 | D70: 2405.91 | E70: 2405.91 | F70: 0 | G70: 0
A71: =мощность!$AA$6 -> 03.02.2026 | B71: 21 | C71: =мощность!W6 -> 0 | D71: 2317.09 | E71: 2317.09 | F71: 0 | G71: 0
A72: =мощность!$AA$6 -> 03.02.2026 | B72: 22 | C72: =мощность!X6 -> 0 | D72: 2236.71 | E72: 2236.71 | F72: 0 | G72: 0
A73: =мощность!$AA$6 -> 03.02.2026 | B73: 23 | C73: =мощность!Y6 -> 0 | D73: 2015.79 | E73: 2015.79 | F73: 0 | G73: 0
A74: =мощность!$AA$7 -> 04.02.2026 | B74: 0 | C74: =мощность!B7 -> 0 | D74: 1899.32 | E74: 1899.32 | F74: 0 | G74: 0
A75: =мощность!$AA$7 -> 04.02.2026 | B75: 1 | C75: =мощность!C7 -> 0 | D75: 1679.15 | E75: 1679.15 | F75: 0 | G75: 0
A76: =мощность!$AA$7 -> 04.02.2026 | B76: 2 | C76: =мощность!D7 -> 0 | D76: 1601.42 | E76: 1601.42 | F76: 0 | G76: 0
A77: =мощность!$AA$7 -> 04.02.2026 | B77: 3 | C77: =мощность!E7 -> 0 | D77: 1592.13 | E77: 1592.13 | F77: 0 | G77: 0
A78: =мощность!$AA$7 -> 04.02.2026 | B78: 4 | C78: =мощность!F7 -> 0 | D78: 1695.24 | E78: 1695.24 | F78: 0 | G78: 0
A79: =мощность!$AA$7 -> 04.02.2026 | B79: 5 | C79: =мощность!G7 -> 0 | D79: 1935.33 | E79: 1935.33 | F79: 0 | G79: 0
A80: =мощность!$AA$7 -> 04.02.2026 | B80: 6 | C80: =мощность!H7 -> 0 | D80: 2073.45 | E80: 2073.45 | F80: 0 | G80: 0
A81: =мощность!$AA$7 -> 04.02.2026 | B81: 7 | C81: =мощность!I7 -> 0 | D81: 2274.44 | E81: 2274.44 | F81: 0 | G81: 0
A82: =мощность!$AA$7 -> 04.02.2026 | B82: 8 | C82: =мощность!J7 -> 0 | D82: 2497.29 | E82: 2497.29 | F82: 0 | G82: 0
A83: =мощность!$AA$7 -> 04.02.2026 | B83: 9 | C83: =мощность!K7 -> 0 | D83: 2558.01 | E83: 2558.01 | F83: 0 | G83: 0
A84: =мощность!$AA$7 -> 04.02.2026 | B84: 10 | C84: =мощность!L7 -> 0 | D84: 2573.02 | E84: 2573.02 | F84: 0 | G84: 0
A85: =мощность!$AA$7 -> 04.02.2026 | B85: 11 | C85: =мощность!M7 -> 0 | D85: 2638.23 | E85: 2638.23 | F85: 0 | G85: =ROUND(C85*E85/1000,2) -> 0
A86: =мощность!$AA$7 -> 04.02.2026 | B86: 12 | C86: =мощность!N7 -> 0 | D86: 2595.88 | E86: 2595.88 | F86: 0 | G86: 0
A87: =мощность!$AA$7 -> 04.02.2026 | B87: 13 | C87: =мощность!O7 -> 0 | D87: 2604.13 | E87: 2604.13 | F87: 0 | G87: 0
A88: =мощность!$AA$7 -> 04.02.2026 | B88: 14 | C88: =мощность!P7 -> 0 | D88: 2600.81 | E88: 2600.81 | F88: 0 | G88: 0
A89: =мощность!$AA$7 -> 04.02.2026 | B89: 15 | C89: =мощность!Q7 -> 0 | D89: 2543.15 | E89: 2543.15 | F89: 0 | G89: 0
A90: =мощность!$AA$7 -> 04.02.2026 | B90: 16 | C90: =мощность!R7 -> 0 | D90: 2523.67 | E90: 2523.67 | F90: 0 | G90: 0
A91: =мощность!$AA$7 -> 04.02.2026 | B91: 17 | C91: =мощность!S7 -> 0 | D91: 2532 | E91: 2532 | F91: 0 | G91: 0
A92: =мощность!$AA$7 -> 04.02.2026 | B92: 18 | C92: =мощность!T7 -> 0 | D92: 2589.48 | E92: 2589.48 | F92: 0 | G92: 0
A93: =мощность!$AA$7 -> 04.02.2026 | B93: 19 | C93: =мощность!U7 -> 0 | D93: 2590.72 | E93: 2590.72 | F93: 0 | G93: 0
A94: =мощность!$AA$7 -> 04.02.2026 | B94: 20 | C94: =мощность!V7 -> 0 | D94: 2526.91 | E94: 2526.91 | F94: 0 | G94: 0
A95: =мощность!$AA$7 -> 04.02.2026 | B95: 21 | C95: =мощность!W7 -> 0 | D95: 2328.06 | E95: 2328.06 | F95: 0 | G95: 0
A96: =мощность!$AA$7 -> 04.02.2026 | B96: 22 | C96: =мощность!X7 -> 0 | D96: 2240.19 | E96: 2240.19 | F96: 0 | G96: 0
A97: =мощность!$AA$7 -> 04.02.2026 | B97: 23 | C97: =мощность!Y7 -> 0 | D97: 2028.02 | E97: 2028.02 | F97: 0 | G97: 0
A98: =мощность!$AA$8 -> 05.02.2026 | B98: 0 | C98: =мощность!B8 -> 0 | D98: 1943.4 | E98: 1943.4 | F98: 0 | G98: 0
A99: =мощность!$AA$8 -> 05.02.2026 | B99: 1 | C99: =мощность!C8 -> 0 | D99: 1863.06 | E99: 1863.06 | F99: 0 | G99: 0
A100: =мощность!$AA$8 -> 05.02.2026 | B100: 2 | C100: =мощность!D8 -> 0 | D100: 1635.11 | E100: 1635.11 | F100: 0 | G100: 0
A101: =мощность!$AA$8 -> 05.02.2026 | B101: 3 | C101: =мощность!E8 -> 0 | D101: 1602.2 | E101: 1602.2 | F101: 0 | G101: 0
A102: =мощность!$AA$8 -> 05.02.2026 | B102: 4 | C102: =мощность!F8 -> 0 | D102: 1743.3 | E102: 1743.3 | F102: 0 | G102: 0
A103: =мощность!$AA$8 -> 05.02.2026 | B103: 5 | C103: =мощность!G8 -> 0 | D103: 1944.89 | E103: 1944.89 | F103: 0 | G103: 0
A104: =мощность!$AA$8 -> 05.02.2026 | B104: 6 | C104: =мощность!H8 -> 0 | D104: 2214.15 | E104: 2214.15 | F104: 0 | G104: 0
A105: =мощность!$AA$8 -> 05.02.2026 | B105: 7 | C105: =мощность!I8 -> 0 | D105: 2360.75 | E105: 2360.75 | F105: 0 | G105: 0
A106: =мощность!$AA$8 -> 05.02.2026 | B106: 8 | C106: =мощность!J8 -> 0 | D106: 2527.73 | E106: 2527.73 | F106: 0 | G106: 0
A107: =мощность!$AA$8 -> 05.02.2026 | B107: 9 | C107: =мощность!K8 -> 0 | D107: 2580.64 | E107: 2580.64 | F107: 0 | G107: 0
A108: =мощность!$AA$8 -> 05.02.2026 | B108: 10 | C108: =мощность!L8 -> 0 | D108: 2593.06 | E108: 2593.06 | F108: 0 | G108: 0
A109: =мощность!$AA$8 -> 05.02.2026 | B109: 11 | C109: =мощность!M8 -> 0 | D109: 2664.81 | E109: 2664.81 | F109: 0 | G109: 0
A110: =мощность!$AA$8 -> 05.02.2026 | B110: 12 | C110: =мощность!N8 -> 0 | D110: 2592.29 | E110: 2592.29 | F110: 0 | G110: 0
A111: =мощность!$AA$8 -> 05.02.2026 | B111: 13 | C111: =мощность!O8 -> 0 | D111: 2619.06 | E111: 2619.06 | F111: 0 | G111: 0
A112: =мощность!$AA$8 -> 05.02.2026 | B112: 14 | C112: =мощность!P8 -> 0 | D112: 2601.09 | E112: 2601.09 | F112: 0 | G112: 0
A113: =мощность!$AA$8 -> 05.02.2026 | B113: 15 | C113: =мощность!Q8 -> 0 | D113: 2566.09 | E113: 2566.09 | F113: 0 | G113: 0
A114: =мощность!$AA$8 -> 05.02.2026 | B114: 16 | C114: =мощность!R8 -> 0 | D114: 2535.71 | E114: 2535.71 | F114: 0 | G114: 0
A115: =мощность!$AA$8 -> 05.02.2026 | B115: 17 | C115: =мощность!S8 -> 0 | D115: 2554.78 | E115: 2554.78 | F115: 0 | G115: 0
A116: =мощность!$AA$8 -> 05.02.2026 | B116: 18 | C116: =мощность!T8 -> 0 | D116: 2606.64 | E116: 2606.64 | F116: 0 | G116: 0
A117: =мощность!$AA$8 -> 05.02.2026 | B117: 19 | C117: =мощность!U8 -> 0 | D117: 2605.39 | E117: 2605.39 | F117: 0 | G117: 0
A118: =мощность!$AA$8 -> 05.02.2026 | B118: 20 | C118: =мощность!V8 -> 0 | D118: 2546.43 | E118: 2546.43 | F118: 0 | G118: 0
A119: =мощность!$AA$8 -> 05.02.2026 | B119: 21 | C119: =мощность!W8 -> 0 | D119: 2436.53 | E119: 2436.53 | F119: 0 | G119: 0
A120: =мощность!$AA$8 -> 05.02.2026 | B120: 22 | C120: =мощность!X8 -> 0 | D120: 2316.4 | E120: 2316.4 | F120: 0 | G120: 0
A121: =мощность!$AA$8 -> 05.02.2026 | B121: 23 | C121: =мощность!Y8 -> 0 | D121: 2206.03 | E121: 2206.03 | F121: 0 | G121: 0
A122: =мощность!$AA$9 -> 06.02.2026 | B122: 0 | C122: =мощность!B9 -> 0 | D122: 1936.79 | E122: 1936.79 | F122: 0 | G122: 0
A123: =мощность!$AA$9 -> 06.02.2026 | B123: 1 | C123: =мощность!C9 -> 0 | D123: 1829.71 | E123: 1829.71 | F123: 0 | G123: 0
A124: =мощность!$AA$9 -> 06.02.2026 | B124: 2 | C124: =мощность!D9 -> 0 | D124: 1616.9 | E124: 1616.9 | F124: 0 | G124: 0
A125: =мощность!$AA$9 -> 06.02.2026 | B125: 3 | C125: =мощность!E9 -> 0 | D125: 1584.63 | E125: 1584.63 | F125: 0 | G125: 0
A126: =мощность!$AA$9 -> 06.02.2026 | B126: 4 | C126: =мощность!F9 -> 0 | D126: 1696.61 | E126: 1696.61 | F126: 0 | G126: 0
A127: =мощность!$AA$9 -> 06.02.2026 | B127: 5 | C127: =мощность!G9 -> 0 | D127: 1923.18 | E127: 1923.18 | F127: 0 | G127: 0
A128: =мощность!$AA$9 -> 06.02.2026 | B128: 6 | C128: =мощность!H9 -> 0 | D128: 2221.29 | E128: 2221.29 | F128: 0 | G128: 0
A129: =мощность!$AA$9 -> 06.02.2026 | B129: 7 | C129: =мощность!I9 -> 0 | D129: 2396.58 | E129: 2396.58 | F129: 0 | G129: 0
A130: =мощность!$AA$9 -> 06.02.2026 | B130: 8 | C130: =мощность!J9 -> 0 | D130: 2548.54 | E130: 2548.54 | F130: 0 | G130: 0
A131: =мощность!$AA$9 -> 06.02.2026 | B131: 9 | C131: =мощность!K9 -> 0 | D131: 2558.85 | E131: =1*D131 -> 2558.85 | F131: =ROUND(C131*D131/1000,2) -> 0 | G131: =ROUND(C131*E131/1000,2) -> 0
A132: =мощность!$AA$9 -> 06.02.2026 | B132: 10 | C132: =мощность!L9 -> 0 | D132: 2571.64 | E132: 2571.64 | F132: 0 | G132: 0
A133: =мощность!$AA$9 -> 06.02.2026 | B133: 11 | C133: =мощность!M9 -> 0 | D133: 2678.02 | E133: 2678.02 | F133: 0 | G133: 0
A134: =мощность!$AA$9 -> 06.02.2026 | B134: 12 | C134: =мощность!N9 -> 0 | D134: 2638.47 | E134: 2638.47 | F134: 0 | G134: 0
A135: =мощность!$AA$9 -> 06.02.2026 | B135: 13 | C135: =мощность!O9 -> 0 | D135: 2635.27 | E135: 2635.27 | F135: 0 | G135: 0
A136: =мощность!$AA$9 -> 06.02.2026 | B136: 14 | C136: =мощность!P9 -> 0 | D136: 2622.41 | E136: 2622.41 | F136: 0 | G136: 0
A137: =мощность!$AA$9 -> 06.02.2026 | B137: 15 | C137: =мощность!Q9 -> 0 | D137: 2578.01 | E137: 2578.01 | F137: 0 | G137: 0
A138: =мощность!$AA$9 -> 06.02.2026 | B138: 16 | C138: =мощность!R9 -> 0 | D138: 2550.58 | E138: 2550.58 | F138: 0 | G138: 0
A139: =мощность!$AA$9 -> 06.02.2026 | B139: 17 | C139: =мощность!S9 -> 0 | D139: 2541.42 | E139: 2541.42 | F139: 0 | G139: 0
A140: =мощность!$AA$9 -> 06.02.2026 | B140: 18 | C140: =мощность!T9 -> 0 | D140: 2600.05 | E140: 2600.05 | F140: 0 | G140: 0
A141: =мощность!$AA$9 -> 06.02.2026 | B141: 19 | C141: =мощность!U9 -> 0 | D141: 2598.78 | E141: 2598.78 | F141: 0 | G141: 0
A142: =мощность!$AA$9 -> 06.02.2026 | B142: 20 | C142: =мощность!V9 -> 0 | D142: 2578.56 | E142: 2578.56 | F142: 0 | G142: 0
A143: =мощность!$AA$9 -> 06.02.2026 | B143: 21 | C143: =мощность!W9 -> 0 | D143: 2487.41 | E143: 2487.41 | F143: 0 | G143: 0
A144: =мощность!$AA$9 -> 06.02.2026 | B144: 22 | C144: =мощность!X9 -> 0 | D144: 2354.48 | E144: 2354.48 | F144: 0 | G144: 0
A145: =мощность!$AA$9 -> 06.02.2026 | B145: 23 | C145: =мощность!Y9 -> 0 | D145: 2161.07 | E145: 2161.07 | F145: 0 | G145: 0
A146: =мощность!$AA$10 -> 07.02.2026 | B146: 0 | C146: =мощность!B10 -> 0 | D146: 1927.51 | E146: 1927.51 | F146: 0 | G146: 0
A147: =мощность!$AA$10 -> 07.02.2026 | B147: 1 | C147: =мощность!C10 -> 0 | D147: 1878.53 | E147: 1878.53 | F147: 0 | G147: 0
A148: =мощность!$AA$10 -> 07.02.2026 | B148: 2 | C148: =мощность!D10 -> 0 | D148: 1717.76 | E148: 1717.76 | F148: 0 | G148: 0
A149: =мощность!$AA$10 -> 07.02.2026 | B149: 3 | C149: =мощность!E10 -> 0 | D149: 1650.24 | E149: 1650.24 | F149: 0 | G149: 0
A150: =мощность!$AA$10 -> 07.02.2026 | B150: 4 | C150: =мощность!F10 -> 0 | D150: 1694.54 | E150: 1694.54 | F150: 0 | G150: 0
A151: =мощность!$AA$10 -> 07.02.2026 | B151: 5 | C151: =мощность!G10 -> 0 | D151: 1860.04 | E151: 1860.04 | F151: 0 | G151: 0
A152: =мощность!$AA$10 -> 07.02.2026 | B152: 6 | C152: =мощность!H10 -> 0 | D152: 1904 | E152: 1904 | F152: 0 | G152: 0
A153: =мощность!$AA$10 -> 07.02.2026 | B153: 7 | C153: =мощность!I10 -> 0 | D153: 2215.54 | E153: 2215.54 | F153: 0 | G153: 0
A154: =мощность!$AA$10 -> 07.02.2026 | B154: 8 | C154: =мощность!J10 -> 0 | D154: 2397.41 | E154: 2397.41 | F154: 0 | G154: 0
A155: =мощность!$AA$10 -> 07.02.2026 | B155: 9 | C155: =мощность!K10 -> 0 | D155: 2599.53 | E155: 2599.53 | F155: 0 | G155: 0
A156: =мощность!$AA$10 -> 07.02.2026 | B156: 10 | C156: =мощность!L10 -> 0 | D156: 2680.9 | E156: 2680.9 | F156: 0 | G156: 0
A157: =мощность!$AA$10 -> 07.02.2026 | B157: 11 | C157: =мощность!M10 -> 0 | D157: 2717.91 | E157: 2717.91 | F157: 0 | G157: 0
A158: =мощность!$AA$10 -> 07.02.2026 | B158: 12 | C158: =мощность!N10 -> 0 | D158: 2707.31 | E158: 2707.31 | F158: 0 | G158: 0
A159: =мощность!$AA$10 -> 07.02.2026 | B159: 13 | C159: =мощность!O10 -> 0 | D159: 2692.57 | E159: 2692.57 | F159: 0 | G159: 0
A160: =мощность!$AA$10 -> 07.02.2026 | B160: 14 | C160: =мощность!P10 -> 0 | D160: 2642.52 | E160: 2642.52 | F160: 0 | G160: 0
A161: =мощность!$AA$10 -> 07.02.2026 | B161: 15 | C161: =мощность!Q10 -> 0 | D161: 2631.41 | E161: 2631.41 | F161: 0 | G161: 0
A162: =мощность!$AA$10 -> 07.02.2026 | B162: 16 | C162: =мощность!R10 -> 0 | D162: 2634.57 | E162: 2634.57 | F162: 0 | G162: 0
A163: =мощность!$AA$10 -> 07.02.2026 | B163: 17 | C163: =мощность!S10 -> 0 | D163: 2675.1 | E163: 2675.1 | F163: 0 | G163: 0
A164: =мощность!$AA$10 -> 07.02.2026 | B164: 18 | C164: =мощность!T10 -> 0 | D164: 2730.35 | E164: 2730.35 | F164: 0 | G164: 0
A165: =мощность!$AA$10 -> 07.02.2026 | B165: 19 | C165: =мощность!U10 -> 0 | D165: 2684.17 | E165: 2684.17 | F165: 0 | G165: 0
A166: =мощность!$AA$10 -> 07.02.2026 | B166: 20 | C166: =мощность!V10 -> 0 | D166: 2654.18 | E166: 2654.18 | F166: 0 | G166: 0
A167: =мощность!$AA$10 -> 07.02.2026 | B167: 21 | C167: =мощность!W10 -> 0 | D167: 2453.04 | E167: 2453.04 | F167: 0 | G167: 0
A168: =мощность!$AA$10 -> 07.02.2026 | B168: 22 | C168: =мощность!X10 -> 0 | D168: 2310.73 | E168: 2310.73 | F168: 0 | G168: 0
A169: =мощность!$AA$10 -> 07.02.2026 | B169: 23 | C169: =мощность!Y10 -> 0 | D169: 2087.8 | E169: 2087.8 | F169: 0 | G169: 0
A170: =мощность!$AA$11 -> 08.02.2026 | B170: 0 | C170: =мощность!B11 -> 0 | D170: 1996.57 | E170: 1996.57 | F170: 0 | G170: 0
A171: =мощность!$AA$11 -> 08.02.2026 | B171: 1 | C171: =мощность!C11 -> 0 | D171: 1904.72 | E171: 1904.72 | F171: 0 | G171: 0
A172: =мощность!$AA$11 -> 08.02.2026 | B172: 2 | C172: =мощность!D11 -> 0 | D172: 1739.4 | E172: 1739.4 | F172: 0 | G172: 0
A173: =мощность!$AA$11 -> 08.02.2026 | B173: 3 | C173: =мощность!E11 -> 0 | D173: 1708.26 | E173: 1708.26 | F173: 0 | G173: 0
A174: =мощность!$AA$11 -> 08.02.2026 | B174: 4 | C174: =мощность!F11 -> 0 | D174: 1733.11 | E174: 1733.11 | F174: 0 | G174: 0
A175: =мощность!$AA$11 -> 08.02.2026 | B175: 5 | C175: =мощность!G11 -> 0 | D175: 1875.31 | E175: 1875.31 | F175: 0 | G175: 0
A176: =мощность!$AA$11 -> 08.02.2026 | B176: 6 | C176: =мощность!H11 -> 0 | D176: 1889.23 | E176: 1889.23 | F176: 0 | G176: 0
A177: =мощность!$AA$11 -> 08.02.2026 | B177: 7 | C177: =мощность!I11 -> 0 | D177: 1950.33 | E177: 1950.33 | F177: 0 | G177: 0
A178: =мощность!$AA$11 -> 08.02.2026 | B178: 8 | C178: =мощность!J11 -> 0 | D178: 2233.91 | E178: 2233.91 | F178: 0 | G178: 0
A179: =мощность!$AA$11 -> 08.02.2026 | B179: 9 | C179: =мощность!K11 -> 0 | D179: 2369.1 | E179: 2369.1 | F179: 0 | G179: 0
A180: =мощность!$AA$11 -> 08.02.2026 | B180: 10 | C180: =мощность!L11 -> 0 | D180: 2464.41 | E180: 2464.41 | F180: 0 | G180: 0
A181: =мощность!$AA$11 -> 08.02.2026 | B181: 11 | C181: =мощность!M11 -> 0 | D181: 2498.11 | E181: 2498.11 | F181: 0 | G181: 0
A182: =мощность!$AA$11 -> 08.02.2026 | B182: 12 | C182: =мощность!N11 -> 0 | D182: 2496.13 | E182: 2496.13 | F182: 0 | G182: 0
A183: =мощность!$AA$11 -> 08.02.2026 | B183: 13 | C183: =мощность!O11 -> 0 | D183: 2488.17 | E183: 2488.17 | F183: 0 | G183: 0
A184: =мощность!$AA$11 -> 08.02.2026 | B184: 14 | C184: =мощность!P11 -> 0 | D184: 2485.75 | E184: 2485.75 | F184: 0 | G184: 0
A185: =мощность!$AA$11 -> 08.02.2026 | B185: 15 | C185: =мощность!Q11 -> 0 | D185: 2446.56 | E185: 2446.56 | F185: 0 | G185: 0
A186: =мощность!$AA$11 -> 08.02.2026 | B186: 16 | C186: =мощность!R11 -> 0 | D186: 2442.06 | E186: 2442.06 | F186: 0 | G186: 0
A187: =мощность!$AA$11 -> 08.02.2026 | B187: 17 | C187: =мощность!S11 -> 0 | D187: 2471.69 | E187: 2471.69 | F187: 0 | G187: 0
A188: =мощность!$AA$11 -> 08.02.2026 | B188: 18 | C188: =мощность!T11 -> 0 | D188: 2501.14 | E188: 2501.14 | F188: 0 | G188: 0
A189: =мощность!$AA$11 -> 08.02.2026 | B189: 19 | C189: =мощность!U11 -> 0 | D189: 2520.44 | E189: 2520.44 | F189: 0 | G189: 0
A190: =мощность!$AA$11 -> 08.02.2026 | B190: 20 | C190: =мощность!V11 -> 0 | D190: 2532.81 | E190: 2532.81 | F190: 0 | G190: 0
A191: =мощность!$AA$11 -> 08.02.2026 | B191: 21 | C191: =мощность!W11 -> 0 | D191: 2401.73 | E191: 2401.73 | F191: 0 | G191: 0
A192: =мощность!$AA$11 -> 08.02.2026 | B192: 22 | C192: =мощность!X11 -> 0 | D192: 2267.77 | E192: 2267.77 | F192: 0 | G192: 0
A193: =мощность!$AA$11 -> 08.02.2026 | B193: 23 | C193: =мощность!Y11 -> 0 | D193: 2045.35 | E193: 2045.35 | F193: 0 | G193: 0
A194: =мощность!$AA$12 -> 09.02.2026 | B194: 0 | C194: =мощность!B12 -> 0 | D194: 1831.38 | E194: 1831.38 | F194: 0 | G194: 0
A195: =мощность!$AA$12 -> 09.02.2026 | B195: 1 | C195: =мощность!C12 -> 0 | D195: 1623.52 | E195: =1*D195 -> 1623.52 | F195: =ROUND(C195*D195/1000,2) -> 0 | G195: =ROUND(C195*E195/1000,2) -> 0
A196: =мощность!$AA$12 -> 09.02.2026 | B196: 2 | C196: =мощность!D12 -> 0 | D196: 1560.64 | E196: 1560.64 | F196: 0 | G196: 0
A197: =мощность!$AA$12 -> 09.02.2026 | B197: 3 | C197: =мощность!E12 -> 0 | D197: 1546.67 | E197: 1546.67 | F197: 0 | G197: 0
A198: =мощность!$AA$12 -> 09.02.2026 | B198: 4 | C198: =мощность!F12 -> 0 | D198: 1618.93 | E198: 1618.93 | F198: 0 | G198: 0
A199: =мощность!$AA$12 -> 09.02.2026 | B199: 5 | C199: =мощность!G12 -> 0 | D199: 1831.6 | E199: 1831.6 | F199: 0 | G199: 0
A200: =мощность!$AA$12 -> 09.02.2026 | B200: 6 | C200: =мощность!H12 -> 0 | D200: 2118.83 | E200: 2118.83 | F200: 0 | G200: 0
... 480 more rows

Sheet округл (hidden)
B1: Почасовые расходы,кВтч ( мощность,кВт )
B3: за | C3: =мощность!B1 -> февраль
B5: 1 | C5: 2 | D5: 3 | E5: 4 | F5: 5 | G5: 6 | H5: 7 | I5: 8 | J5: 9 | K5: 10 | L5: 11 | M5: 12 | N5: 13 | O5: 14 | P5: 15 | Q5: 16 | R5: 17 | S5: 18 | T5: 19 | U5: 20 | V5: 21 | W5: 22 | X5: 23 | Y5: 24 | Z5: 25 | AA5: 26 | AB5: 27 | AC5: 28 | AD5: 29 | AE5: 30 | AF5: 31
A6: 1 | B6: =ввод!$B$5 -> 0 | C6: =ввод!$B$6 -> 0 | D6: =ввод!$B$7 -> 0 | E6: =ввод!$B$8 -> 0 | F6: =ввод!$B$9 -> 0 | G6: =ввод!$B$10 -> 0 | H6: =ввод!$B$11 -> 0 | I6: =ввод!$B$12 -> 0 | J6: =ввод!$B$13 -> 0 | K6: =ввод!$B$14 -> 0 | L6: =ввод!$B$15 -> 0 | M6: =ввод!$B$16 -> 0 | N6: =ввод!$B$17 -> 0 | O6: =ввод!$B$18 -> 0 | P6: =ввод!$B$19 -> 0 | Q6: =ввод!$B$20 -> 0 | R6: =ввод!$B$21 -> 0 | S6: =ввод!$B$22 -> 0 | T6: =ввод!$B$23 -> 0 | U6: =ввод!$B$24 -> 0 | V6: =ввод!$B$25 -> 0 | W6: =ввод!$B$26 -> 0 | X6: =ввод!$B$27 -> 0 | Y6: =ввод!$B$28 -> 0 | Z6: =ввод!$B$29 -> 0 | AA6: =ввод!$B$30 -> 0 | AB6: =ввод!$B$31 -> 0 | AC6: =ввод!$B$32 -> 0 | AD6: =ввод!$B$33 -> 0 | AE6: =ввод!$B$34 -> 0 | AF6: =ввод!$B$35 -> 0
A7: 2 | B7: =ввод!$C$5 -> 0 | C7: =ввод!$C$6 -> 0 | D7: =ввод!$C$7 -> 0 | E7: =ввод!$C$8 -> 0 | F7: =ввод!$C$9 -> 0 | G7: =ввод!$C$10 -> 0 | H7: =ввод!$C$11 -> 0 | I7: =ввод!$C$12 -> 0 | J7: =ввод!$C$13 -> 0 | K7: =ввод!$C$14 -> 0 | L7: =ввод!$C$15 -> 0 | M7: =ввод!$C$16 -> 0 | N7: =ввод!$C$17 -> 0 | O7: =ввод!$C$18 -> 0 | P7: =ввод!$C$19 -> 0 | Q7: =ввод!$C$20 -> 0 | R7: =ввод!$C$21 -> 0 | S7: =ввод!$C$22 -> 0 | T7: =ввод!$C$23 -> 0 | U7: =ввод!$C$24 -> 0 | V7: =ввод!$C$25 -> 0 | W7: =ввод!$C$26 -> 0 | X7: =ввод!$C$27 -> 0 | Y7: =ввод!$C$28 -> 0 | Z7: =ввод!$C$29 -> 0 | AA7: =ввод!$C$30 -> 0 | AB7: =ввод!$C$31 -> 0 | AC7: =ввод!$C$32 -> 0 | AD7: =ввод!$C$33 -> 0 | AE7: =ввод!$C$34 -> 0 | AF7: =ввод!$C$35 -> 0
A8: 3 | B8: =ввод!$D$5 -> 0 | C8: =ввод!$D$6 -> 0 | D8: =ввод!$D$7 -> 0 | E8: =ввод!$D$8 -> 0 | F8: =ввод!$D$9 -> 0 | G8: =ввод!$D$10 -> 0 | H8: =ввод!$D$11 -> 0 | I8: =ввод!$D$12 -> 0 | J8: =ввод!$D$13 -> 0 | K8: =ввод!$D$14 -> 0 | L8: =ввод!$D$15 -> 0 | M8: =ввод!$D$16 -> 0 | N8: =ввод!$D$17 -> 0 | O8: =ввод!$D$18 -> 0 | P8: =ввод!$D$19 -> 0 | Q8: =ввод!$D$20 -> 0 | R8: =ввод!$D$21 -> 0 | S8: =ввод!$D$22 -> 0 | T8: =ввод!$D$23 -> 0 | U8: =ввод!$D$24 -> 0 | V8: =ввод!$D$25 -> 0 | W8: =ввод!$D$26 -> 0 | X8: =ввод!$D$27 -> 0 | Y8: =ввод!$D$28 -> 0 | Z8: =ввод!$D$29 -> 0 | AA8: =ввод!$D$30 -> 0 | AB8: =ввод!$D$31 -> 0 | AC8: =ввод!$D$32 -> 0 | AD8: =ввод!$D$33 -> 0 | AE8: =ввод!$D$34 -> 0 | AF8: =ввод!$D$35 -> 0
A9: 4 | B9: =ввод!$E$5 -> 0 | C9: =ввод!$E$6 -> 0 | D9: =ввод!$E$7 -> 0 | E9: =ввод!$E$8 -> 0 | F9: =ввод!$E$9 -> 0 | G9: =ввод!$E$10 -> 0 | H9: =ввод!$E$11 -> 0 | I9: =ввод!$E$12 -> 0 | J9: =ввод!$E$13 -> 0 | K9: =ввод!$E$14 -> 0 | L9: =ввод!$E$15 -> 0 | M9: =ввод!$E$16 -> 0 | N9: =ввод!$E$17 -> 0 | O9: =ввод!$E$18 -> 0 | P9: =ввод!$E$19 -> 0 | Q9: =ввод!$E$20 -> 0 | R9: =ввод!$E$21 -> 0 | S9: =ввод!$E$22 -> 0 | T9: =ввод!$E$23 -> 0 | U9: =ввод!$E$24 -> 0 | V9: =ввод!$E$25 -> 0 | W9: =ввод!$E$26 -> 0 | X9: =ввод!$E$27 -> 0 | Y9: =ввод!$E$28 -> 0 | Z9: =ввод!$E$29 -> 0 | AA9: =ввод!$E$30 -> 0 | AB9: =ввод!$E$31 -> 0 | AC9: =ввод!$E$32 -> 0 | AD9: =ввод!$E$33 -> 0 | AE9: =ввод!$E$34 -> 0 | AF9: =ввод!$E$35 -> 0
A10: 5 | B10: =ввод!$F$5 -> 0 | C10: =ввод!$F$6 -> 0 | D10: =ввод!$F$7 -> 0 | E10: =ввод!$F$8 -> 0 | F10: =ввод!$F$9 -> 0 | G10: =ввод!$F$10 -> 0 | H10: =ввод!$F$11 -> 0 | I10: =ввод!$F$12 -> 0 | J10: =ввод!$F$13 -> 0 | K10: =ввод!$F$14 -> 0 | L10: =ввод!$F$15 -> 0 | M10: =ввод!$F$16 -> 0 | N10: =ввод!$F$17 -> 0 | O10: =ввод!$F$18 -> 0 | P10: =ввод!$F$19 -> 0 | Q10: =ввод!$F$20 -> 0 | R10: =ввод!$F$21 -> 0 | S10: =ввод!$F$22 -> 0 | T10: =ввод!$F$23 -> 0 | U10: =ввод!$F$24 -> 0 | V10: =ввод!$F$25 -> 0 | W10: =ввод!$F$26 -> 0 | X10: =ввод!$F$27 -> 0 | Y10: =ввод!$F$28 -> 0 | Z10: =ввод!$F$29 -> 0 | AA10: =ввод!$F$30 -> 0 | AB10: =ввод!$F$31 -> 0 | AC10: =ввод!$F$32 -> 0 | AD10: =ввод!$F$33 -> 0 | AE10: =ввод!$F$34 -> 0 | AF10: =ввод!$F$35 -> 0
A11: 6 | B11: =ввод!$G$5 -> 0 | C11: =ввод!$G$6 -> 0 | D11: =ввод!$G$7 -> 0 | E11: =ввод!$G$8 -> 0 | F11: =ввод!$G$9 -> 0 | G11: =ввод!$G$10 -> 0 | H11: =ввод!$G$11 -> 0 | I11: =ввод!$G$12 -> 0 | J11: =ввод!$G$13 -> 0 | K11: =ввод!$G$14 -> 0 | L11: =ввод!$G$15 -> 0 | M11: =ввод!$G$16 -> 0 | N11: =ввод!$G$17 -> 0 | O11: =ввод!$G$18 -> 0 | P11: =ввод!$G$19 -> 0 | Q11: =ввод!$G$20 -> 0 | R11: =ввод!$G$21 -> 0 | S11: =ввод!$G$22 -> 0 | T11: =ввод!$G$23 -> 0 | U11: =ввод!$G$24 -> 0 | V11: =ввод!$G$25 -> 0 | W11: =ввод!$G$26 -> 0 | X11: =ввод!$G$27 -> 0 | Y11: =ввод!$G$28 -> 0 | Z11: =ввод!$G$29 -> 0 | AA11: =ввод!$G$30 -> 0 | AB11: =ввод!$G$31 -> 0 | AC11: =ввод!$G$32 -> 0 | AD11: =ввод!$G$33 -> 0 | AE11: =ввод!$G$34 -> 0 | AF11: =ввод!$G$35 -> 0
A12: 7 | B12: =ввод!$H$5 -> 0 | C12: =ввод!$H$6 -> 0 | D12: =ввод!$H$7 -> 0 | E12: =ввод!$H$8 -> 0 | F12: =ввод!$H$9 -> 0 | G12: =ввод!$H$10 -> 0 | H12: =ввод!$H$11 -> 0 | I12: =ввод!$H$12 -> 0 | J12: =ввод!$H$13 -> 0 | K12: =ввод!$H$14 -> 0 | L12: =ввод!$H$15 -> 0 | M12: =ввод!$H$16 -> 0 | N12: =ввод!$H$17 -> 0 | O12: =ввод!$H$18 -> 0 | P12: =ввод!$H$19 -> 0 | Q12: =ввод!$H$20 -> 0 | R12: =ввод!$H$21 -> 0 | S12: =ввод!$H$22 -> 0 | T12: =ввод!$H$23 -> 0 | U12: =ввод!$H$24 -> 0 | V12: =ввод!$H$25 -> 0 | W12: =ввод!$H$26 -> 0 | X12: =ввод!$H$27 -> 0 | Y12: =ввод!$H$28 -> 0 | Z12: =ввод!$H$29 -> 0 | AA12: =ввод!$H$30 -> 0 | AB12: =ввод!$H$31 -> 0 | AC12: =ввод!$H$32 -> 0 | AD12: =ввод!$H$33 -> 0 | AE12: =ввод!$H$34 -> 0 | AF12: =ввод!$H$35 -> 0
A13: 8 | B13: =ввод!$I$5 -> 0 | C13: =ввод!$I$6 -> 0 | D13: =ввод!$I$7 -> 0 | E13: =ввод!$I$8 -> 0 | F13: =ввод!$I$9 -> 0 | G13: =ввод!$I$10 -> 0 | H13: =ввод!$I$11 -> 0 | I13: =ввод!$I$12 -> 0 | J13: =ввод!$I$13 -> 0 | K13: =ввод!$I$14 -> 0 | L13: =ввод!$I$15 -> 0 | M13: =ввод!$I$16 -> 0 | N13: =ввод!$I$17 -> 0 | O13: =ввод!$I$18 -> 0 | P13: =ввод!$I$19 -> 0 | Q13: =ввод!$I$20 -> 0 | R13: =ввод!$I$21 -> 0 | S13: =ввод!$I$22 -> 0 | T13: =ввод!$I$23 -> 0 | U13: =ввод!$I$24 -> 0 | V13: =ввод!$I$25 -> 0 | W13: =ввод!$I$26 -> 0 | X13: =ввод!$I$27 -> 0 | Y13: =ввод!$I$28 -> 0 | Z13: =ввод!$I$29 -> 0 | AA13: =ввод!$I$30 -> 0 | AB13: =ввод!$I$31 -> 0 | AC13: =ввод!$I$32 -> 0 | AD13: =ввод!$I$33 -> 0 | AE13: =ввод!$I$34 -> 0 | AF13: =ввод!$I$35 -> 0
A14: 9 | B14: =ввод!$J$5 -> 0 | C14: =ввод!$J$6 -> 0 | D14: =ввод!$J$7 -> 0 | E14: =ввод!$J$8 -> 0 | F14: =ввод!$J$9 -> 0 | G14: =ввод!$J$10 -> 0 | H14: =ввод!$J$11 -> 0 | I14: =ввод!$J$12 -> 0 | J14: =ввод!$J$13 -> 0 | K14: =ввод!$J$14 -> 0 | L14: =ввод!$J$15 -> 0 | M14: =ввод!$J$16 -> 0 | N14: =ввод!$J$17 -> 0 | O14: =ввод!$J$18 -> 0 | P14: =ввод!$J$19 -> 0 | Q14: =ввод!$J$20 -> 0 | R14: =ввод!$J$21 -> 0 | S14: =ввод!$J$22 -> 0 | T14: =ввод!$J$23 -> 0 | U14: =ввод!$J$24 -> 0 | V14: =ввод!$J$25 -> 0 | W14: =ввод!$J$26 -> 0 | X14: =ввод!$J$27 -> 0 | Y14: =ввод!$J$28 -> 0 | Z14: =ввод!$J$29 -> 0 | AA14: =ввод!$J$30 -> 0 | AB14: =ввод!$J$31 -> 0 | AC14: =ввод!$J$32 -> 0 | AD14: =ввод!$J$33 -> 0 | AE14: =ввод!$J$34 -> 0 | AF14: =ввод!$J$35 -> 0
A15: 10 | B15: =ввод!$K$5 -> 0 | C15: =ввод!$K$6 -> 0 | D15: =ввод!$K$7 -> 0 | E15: =ввод!$K$8 -> 0 | F15: =ввод!$K$9 -> 0 | G15: =ввод!$K$10 -> 0 | H15: =ввод!$K$11 -> 0 | I15: =ввод!$K$12 -> 0 | J15: =ввод!$K$13 -> 0 | K15: =ввод!$K$14 -> 0 | L15: =ввод!$K$15 -> 0 | M15: =ввод!$K$16 -> 0 | N15: =ввод!$K$17 -> 0 | O15: =ввод!$K$18 -> 0 | P15: =ввод!$K$19 -> 0 | Q15: =ввод!$K$20 -> 0 | R15: =ввод!$K$21 -> 0 | S15: =ввод!$K$22 -> 0 | T15: =ввод!$K$23 -> 0 | U15: =ввод!$K$24 -> 0 | V15: =ввод!$K$25 -> 0 | W15: =ввод!$K$26 -> 0 | X15: =ввод!$K$27 -> 0 | Y15: =ввод!$K$28 -> 0 | Z15: =ввод!$K$29 -> 0 | AA15: =ввод!$K$30 -> 0 | AB15: =ввод!$K$31 -> 0 | AC15: =ввод!$K$32 -> 0 | AD15: =ввод!$K$33 -> 0 | AE15: =ввод!$K$34 -> 0 | AF15: =ввод!$K$35 -> 0
A16: 11 | B16: =ввод!$L$5 -> 0 | C16: =ввод!$L$6 -> 0 | D16: =ввод!$L$7 -> 0 | E16: =ввод!$L$8 -> 0 | F16: =ввод!$L$9 -> 0 | G16: =ввод!$L$10 -> 0 | H16: =ввод!$L$11 -> 0 | I16: =ввод!$L$12 -> 0 | J16: =ввод!$L$13 -> 0 | K16: =ввод!$L$14 -> 0 | L16: =ввод!$L$15 -> 0 | M16: =ввод!$L$16 -> 0 | N16: =ввод!$L$17 -> 0 | O16: =ввод!$L$18 -> 0 | P16: =ввод!$L$19 -> 0 | Q16: =ввод!$L$20 -> 0 | R16: =ввод!$L$21 -> 0 | S16: =ввод!$L$22 -> 0 | T16: =ввод!$L$23 -> 0 | U16: =ввод!$L$24 -> 0 | V16: =ввод!$L$25 -> 0 | W16: =ввод!$L$26 -> 0 | X16: =ввод!$L$27 -> 0 | Y16: =ввод!$L$28 -> 0 | Z16: =ввод!$L$29 -> 0 | AA16: =ввод!$L$30 -> 0 | AB16: =ввод!$L$31 -> 0 | AC16: =ввод!$L$32 -> 0 | AD16: =ввод!$L$33 -> 0 | AE16: =ввод!$L$34 -> 0 | AF16: =ввод!$L$35 -> 0
A17: 12 | B17: =ввод!$M$5 -> 0 | C17: =ввод!$M$6 -> 0 | D17: =ввод!$M$7 -> 0 | E17: =ввод!$M$8 -> 0 | F17: =ввод!$M$9 -> 0 | G17: =ввод!$M$10 -> 0 | H17: =ввод!$M$11 -> 0 | I17: =ввод!$M$12 -> 0 | J17: =ввод!$M$13 -> 0 | K17: =ввод!$M$14 -> 0 | L17: =ввод!$M$15 -> 0 | M17: =ввод!$M$16 -> 0 | N17: =ввод!$M$17 -> 0 | O17: =ввод!$M$18 -> 0 | P17: =ввод!$M$19 -> 0 | Q17: =ввод!$M$20 -> 0 | R17: =ввод!$M$21 -> 0 | S17: =ввод!$M$22 -> 0 | T17: =ввод!$M$23 -> 0 | U17: =ввод!$M$24 -> 0 | V17: =ввод!$M$25 -> 0 | W17: =ввод!$M$26 -> 0 | X17: =ввод!$M$27 -> 0 | Y17: =ввод!$M$28 -> 0 | Z17: =ввод!$M$29 -> 0 | AA17: =ввод!$M$30 -> 0 | AB17: =ввод!$M$31 -> 0 | AC17: =ввод!$M$32 -> 0 | AD17: =ввод!$M$33 -> 0 | AE17: =ввод!$M$34 -> 0 | AF17: =ввод!$M$35 -> 0
A18: 13 | B18: =ввод!$N$5 -> 0 | C18: =ввод!$N$6 -> 0 | D18: =ввод!$N$7 -> 0 | E18: =ввод!$N$8 -> 0 | F18: =ввод!$N$9 -> 0 | G18: =ввод!$N$10 -> 0 | H18: =ввод!$N$11 -> 0 | I18: =ввод!$N$12 -> 0 | J18: =ввод!$N$13 -> 0 | K18: =ввод!$N$14 -> 0 | L18: =ввод!$N$15 -> 0 | M18: =ввод!$N$16 -> 0 | N18: =ввод!$N$17 -> 0 | O18: =ввод!$N$18 -> 0 | P18: =ввод!$N$19 -> 0 | Q18: =ввод!$N$20 -> 0 | R18: =ввод!$N$21 -> 0 | S18: =ввод!$N$22 -> 0 | T18: =ввод!$N$23 -> 0 | U18: =ввод!$N$24 -> 0 | V18: =ввод!$N$25 -> 0 | W18: =ввод!$N$26 -> 0 | X18: =ввод!$N$27 -> 0 | Y18: =ввод!$N$28 -> 0 | Z18: =ввод!$N$29 -> 0 | AA18: =ввод!$N$30 -> 0 | AB18: =ввод!$N$31 -> 0 | AC18: =ввод!$N$32 -> 0 | AD18: =ввод!$N$33 -> 0 | AE18: =ввод!$N$34 -> 0 | AF18: =ввод!$N$35 -> 0
A19: 14 | B19: =ввод!$O$5 -> 0 | C19: =ввод!$O$6 -> 0 | D19: =ввод!$O$7 -> 0 | E19: =ввод!$O$8 -> 0 | F19: =ввод!$O$9 -> 0 | G19: =ввод!$O$10 -> 0 | H19: =ввод!$O$11 -> 0 | I19: =ввод!$O$12 -> 0 | J19: =ввод!$O$13 -> 0 | K19: =ввод!$O$14 -> 0 | L19: =ввод!$O$15 -> 0 | M19: =ввод!$O$16 -> 0 | N19: =ввод!$O$17 -> 0 | O19: =ввод!$O$18 -> 0 | P19: =ввод!$O$19 -> 0 | Q19: =ввод!$O$20 -> 0 | R19: =ввод!$O$21 -> 0 | S19: =ввод!$O$22 -> 0 | T19: =ввод!$O$23 -> 0 | U19: =ввод!$O$24 -> 0 | V19: =ввод!$O$25 -> 0 | W19: =ввод!$O$26 -> 0 | X19: =ввод!$O$27 -> 0 | Y19: =ввод!$O$28 -> 0 | Z19: =ввод!$O$29 -> 0 | AA19: =ввод!$O$30 -> 0 | AB19: =ввод!$O$31 -> 0 | AC19: =ввод!$O$32 -> 0 | AD19: =ввод!$O$33 -> 0 | AE19: =ввод!$O$34 -> 0 | AF19: =ввод!$O$35 -> 0
A20: 15 | B20: =ввод!$P$5 -> 0 | C20: =ввод!$P$6 -> 0 | D20: =ввод!$P$7 -> 0 | E20: =ввод!$P$8 -> 0 | F20: =ввод!$P$9 -> 0 | G20: =ввод!$P$10 -> 0 | H20: =ввод!$P$11 -> 0 | I20: =ввод!$P$12 -> 0 | J20: =ввод!$P$13 -> 0 | K20: =ввод!$P$14 -> 0 | L20: =ввод!$P$15 -> 0 | M20: =ввод!$P$16 -> 0 | N20: =ввод!$P$17 -> 0 | O20: =ввод!$P$18 -> 0 | P20: =ввод!$P$19 -> 0 | Q20: =ввод!$P$20 -> 0 | R20: =ввод!$P$21 -> 0 | S20: =ввод!$P$22 -> 0 | T20: =ввод!$P$23 -> 0 | U20: =ввод!$P$24 -> 0 | V20: =ввод!$P$25 -> 0 | W20: =ввод!$P$26 -> 0 | X20: =ввод!$P$27 -> 0 | Y20: =ввод!$P$28 -> 0 | Z20: =ввод!$P$29 -> 0 | AA20: =ввод!$P$30 -> 0 | AB20: =ввод!$P$31 -> 0 | AC20: =ввод!$P$32 -> 0 | AD20: =ввод!$P$33 -> 0 | AE20: =ввод!$P$34 -> 0 | AF20: =ввод!$P$35 -> 0
A21: 16 | B21: =ввод!$Q$5 -> 0 | C21: =ввод!$Q$6 -> 0 | D21: =ввод!$Q$7 -> 0 | E21: =ввод!$Q$8 -> 0 | F21: =ввод!$Q$9 -> 0 | G21: =ввод!$Q$10 -> 0 | H21: =ввод!$Q$11 -> 0 | I21: =ввод!$Q$12 -> 0 | J21: =ввод!$Q$13 -> 0 | K21: =ввод!$Q$14 -> 0 | L21: =ввод!$Q$15 -> 0 | M21: =ввод!$Q$16 -> 0 | N21: =ввод!$Q$17 -> 0 | O21: =ввод!$Q$18 -> 0 | P21: =ввод!$Q$19 -> 0 | Q21: =ввод!$Q$20 -> 0 | R21: =ввод!$Q$21 -> 0 | S21: =ввод!$Q$22 -> 0 | T21: =ввод!$Q$23 -> 0 | U21: =ввод!$Q$24 -> 0 | V21: =ввод!$Q$25 -> 0 | W21: =ввод!$Q$26 -> 0 | X21: =ввод!$Q$27 -> 0 | Y21: =ввод!$Q$28 -> 0 | Z21: =ввод!$Q$29 -> 0 | AA21: =ввод!$Q$30 -> 0 | AB21: =ввод!$Q$31 -> 0 | AC21: =ввод!$Q$32 -> 0 | AD21: =ввод!$Q$33 -> 0 | AE21: =ввод!$Q$34 -> 0 | AF21: =ввод!$Q$35 -> 0
A22: 17 | B22: =ввод!$R$5 -> 0 | C22: =ввод!$R$6 -> 0 | D22: =ввод!$R$7 -> 0 | E22: =ввод!$R$8 -> 0 | F22: =ввод!$R$9 -> 0 | G22: =ввод!$R$10 -> 0 | H22: =ввод!$R$11 -> 0 | I22: =ввод!$R$12 -> 0 | J22: =ввод!$R$13 -> 0 | K22: =ввод!$R$14 -> 0 | L22: =ввод!$R$15 -> 0 | M22: =ввод!$R$16 -> 0 | N22: =ввод!$R$17 -> 0 | O22: =ввод!$R$18 -> 0 | P22: =ввод!$R$19 -> 0 | Q22: =ввод!$R$20 -> 0 | R22: =ввод!$R$21 -> 0 | S22: =ввод!$R$22 -> 0 | T22: =ввод!$R$23 -> 0 | U22: =ввод!$R$24 -> 0 | V22: =ввод!$R$25 -> 0 | W22: =ввод!$R$26 -> 0 | X22: =ввод!$R$27 -> 0 | Y22: =ввод!$R$28 -> 0 | Z22: =ввод!$R$29 -> 0 | AA22: =ввод!$R$30 -> 0 | AB22: =ввод!$R$31 -> 0 | AC22: =ввод!$R$32 -> 0 | AD22: =ввод!$R$33 -> 0 | AE22: =ввод!$R$34 -> 0 | AF22: =ввод!$R$35 -> 0
A23: 18 | B23: =ввод!$S$5 -> 0 | C23: =ввод!$S$6 -> 0 | D23: =ввод!$S$7 -> 0 | E23: =ввод!$S$8 -> 0 | F23: =ввод!$S$9 -> 0 | G23: =ввод!$S$10 -> 0 | H23: =ввод!$S$11 -> 0 | I23: =ввод!$S$12 -> 0 | J23: =ввод!$S$13 -> 0 | K23: =ввод!$S$14 -> 0 | L23: =ввод!$S$15 -> 0 | M23: =ввод!$S$16 -> 0 | N23: =ввод!$S$17 -> 0 | O23: =ввод!$S$18 -> 0 | P23: =ввод!$S$19 -> 0 | Q23: =ввод!$S$20 -> 0 | R23: =ввод!$S$21 -> 0 | S23: =ввод!$S$22 -> 0 | T23: =ввод!$S$23 -> 0 | U23: =ввод!$S$24 -> 0 | V23: =ввод!$S$25 -> 0 | W23: =ввод!$S$26 -> 0 | X23: =ввод!$S$27 -> 0 | Y23: =ввод!$S$28 -> 0 | Z23: =ввод!$S$29 -> 0 | AA23: =ввод!$S$30 -> 0 | AB23: =ввод!$S$31 -> 0 | AC23: =ввод!$S$32 -> 0 | AD23: =ввод!$S$33 -> 0 | AE23: =ввод!$S$34 -> 0 | AF23: =ввод!$S$35 -> 0
A24: 19 | B24: =ввод!$T$5 -> 0 | C24: =ввод!$T$6 -> 0 | D24: =ввод!$T$7 -> 0 | E24: =ввод!$T$8 -> 0 | F24: =ввод!$T$9 -> 0 | G24: =ввод!$T$10 -> 0 | H24: =ввод!$T$11 -> 0 | I24: =ввод!$T$12 -> 0 | J24: =ввод!$T$13 -> 0 | K24: =ввод!$T$14 -> 0 | L24: =ввод!$T$15 -> 0 | M24: =ввод!$T$16 -> 0 | N24: =ввод!$T$17 -> 0 | O24: =ввод!$T$18 -> 0 | P24: =ввод!$T$19 -> 0 | Q24: =ввод!$T$20 -> 0 | R24: =ввод!$T$21 -> 0 | S24: =ввод!$T$22 -> 0 | T24: =ввод!$T$23 -> 0 | U24: =ввод!$T$24 -> 0 | V24: =ввод!$T$25 -> 0 | W24: =ввод!$T$26 -> 0 | X24: =ввод!$T$27 -> 0 | Y24: =ввод!$T$28 -> 0 | Z24: =ввод!$T$29 -> 0 | AA24: =ввод!$T$30 -> 0 | AB24: =ввод!$T$31 -> 0 | AC24: =ввод!$T$32 -> 0 | AD24: =ввод!$T$33 -> 0 | AE24: =ввод!$T$34 -> 0 | AF24: =ввод!$T$35 -> 0
A25: 20 | B25: =ввод!$U$5 -> 0 | C25: =ввод!$U$6 -> 0 | D25: =ввод!$U$7 -> 0 | E25: =ввод!$U$8 -> 0 | F25: =ввод!$U$9 -> 0 | G25: =ввод!$U$10 -> 0 | H25: =ввод!$U$11 -> 0 | I25: =ввод!$U$12 -> 0 | J25: =ввод!$U$13 -> 0 | K25: =ввод!$U$14 -> 0 | L25: =ввод!$U$15 -> 0 | M25: =ввод!$U$16 -> 0 | N25: =ввод!$U$17 -> 0 | O25: =ввод!$U$18 -> 0 | P25: =ввод!$U$19 -> 0 | Q25: =ввод!$U$20 -> 0 | R25: =ввод!$U$21 -> 0 | S25: =ввод!$U$22 -> 0 | T25: =ввод!$U$23 -> 0 | U25: =ввод!$U$24 -> 0 | V25: =ввод!$U$25 -> 0 | W25: =ввод!$U$26 -> 0 | X25: =ввод!$U$27 -> 0 | Y25: =ввод!$U$28 -> 0 | Z25: =ввод!$U$29 -> 0 | AA25: =ввод!$U$30 -> 0 | AB25: =ввод!$U$31 -> 0 | AC25: =ввод!$U$32 -> 0 | AD25: =ввод!$U$33 -> 0 | AE25: =ввод!$U$34 -> 0 | AF25: =ввод!$U$35 -> 0
A26: 21 | B26: =ввод!$V$5 -> 0 | C26: =ввод!$V$6 -> 0 | D26: =ввод!$V$7 -> 0 | E26: =ввод!$V$8 -> 0 | F26: =ввод!$V$9 -> 0 | G26: =ввод!$V$10 -> 0 | H26: =ввод!$V$11 -> 0 | I26: =ввод!$V$12 -> 0 | J26: =ввод!$V$13 -> 0 | K26: =ввод!$V$14 -> 0 | L26: =ввод!$V$15 -> 0 | M26: =ввод!$V$16 -> 0 | N26: =ввод!$V$17 -> 0 | O26: =ввод!$V$18 -> 0 | P26: =ввод!$V$19 -> 0 | Q26: =ввод!$V$20 -> 0 | R26: =ввод!$V$21 -> 0 | S26: =ввод!$V$22 -> 0 | T26: =ввод!$V$23 -> 0 | U26: =ввод!$V$24 -> 0 | V26: =ввод!$V$25 -> 0 | W26: =ввод!$V$26 -> 0 | X26: =ввод!$V$27 -> 0 | Y26: =ввод!$V$28 -> 0 | Z26: =ввод!$V$29 -> 0 | AA26: =ввод!$V$30 -> 0 | AB26: =ввод!$V$31 -> 0 | AC26: =ввод!$V$32 -> 0 | AD26: =ввод!$V$33 -> 0 | AE26: =ввод!$V$34 -> 0 | AF26: =ввод!$V$35 -> 0
A27: 22 | B27: =ввод!$W$5 -> 0 | C27: =ввод!$W$6 -> 0 | D27: =ввод!$W$7 -> 0 | E27: =ввод!$W$8 -> 0 | F27: =ввод!$W$9 -> 0 | G27: =ввод!$W$10 -> 0 | H27: =ввод!$W$11 -> 0 | I27: =ввод!$W$12 -> 0 | J27: =ввод!$W$13 -> 0 | K27: =ввод!$W$14 -> 0 | L27: =ввод!$W$15 -> 0 | M27: =ввод!$W$16 -> 0 | N27: =ввод!$W$17 -> 0 | O27: =ввод!$W$18 -> 0 | P27: =ввод!$W$19 -> 0 | Q27: =ввод!$W$20 -> 0 | R27: =ввод!$W$21 -> 0 | S27: =ввод!$W$22 -> 0 | T27: =ввод!$W$23 -> 0 | U27: =ввод!$W$24 -> 0 | V27: =ввод!$W$25 -> 0 | W27: =ввод!$W$26 -> 0 | X27: =ввод!$W$27 -> 0 | Y27: =ввод!$W$28 -> 0 | Z27: =ввод!$W$29 -> 0 | AA27: =ввод!$W$30 -> 0 | AB27: =ввод!$W$31 -> 0 | AC27: =ввод!$W$32 -> 0 | AD27: =ввод!$W$33 -> 0 | AE27: =ввод!$W$34 -> 0 | AF27: =ввод!$W$35 -> 0
A28: 23 | B28: =ввод!$X$5 -> 0 | C28: =ввод!$X$6 -> 0 | D28: =ввод!$X$7 -> 0 | E28: =ввод!$X$8 -> 0 | F28: =ввод!$X$9 -> 0 | G28: =ввод!$X$10 -> 0 | H28: =ввод!$X$11 -> 0 | I28: =ввод!$X$12 -> 0 | J28: =ввод!$X$13 -> 0 | K28: =ввод!$X$14 -> 0 | L28: =ввод!$X$15 -> 0 | M28: =ввод!$X$16 -> 0 | N28: =ввод!$X$17 -> 0 | O28: =ввод!$X$18 -> 0 | P28: =ввод!$X$19 -> 0 | Q28: =ввод!$X$20 -> 0 | R28: =ввод!$X$21 -> 0 | S28: =ввод!$X$22 -> 0 | T28: =ввод!$X$23 -> 0 | U28: =ввод!$X$24 -> 0 | V28: =ввод!$X$25 -> 0 | W28: =ввод!$X$26 -> 0 | X28: =ввод!$X$27 -> 0 | Y28: =ввод!$X$28 -> 0 | Z28: =ввод!$X$29 -> 0 | AA28: =ввод!$X$30 -> 0 | AB28: =ввод!$X$31 -> 0 | AC28: =ввод!$X$32 -> 0 | AD28: =ввод!$X$33 -> 0 | AE28: =ввод!$X$34 -> 0 | AF28: =ввод!$X$35 -> 0
A29: 24 | B29: =ввод!$Y$5 -> 0 | C29: =ввод!$Y$6 -> 0 | D29: =ввод!$Y$7 -> 0 | E29: =ввод!$Y$8 -> 0 | F29: =ввод!$Y$9 -> 0 | G29: =ввод!$Y$10 -> 0 | H29: =ввод!$Y$11 -> 0 | I29: =ввод!$Y$12 -> 0 | J29: =ввод!$Y$13 -> 0 | K29: =ввод!$Y$14 -> 0 | L29: =ввод!$Y$15 -> 0 | M29: =ввод!$Y$16 -> 0 | N29: =ввод!$Y$17 -> 0 | O29: =ввод!$Y$18 -> 0 | P29: =ввод!$Y$19 -> 0 | Q29: =ввод!$Y$20 -> 0 | R29: =ввод!$Y$21 -> 0 | S29: =ввод!$Y$22 -> 0 | T29: =ввод!$Y$23 -> 0 | U29: =ввод!$Y$24 -> 0 | V29: =ввод!$Y$25 -> 0 | W29: =ввод!$Y$26 -> 0 | X29: =ввод!$Y$27 -> 0 | Y29: =ввод!$Y$28 -> 0 | Z29: =ввод!$Y$29 -> 0 | AA29: =ввод!$Y$30 -> 0 | AB29: =ввод!$Y$31 -> 0 | AC29: =ввод!$Y$32 -> 0 | AD29: =ввод!$Y$33 -> 0 | AE29: =ввод!$Y$34 -> 0 | AF29: =ввод!$Y$35 -> 0
A31: итог | B31: =SUM(B6:B29) -> 0 | C31: =SUM(C6:C29) -> 0 | D31: 0 | E31: 0 | F31: 0 | G31: 0 | H31: 0 | I31: 0 | J31: 0 | K31: 0 | L31: 0 | M31: 0 | N31: 0 | O31: 0 | P31: 0 | Q31: 0 | R31: 0 | S31: 0 | T31: 0 | U31: 0 | V31: 0 | W31: 0 | X31: 0 | Y31: 0 | Z31: 0 | AA31: 0 | AB31: 0 | AC31: 0 | AD31: 0 | AE31: 0 | AF31: 0 | AG31: =SUM(B6:AF30) -> 0
B36: 1 | C36: 2 | D36: 3 | E36: 4 | F36: 5 | G36: 6 | H36: 7 | I36: 8 | J36: 9 | K36: 10 | L36: 11 | M36: 12 | N36: 13 | O36: 14 | P36: 15 | Q36: 16 | R36: 17 | S36: 18 | T36: 19 | U36: 20 | V36: 21 | W36: 22 | X36: 23 | Y36: 24 | Z36: 25 | AA36: 26 | AB36: 27 | AC36: 28 | AD36: 29 | AE36: 30 | AF36: 31
A37: 1 | B37: =B6 -> 0 | C37: =C6+(B60-ROUND(B60,0)) -> 0 | D37: =D6+(C60-ROUND(C60,0)) -> 0 | E37: 0 | F37: 0 | G37: 0 | H37: 0 | I37: 0 | J37: 0 | K37: 0 | L37: 0 | M37: 0 | N37: 0 | O37: 0 | P37: 0 | Q37: 0 | R37: 0 | S37: 0 | T37: 0 | U37: 0 | V37: 0 | W37: 0 | X37: 0 | Y37: 0 | Z37: 0 | AA37: 0 | AB37: 0 | AC37: =AC6+(AB60-ROUND(AB60,0)) -> 0 | AD37: =AD6+(AC60-ROUND(AC60,0)) -> 0 | AE37: =AE6+(AD60-ROUND(AD60,0)) -> 0 | AF37: =AF6+(AE60-ROUND(AE60,0)) -> 0
A38: 2 | B38: =B7+(B37-ROUND(B37,0)) -> 0 | C38: =C7+(C37-ROUND(C37,0)) -> 0 | D38: =D7+(D37-ROUND(D37,0)) -> 0 | E38: 0 | F38: 0 | G38: 0 | H38: 0 | I38: 0 | J38: 0 | K38: 0 | L38: 0 | M38: 0 | N38: 0 | O38: 0 | P38: 0 | Q38: 0 | R38: 0 | S38: 0 | T38: 0 | U38: 0 | V38: 0 | W38: 0 | X38: 0 | Y38: 0 | Z38: 0 | AA38: 0 | AB38: 0 | AC38: =AC7+(AC37-ROUND(AC37,0)) -> 0 | AD38: =AD7+(AD37-ROUND(AD37,0)) -> 0 | AE38: =AE7+(AE37-ROUND(AE37,0)) -> 0 | AF38: =AF7+(AF37-ROUND(AF37,0)) -> 0
A39: 3 | B39: =B8+(B38-ROUND(B38,0)) -> 0 | C39: 0 | D39: 0 | E39: 0 | F39: 0 | G39: 0 | H39: 0 | I39: 0 | J39: 0 | K39: 0 | L39: 0 | M39: 0 | N39: 0 | O39: 0 | P39: 0 | Q39: 0 | R39: 0 | S39: 0 | T39: 0 | U39: 0 | V39: 0 | W39: 0 | X39: 0 | Y39: 0 | Z39: 0 | AA39: 0 | AB39: 0 | AC39: 0 | AD39: =AD8+(AD38-ROUND(AD38,0)) -> 0 | AE39: 0 | AF39: 0
A40: 4 | B40: 0 | C40: 0 | D40: 0 | E40: 0 | F40: 0 | G40: 0 | H40: 0 | I40: 0 | J40: 0 | K40: 0 | L40: 0 | M40: 0 | N40: 0 | O40: 0 | P40: 0 | Q40: 0 | R40: 0 | S40: 0 | T40: 0 | U40: 0 | V40: 0 | W40: 0 | X40: 0 | Y40: 0 | Z40: 0 | AA40: 0 | AB40: 0 | AC40: 0 | AD40: 0 | AE40: 0 | AF40: 0
A41: 5 | B41: 0 | C41: 0 | D41: 0 | E41: 0 | F41: 0 | G41: 0 | H41: 0 | I41: 0 | J41: 0 | K41: 0 | L41: 0 | M41: 0 | N41: 0 | O41: 0 | P41: 0 | Q41: 0 | R41: 0 | S41: 0 | T41: 0 | U41: 0 | V41: 0 | W41: 0 | X41: 0 | Y41: 0 | Z41: 0 | AA41: 0 | AB41: 0 | AC41: 0 | AD41: 0 | AE41: 0 | AF41: 0
A42: 6 | B42: 0 | C42: 0 | D42: 0 | E42: 0 | F42: 0 | G42: 0 | H42: 0 | I42: 0 | J42: 0 | K42: 0 | L42: 0 | M42: 0 | N42: 0 | O42: 0 | P42: 0 | Q42: 0 | R42: 0 | S42: 0 | T42: 0 | U42: 0 | V42: 0 | W42: 0 | X42: 0 | Y42: 0 | Z42: 0 | AA42: 0 | AB42: 0 | AC42: 0 | AD42: 0 | AE42: 0 | AF42: 0
A43: 7 | B43: 0 | C43: 0 | D43: 0 | E43: 0 | F43: 0 | G43: 0 | H43: 0 | I43: 0 | J43: 0 | K43: 0 | L43: 0 | M43: 0 | N43: 0 | O43: 0 | P43: 0 | Q43: 0 | R43: 0 | S43: 0 | T43: 0 | U43: 0 | V43: 0 | W43: 0 | X43: 0 | Y43: 0 | Z43: 0 | AA43: 0 | AB43: 0 | AC43: 0 | AD43: 0 | AE43: 0 | AF43: 0
A44: 8 | B44: 0 | C44: 0 | D44: 0 | E44: 0 | F44: 0 | G44: 0 | H44: 0 | I44: 0 | J44: 0 | K44: 0 | L44: 0 | M44: 0 | N44: 0 | O44: 0 | P44: 0 | Q44: 0 | R44: 0 | S44: 0 | T44: 0 | U44: 0 | V44: 0 | W44: 0 | X44: 0 | Y44: 0 | Z44: 0 | AA44: 0 | AB44: 0 | AC44: 0 | AD44: 0 | AE44: 0 | AF44: 0
A45: 9 | B45: 0 | C45: 0 | D45: 0 | E45: 0 | F45: 0 | G45: 0 | H45: 0 | I45: 0 | J45: 0 | K45: 0 | L45: 0 | M45: 0 | N45: 0 | O45: 0 | P45: 0 | Q45: 0 | R45: 0 | S45: 0 | T45: 0 | U45: 0 | V45: 0 | W45: 0 | X45: 0 | Y45: 0 | Z45: 0 | AA45: 0 | AB45: 0 | AC45: 0 | AD45: 0 | AE45: 0 | AF45: 0
A46: 10 | B46: 0 | C46: 0 | D46: 0 | E46: 0 | F46: 0 | G46: 0 | H46: 0 | I46: 0 | J46: 0 | K46: 0 | L46: 0 | M46: 0 | N46: 0 | O46: 0 | P46: 0 | Q46: 0 | R46: 0 | S46: 0 | T46: 0 | U46: 0 | V46: 0 | W46: 0 | X46: 0 | Y46: 0 | Z46: 0 | AA46: 0 | AB46: 0 | AC46: 0 | AD46: 0 | AE46: 0 | AF46: 0
A47: 11 | B47: 0 | C47: 0 | D47: 0 | E47: 0 | F47: 0 | G47: 0 | H47: 0 | I47: 0 | J47: 0 | K47: 0 | L47: 0 | M47: 0 | N47: 0 | O47: 0 | P47: 0 | Q47: 0 | R47: 0 | S47: 0 | T47: 0 | U47: 0 | V47: 0 | W47: 0 | X47: 0 | Y47: 0 | Z47: 0 | AA47: 0 | AB47: 0 | AC47: 0 | AD47: 0 | AE47: 0 | AF47: 0
A48: 12 | B48: 0 | C48: 0 | D48: 0 | E48: 0 | F48: 0 | G48: 0 | H48: 0 | I48: 0 | J48: 0 | K48: 0 | L48: 0 | M48: 0 | N48: 0 | O48: 0 | P48: 0 | Q48: 0 | R48: 0 | S48: 0 | T48: 0 | U48: 0 | V48: 0 | W48: 0 | X48: 0 | Y48: 0 | Z48: 0 | AA48: 0 | AB48: =AB17+(AB47-ROUND(AB47,0)) -> 0 | AC48: 0 | AD48: 0 | AE48: 0 | AF48: 0
A49: 13 | B49: 0 | C49: 0 | D49: 0 | E49: 0 | F49: 0 | G49: 0 | H49: 0 | I49: 0 | J49: 0 | K49: 0 | L49: 0 | M49: 0 | N49: 0 | O49: 0 | P49: 0 | Q49: 0 | R49: =R18+(R48-ROUND(R48,0)) -> 0 | S49: 0 | T49: 0 | U49: 0 | V49: 0 | W49: 0 | X49: 0 | Y49: 0 | Z49: 0 | AA49: 0 | AB49: 0 | AC49: 0 | AD49: 0 | AE49: 0 | AF49: 0
A50: 14 | B50: 0 | C50: 0 | D50: 0 | E50: 0 | F50: 0 | G50: 0 | H50: 0 | I50: 0 | J50: 0 | K50: 0 | L50: 0 | M50: 0 | N50: 0 | O50: 0 | P50: 0 | Q50: 0 | R50: 0 | S50: 0 | T50: 0 | U50: 0 | V50: 0 | W50: 0 | X50: 0 | Y50: 0 | Z50: 0 | AA50: 0 | AB50: 0 | AC50: 0 | AD50: 0 | AE50: 0 | AF50: 0
A51: 15 | B51: 0 | C51: 0 | D51: 0 | E51: 0 | F51: 0 | G51: 0 | H51: 0 | I51: 0 | J51: 0 | K51: 0 | L51: 0 | M51: 0 | N51: 0 | O51: 0 | P51: 0 | Q51: 0 | R51: 0 | S51: 0 | T51: 0 | U51: 0 | V51: 0 | W51: 0 | X51: 0 | Y51: 0 | Z51: 0 | AA51: 0 | AB51: 0 | AC51: 0 | AD51: 0 | AE51: 0 | AF51: 0
A52: 16 | B52: 0 | C52: 0 | D52: 0 | E52: 0 | F52: 0 | G52: =G21+(G51-ROUND(G51,0)) -> 0 | H52: 0 | I52: 0 | J52: 0 | K52: 0 | L52: 0 | M52: 0 | N52: 0 | O52: 0 | P52: 0 | Q52: 0 | R52: 0 | S52: 0 | T52: 0 | U52: 0 | V52: 0 | W52: 0 | X52: 0 | Y52: 0 | Z52: 0 | AA52: 0 | AB52: 0 | AC52: 0 | AD52: 0 | AE52: 0 | AF52: 0
A53: 17 | B53: 0 | C53: 0 | D53: 0 | E53: 0 | F53: 0 | G53: 0 | H53: 0 | I53: 0 | J53: 0 | K53: 0 | L53: 0 | M53: 0 | N53: 0 | O53: 0 | P53: 0 | Q53: 0 | R53: 0 | S53: 0 | T53: 0 | U53: 0 | V53: 0 | W53: 0 | X53: 0 | Y53: 0 | Z53: 0 | AA53: 0 | AB53: 0 | AC53: 0 | AD53: 0 | AE53: 0 | AF53: 0
A54: 18 | B54: 0 | C54: 0 | D54: 0 | E54: 0 | F54: 0 | G54: 0 | H54: 0 | I54: 0 | J54: 0 | K54: 0 | L54: 0 | M54: 0 | N54: 0 | O54: 0 | P54: 0 | Q54: 0 | R54: 0 | S54: 0 | T54: 0 | U54: 0 | V54: 0 | W54: 0 | X54: 0 | Y54: 0 | Z54: 0 | AA54: 0 | AB54: 0 | AC54: 0 | AD54: 0 | AE54: 0 | AF54: 0
A55: 19 | B55: =B24+(B54-ROUND(B54,0)) -> 0 | C55: 0 | D55: 0 | E55: 0 | F55: 0 | G55: 0 | H55: 0 | I55: 0 | J55: 0 | K55: 0 | L55: 0 | M55: 0 | N55: 0 | O55: 0 | P55: 0 | Q55: 0 | R55: 0 | S55: 0 | T55: 0 | U55: 0 | V55: 0 | W55: 0 | X55: 0 | Y55: 0 | Z55: 0 | AA55: 0 | AB55: 0 | AC55: 0 | AD55: 0 | AE55: 0 | AF55: 0
A56: 20 | B56: 0 | C56: 0 | D56: 0 | E56: 0 | F56: 0 | G56: 0 | H56: 0 | I56: 0 | J56: 0 | K56: 0 | L56: 0 | M56: 0 | N56: 0 | O56: 0 | P56: 0 | Q56: 0 | R56: 0 | S56: 0 | T56: 0 | U56: 0 | V56: 0 | W56: 0 | X56: 0 | Y56: 0 | Z56: =Z25+(Z55-ROUND(Z55,0)) -> 0 | AA56: 0 | AB56: 0 | AC56: 0 | AD56: 0 | AE56: 0 | AF56: 0
A57: 21 | B57: 0 | C57: 0 | D57: 0 | E57: 0 | F57: 0 | G57: 0 | H57: 0 | I57: 0 | J57: 0 | K57: 0 | L57: 0 | M57: 0 | N57: 0 | O57: 0 | P57: 0 | Q57: 0 | R57: 0 | S57: 0 | T57: 0 | U57: 0 | V57: 0 | W57: 0 | X57: 0 | Y57: 0 | Z57: 0 | AA57: 0 | AB57: 0 | AC57: 0 | AD57: 0 | AE57: 0 | AF57: 0
A58: 22 | B58: 0 | C58: 0 | D58: 0 | E58: 0 | F58: 0 | G58: 0 | H58: 0 | I58: 0 | J58: 0 | K58: 0 | L58: 0 | M58: 0 | N58: 0 | O58: 0 | P58: 0 | Q58: 0 | R58: 0 | S58: 0 | T58: 0 | U58: 0 | V58: 0 | W58: 0 | X58: 0 | Y58: 0 | Z58: 0 | AA58: 0 | AB58: 0 | AC58: 0 | AD58: 0 | AE58: 0 | AF58: 0
A59: 23 | B59: 0 | C59: 0 | D59: 0 | E59: 0 | F59: 0 | G59: 0 | H59: 0 | I59: 0 | J59: 0 | K59: 0 | L59: 0 | M59: 0 | N59: 0 | O59: 0 | P59: 0 | Q59: 0 | R59: 0 | S59: 0 | T59: 0 | U59: 0 | V59: 0 | W59: 0 | X59: 0 | Y59: 0 | Z59: 0 | AA59: 0 | AB59: 0 | AC59: 0 | AD59: 0 | AE59: 0 | AF59: 0
A60: 24 | B60: =B29+(B59-ROUND(B59,0)) -> 0 | C60: 0 | D60: 0 | E60: 0 | F60: 0 | G60: 0 | H60: 0 | I60: 0 | J60: 0 | K60: 0 | L60: 0 | M60: 0 | N60: 0 | O60: 0 | P60: 0 | Q60: 0 | R60: 0 | S60: 0 | T60: 0 | U60: 0 | V60: 0 | W60: 0 | X60: 0 | Y60: 0 | Z60: 0 | AA60: 0 | AB60: 0 | AC60: 0 | AD60: 0 | AE60: 0 | AF60: 0
A62: итог | B62: =SUM(B37:B60) -> 0 | C62: =SUM(C37:C60) -> 0 | D62: 0 | E62: 0 | F62: 0 | G62: 0 | H62: 0 | I62: 0 | J62: 0 | K62: 0 | L62: 0 | M62: 0 | N62: 0 | O62: 0 | P62: 0 | Q62: 0 | R62: 0 | S62: 0 | T62: 0 | U62: 0 | V62: 0 | W62: 0 | X62: 0 | Y62: 0 | Z62: 0 | AA62: 0 | AB62: 0 | AC62: 0 | AD62: 0 | AE62: =SUM(AE37:AE60) -> 0 | AF62: =SUM(AF37:AF60) -> 0
B65: 1 | C65: 2 | D65: 3 | E65: 4 | F65: 5 | G65: 6 | H65: 7 | I65: 8 | J65: 9 | K65: 10 | L65: 11 | M65: 12 | N65: 13 | O65: 14 | P65: 15 | Q65: 16 | R65: 17 | S65: 18 | T65: 19 | U65: 20 | V65: 21 | W65: 22 | X65: 23 | Y65: 24 | Z65: 25 | AA65: 26 | AB65: 27 | AC65: 28 | AD65: 29 | AE65: 30 | AF65: 31
A66: 1 | B66: =ROUND(B37,0) -> 0 | C66: =ROUND(C37,0) -> 0 | D66: 0 | E66: 0 | F66: 0 | G66: 0 | H66: 0 | I66: 0 | J66: 0 | K66: 0 | L66: 0 | M66: 0 | N66: 0 | O66: 0 | P66: 0 | Q66: 0 | R66: 0 | S66: 0 | T66: 0 | U66: 0 | V66: 0 | W66: 0 | X66: =ROUND(X37,0) -> 0 | Y66: 0 | Z66: 0 | AA66: 0 | AB66: 0 | AC66: 0 | AD66: 0 | AE66: 0 | AF66: 0
A67: 2 | B67: =ROUND(B38,0) -> 0 | C67: 0 | D67: 0 | E67: 0 | F67: 0 | G67: 0 | H67: 0 | I67: 0 | J67: 0 | K67: 0 | L67: 0 | M67: 0 | N67: 0 | O67: 0 | P67: 0 | Q67: 0 | R67: 0 | S67: 0 | T67: 0 | U67: 0 | V67: 0 | W67: 0 | X67: 0 | Y67: 0 | Z67: 0 | AA67: 0 | AB67: 0 | AC67: 0 | AD67: 0 | AE67: 0 | AF67: 0
A68: 3 | B68: 0 | C68: 0 | D68: 0 | E68: 0 | F68: 0 | G68: 0 | H68: 0 | I68: 0 | J68: 0 | K68: 0 | L68: 0 | M68: 0 | N68: 0 | O68: 0 | P68: 0 | Q68: 0 | R68: 0 | S68: 0 | T68: 0 | U68: 0 | V68: 0 | W68: 0 | X68: 0 | Y68: 0 | Z68: 0 | AA68: 0 | AB68: 0 | AC68: 0 | AD68: 0 | AE68: 0 | AF68: 0
A69: 4 | B69: 0 | C69: 0 | D69: 0 | E69: 0 | F69: 0 | G69: 0 | H69: 0 | I69: 0 | J69: 0 | K69: 0 | L69: 0 | M69: 0 | N69: 0 | O69: 0 | P69: 0 | Q69: 0 | R69: 0 | S69: 0 | T69: 0 | U69: 0 | V69: 0 | W69: 0 | X69: =ROUND(X40,0) -> 0 | Y69: 0 | Z69: 0 | AA69: 0 | AB69: 0 | AC69: 0 | AD69: 0 | AE69: 0 | AF69: 0
A70: 5 | B70: 0 | C70: 0 | D70: 0 | E70: 0 | F70: 0 | G70: 0 | H70: 0 | I70: 0 | J70: 0 | K70: 0 | L70: 0 | M70: 0 | N70: 0 | O70: 0 | P70: 0 | Q70: 0 | R70: 0 | S70: 0 | T70: 0 | U70: 0 | V70: 0 | W70: 0 | X70: 0 | Y70: 0 | Z70: 0 | AA70: 0 | AB70: 0 | AC70: 0 | AD70: 0 | AE70: 0 | AF70: 0
A71: 6 | B71: 0 | C71: 0 | D71: 0 | E71: 0 | F71: 0 | G71: 0 | H71: 0 | I71: 0 | J71: 0 | K71: 0 | L71: 0 | M71: 0 | N71: 0 | O71: 0 | P71: 0 | Q71: 0 | R71: 0 | S71: 0 | T71: 0 | U71: 0 | V71: 0 | W71: 0 | X71: 0 | Y71: 0 | Z71: 0 | AA71: 0 | AB71: 0 | AC71: 0 | AD71: 0 | AE71: 0 | AF71: 0
A72: 7 | B72: 0 | C72: 0 | D72: 0 | E72: 0 | F72: 0 | G72: 0 | H72: 0 | I72: 0 | J72: 0 | K72: 0 | L72: 0 | M72: 0 | N72: 0 | O72: 0 | P72: 0 | Q72: 0 | R72: 0 | S72: 0 | T72: 0 | U72: 0 | V72: 0 | W72: 0 | X72: 0 | Y72: 0 | Z72: 0 | AA72: 0 | AB72: 0 | AC72: 0 | AD72: 0 | AE72: 0 | AF72: 0
A73: 8 | B73: 0 | C73: 0 | D73: 0 | E73: 0 | F73: 0 | G73: 0 | H73: 0 | I73: 0 | J73: 0 | K73: 0 | L73: 0 | M73: 0 | N73: 0 | O73: 0 | P73: 0 | Q73: 0 | R73: 0 | S73: 0 | T73: 0 | U73: 0 | V73: 0 | W73: 0 | X73: 0 | Y73: 0 | Z73: 0 | AA73: 0 | AB73: 0 | AC73: 0 | AD73: 0 | AE73: 0 | AF73: 0
A74: 9 | B74: 0 | C74: 0 | D74: 0 | E74: 0 | F74: 0 | G74: 0 | H74: 0 | I74: 0 | J74: 0 | K74: 0 | L74: 0 | M74: 0 | N74: 0 | O74: 0 | P74: 0 | Q74: 0 | R74: 0 | S74: 0 | T74: =ROUND(T45,0) -> 0 | U74: 0 | V74: 0 | W74: 0 | X74: 0 | Y74: 0 | Z74: 0 | AA74: 0 | AB74: 0 | AC74: 0 | AD74: 0 | AE74: 0 | AF74: 0
A75: 10 | B75: 0 | C75: 0 | D75: 0 | E75: 0 | F75: 0 | G75: 0 | H75: 0 | I75: 0 | J75: 0 | K75: 0 | L75: 0 | M75: 0 | N75: 0 | O75: 0 | P75: 0 | Q75: 0 | R75: 0 | S75: 0 | T75: 0 | U75: 0 | V75: 0 | W75: 0 | X75: 0 | Y75: 0 | Z75: 0 | AA75: 0 | AB75: 0 | AC75: 0 | AD75: 0 | AE75: 0 | AF75: 0
A76: 11 | B76: 0 | C76: 0 | D76: 0 | E76: 0 | F76: 0 | G76: 0 | H76: 0 | I76: 0 | J76: 0 | K76: 0 | L76: 0 | M76: 0 | N76: 0 | O76: 0 | P76: 0 | Q76: 0 | R76: 0 | S76: 0 | T76: 0 | U76: 0 | V76: 0 | W76: 0 | X76: 0 | Y76: 0 | Z76: 0 | AA76: 0 | AB76: 0 | AC76: 0 | AD76: 0 | AE76: 0 | AF76: 0
A77: 12 | B77: 0 | C77: 0 | D77: 0 | E77: 0 | F77: 0 | G77: 0 | H77: 0 | I77: 0 | J77: 0 | K77: 0 | L77: 0 | M77: 0 | N77: 0 | O77: 0 | P77: 0 | Q77: 0 | R77: 0 | S77: 0 | T77: 0 | U77: 0 | V77: 0 | W77: 0 | X77: 0 | Y77: 0 | Z77: 0 | AA77: 0 | AB77: 0 | AC77: 0 | AD77: 0 | AE77: 0 | AF77: 0
A78: 13 | B78: 0 | C78: 0 | D78: 0 | E78: 0 | F78: 0 | G78: 0 | H78: 0 | I78: 0 | J78: 0 | K78: 0 | L78: 0 | M78: 0 | N78: 0 | O78: 0 | P78: 0 | Q78: 0 | R78: 0 | S78: 0 | T78: 0 | U78: 0 | V78: 0 | W78: 0 | X78: 0 | Y78: 0 | Z78: 0 | AA78: 0 | AB78: 0 | AC78: 0 | AD78: 0 | AE78: 0 | AF78: 0
A79: 14 | B79: 0 | C79: 0 | D79: 0 | E79: 0 | F79: 0 | G79: 0 | H79: 0 | I79: 0 | J79: 0 | K79: 0 | L79: 0 | M79: 0 | N79: 0 | O79: 0 | P79: 0 | Q79: 0 | R79: 0 | S79: 0 | T79: 0 | U79: 0 | V79: 0 | W79: 0 | X79: 0 | Y79: 0 | Z79: 0 | AA79: 0 | AB79: 0 | AC79: 0 | AD79: 0 | AE79: 0 | AF79: 0
A80: 15 | B80: 0 | C80: 0 | D80: 0 | E80: 0 | F80: 0 | G80: =ROUND(G51,0) -> 0 | H80: 0 | I80: 0 | J80: 0 | K80: 0 | L80: 0 | M80: 0 | N80: 0 | O80: 0 | P80: 0 | Q80: 0 | R80: 0 | S80: 0 | T80: 0 | U80: 0 | V80: 0 | W80: 0 | X80: 0 | Y80: 0 | Z80: 0 | AA80: 0 | AB80: 0 | AC80: 0 | AD80: 0 | AE80: 0 | AF80: 0
A81: 16 | B81: 0 | C81: 0 | D81: 0 | E81: 0 | F81: 0 | G81: =ROUND(G52,0) -> 0 | H81: 0 | I81: 0 | J81: 0 | K81: 0 | L81: 0 | M81: 0 | N81: 0 | O81: 0 | P81: 0 | Q81: 0 | R81: 0 | S81: 0 | T81: 0 | U81: 0 | V81: 0 | W81: 0 | X81: 0 | Y81: 0 | Z81: 0 | AA81: 0 | AB81: 0 | AC81: 0 | AD81: 0 | AE81: 0 | AF81: 0
A82: 17 | B82: 0 | C82: 0 | D82: 0 | E82: 0 | F82: 0 | G82: 0 | H82: 0 | I82: 0 | J82: 0 | K82: 0 | L82: 0 | M82: 0 | N82: 0 | O82: 0 | P82: 0 | Q82: 0 | R82: 0 | S82: 0 | T82: 0 | U82: 0 | V82: 0 | W82: 0 | X82: 0 | Y82: 0 | Z82: 0 | AA82: 0 | AB82: 0 | AC82: 0 | AD82: 0 | AE82: 0 | AF82: 0
A83: 18 | B83: =ROUND(B54,0) -> 0 | C83: 0 | D83: 0 | E83: 0 | F83: 0 | G83: 0 | H83: 0 | I83: 0 | J83: 0 | K83: 0 | L83: 0 | M83: 0 | N83: 0 | O83: 0 | P83: 0 | Q83: 0 | R83: 0 | S83: 0 | T83: 0 | U83: 0 | V83: 0 | W83: 0 | X83: 0 | Y83: 0 | Z83: 0 | AA83: 0 | AB83: 0 | AC83: 0 | AD83: 0 | AE83: 0 | AF83: 0
A84: 19 | B84: 0 | C84: 0 | D84: 0 | E84: 0 | F84: 0 | G84: 0 | H84: 0 | I84: 0 | J84: 0 | K84: 0 | L84: 0 | M84: 0 | N84: 0 | O84: 0 | P84: 0 | Q84: 0 | R84: 0 | S84: 0 | T84: 0 | U84: 0 | V84: 0 | W84: 0 | X84: 0 | Y84: 0 | Z84: 0 | AA84: 0 | AB84: 0 | AC84: 0 | AD84: 0 | AE84: 0 | AF84: 0
A85: 20 | B85: 0 | C85: 0 | D85: 0 | E85: 0 | F85: 0 | G85: 0 | H85: 0 | I85: 0 | J85: 0 | K85: 0 | L85: 0 | M85: 0 | N85: 0 | O85: 0 | P85: 0 | Q85: 0 | R85: 0 | S85: 0 | T85: 0 | U85: 0 | V85: 0 | W85: 0 | X85: 0 | Y85: 0 | Z85: 0 | AA85: 0 | AB85: 0 | AC85: 0 | AD85: 0 | AE85: 0 | AF85: 0
A86: 21 | B86: 0 | C86: 0 | D86: 0 | E86: 0 | F86: 0 | G86: 0 | H86: 0 | I86: 0 | J86: 0 | K86: 0 | L86: 0 | M86: 0 | N86: 0 | O86: 0 | P86: 0 | Q86: 0 | R86: 0 | S86: 0 | T86: 0 | U86: 0 | V86: 0 | W86: 0 | X86: 0 | Y86: 0 | Z86: 0 | AA86: 0 | AB86: 0 | AC86: 0 | AD86: 0 | AE86: 0 | AF86: 0
A87: 22 | B87: 0 | C87: 0 | D87: 0 | E87: 0 | F87: 0 | G87: 0 | H87: 0 | I87: 0 | J87: 0 | K87: 0 | L87: 0 | M87: 0 | N87: 0 | O87: 0 | P87: 0 | Q87: 0 | R87: 0 | S87: 0 | T87: 0 | U87: 0 | V87: 0 | W87: 0 | X87: 0 | Y87: 0 | Z87: 0 | AA87: 0 | AB87: 0 | AC87: 0 | AD87: 0 | AE87: 0 | AF87: 0
A88: 23 | B88: 0 | C88: 0 | D88: 0 | E88: 0 | F88: 0 | G88: 0 | H88: 0 | I88: 0 | J88: 0 | K88: 0 | L88: 0 | M88: 0 | N88: 0 | O88: 0 | P88: 0 | Q88: 0 | R88: 0 | S88: 0 | T88: 0 | U88: 0 | V88: 0 | W88: 0 | X88: 0 | Y88: =ROUND(Y59,0) -> 0 | Z88: 0 | AA88: 0 | AB88: 0 | AC88: 0 | AD88: 0 | AE88: 0 | AF88: 0
A89: 24 | B89: 0 | C89: 0 | D89: 0 | E89: 0 | F89: 0 | G89: 0 | H89: 0 | I89: 0 | J89: 0 | K89: 0 | L89: 0 | M89: 0 | N89: 0 | O89: 0 | P89: 0 | Q89: 0 | R89: 0 | S89: 0 | T89: 0 | U89: 0 | V89: 0 | W89: 0 | X89: 0 | Y89: 0 | Z89: 0 | AA89: 0 | AB89: 0 | AC89: 0 | AD89: 0 | AE89: 0 | AF89: =ROUND(AF60,0) -> 0
A91: итог | B91: =SUM(B66:B89) -> 0 | C91: 0 | D91: 0 | E91: 0 | F91: 0 | G91: 0 | H91: 0 | I91: 0 | J91: 0 | K91: 0 | L91: 0 | M91: 0 | N91: 0 | O91: 0 | P91: 0 | Q91: 0 | R91: 0 | S91: 0 | T91: 0 | U91: 0 | V91: 0 | W91: 0 | X91: 0 | Y91: 0 | Z91: 0 | AA91: 0 | AB91: 0 | AC91: 0 | AD91: 0 | AE91: 0 | AF91: 0 | AG91: =SUM(B91:AF91) -> 0

Sheet Нерег.цена
A2: Составляющие предельных уровней нерегулируемых цен
A3: за расчетный период | B3: =мощность!H1 -> 2026-02-01
A4: для ГТП | B4: PTVERENE
A5: участника оптового рынка | B5: АО "Росатом Энергосбыт"
A9: Дифференцированные по зонам суток расчетного периода средневзвешенные нерегулируемые цены на электрическую энергию (мощность) на оптовом рынке и средневзвешенные нерегулируемые цены на электрическую энергию на оптовом рынке, определяемые для соответствующих зон суток, руб/МВтч
A10: Дифференцированная по зонам суток расчетного периода средневзвешенная нерегулируемая цена на электрическую энергию (мощность) на оптовом рынке по трем зонам суток:
A11: Ночная зона | B11: 1888.5
A12: Полупиковая зона | B12: 4203.86
A13: Пиковая зона | B13: 10012.98
A14: Дифференцированная по зонам суток расчетного периода средневзвешенная нерегулируемая цена на электрическую энергию (мощность) на оптовом рынке по двум зонам суток:
A15: Ночная зона | B15: 1888.5
A16: Дневная зона | B16: 6559.65
A17: Средневзвешенная нерегулируемая цена на электрическую энергию на оптовом рынке, определяемая для соответствующей зоны суток:
A18: Ночная зона | B18: 1888.5
A19: Полупиковая зона | B19: 2533.22
A20: Пиковая зона | B20: 2565.28
A21: Средневзвешенная нерегулируемая цена на электрическую энергию на оптовом рынке, определяемая для соответствующей зоны суток:
A22: Ночная зона | B22: 1888.5
A23: Дневная зона | B23: 2546.24
A24: Дифференцированная по зонам суток расчетного периода средневзвешенная нерегулируемая цена на электрическую энергию на оптовом рынке, определяемая по результатам конкурентного отбора ценовых заявок на сутки вперед для соответствующих зон суток, руб/МВтч
A25: Дифференцированная по зонам суток расчетного периода средневзвешенная нерегулируемая цена на электрическую энергию на оптовом рынке, определяемая по результатам конкурентного отбора ценовых заявок на сутки вперед по трем зонам суток:
A26: Ночная зона | B26: 1867.68
A27: Полупиковая зона | B27: 2512.39
A28: Пиковая зона | B28: 2544.46
A29: Дифференцированная по зонам суток расчетного периода средневзвешенная нерегулируемая цена на электрическую энергию на оптовом рынке, определяемая по результатам конкурентного отбора ценовых заявок на сутки вперед по двум зонам суток:
A30: Ночная зона | B30: 1867.68
A31: Дневная зона | B31: 2525.42
A32: Средневзвешенная нерегулируемая цена на мощность на оптовом рынке, руб/МВт | B32: 971764,66
A33: Средневзвешенная нерегулируемая цена на электрическую энергию на оптовом рынке, определяемая по результатам конкурентного отбора ценовых заявок на сутки вперед и конкурентного отбора заявок для балансирования системы, руб/МВтч | B33: 2314,44
A34: Средневзвешенная нерегулируемая цена на электрическую энергию на оптовом рынке, определяемая по результатам конкурентных отборов на сутки вперед, руб/МВтч | B34: 2293,62
A35: Средневзвешенная цена услуг по управлению изменением режима потребления электрической энергии,руб/МВт | B35: 995,96
A39: Объем электрической энергии, приобретенный участником оптового рынка за расчетный период по регулируемым ценам, МВтч | B39: 164659,992
A40: Объем электрической энергии, приобретенный участником оптового рынка за расчетный период по договору, в рамках которого осуществляется торговля электрической энергией и мощностью по регулируемым ценам (тарифам) на отдельных территориях, ранее относившихся к неценовым зонам, в целях обеспечения электрической энергией и мощностью потребителей, не относящихся к населению и (или) приравненным к нему категориям потребителей, МВтч | B40: 0
A41: Объем электрической энергии, приобретенный участником оптового рынка за расчетный период по результатам конкурентного отбора заявок на сутки вперед, МВтч | B41: 361368,692
A45: Приходящаяся на единицу электрической энергии величина разницы предварительных требований и обязательств по результатам конкурентного отбора ценовых заявок на сутки вперед, руб/МВтч | B45: -2,65
A46: Приходящаяся на единицу электрической энергии величина разницы предварительных требований и обязательств по результатам конкурентного отбора заявок для балансирования системы, руб/МВтч | B46: 463,92
A50: Расчетная стоимость услуг инфраструктурных организаций оптового рынка, руб. в том числе: | B50: 2813095,8
A51: расчетная стоимость услуги по оперативно-диспетчерскому управлению в электроэнергетике в части организации отбора исполнителей и оплаты услуг по обеспечению системной надежности, услуг по обеспечению вывода Единой энергетической системы России из аварийных ситуаций, услуг по формированию технологического резерва мощностей | B51: 1391598,57
A52: расчетная стоимость услуг коммерческого оператора по организации торговли на оптовом рынке, связанной с заключением и организацией исполнения сделок по обращению электрической энергии, мощности, иных объектов торговли, обращение которых допускается на оптовом рынке | B52: 1149262,15
A53: расчетная стоимость комплексной услуги ЦФР по расчету требований и обязательств участников оптового рынка и исполнителей услуг по управлению изменением режима потребления электрической энергии | B53: 272235,08
A57: дата | B57: час | C57: Дифференцированная по часам расчетного периода нерегулируемая цена на электрическую энергию на оптовом рынке, определяемая по результатам конкурентного отбора ценовых заявок на сутки вперед, руб/МВтч | D57: Дифференцированная по часам расчетного периода нерегулируемая цена на электрическую энергию на оптовом рынке, определяемая по результатам конкурентного отбора заявок для балансирования системы для объема превышения фактического потребления над плановым, руб/МВтч | E57: Дифференцированная по часам расчетного периода нерегулируемая цена на электрическую энергию на оптовом рынке, определяемая по результатам конкурентного отбора заявок для балансирования системы для объема превышения планового потребления над фактическим, руб/МВтч | F57: Дифференцированная по часам расчетного периода нерегулируемая цена на электрическую энергию на оптовом рынке, определяемая по результатам конкурентного отбора ценовых заявок на сутки вперед и конкурентного отбора заявок для балансирования системы, руб/МВтч
A58: 01.02.2026 | B58: 0 | C58: 1971.28 | D58: 62.01 | E58: 0 | F58: 1992.1
A59: 01.02.2026 | B59: 1 | C59: 1901.27 | D59: 4.22 | E59: 2.11 | F59: 1922.09
A60: 01.02.2026 | B60: 2 | C60: 1751.18 | D60: 42.65 | E60: 0 | F60: 1772
A61: 01.02.2026 | B61: 3 | C61: 1702.87 | D61: 66.22 | E61: 0 | F61: 1723.69
A62: 01.02.2026 | B62: 4 | C62: 1754.27 | D62: 149.19 | E62: 0 | F62: 1775.09
A63: 01.02.2026 | B63: 5 | C63: 1855.32 | D63: 254.24 | E63: 0 | F63: 1876.14
A64: 01.02.2026 | B64: 6 | C64: 1902.34 | D64: 186.28 | E64: 0 | F64: 1923.16
A65: 01.02.2026 | B65: 7 | C65: 2012.94 | D65: 213.79 | E65: 0 | F65: 2033.76
A66: 01.02.2026 | B66: 8 | C66: 2253.28 | D66: 184.78 | E66: 0 | F66: 2274.1
A67: 01.02.2026 | B67: 9 | C67: 2548.34 | D67: 170.58 | E67: 0 | F67: 2569.16
A68: 01.02.2026 | B68: 10 | C68: 2632.36 | D68: 158.91 | E68: 0 | F68: 2653.18
A69: 01.02.2026 | B69: 11 | C69: 2668.84 | D69: 172.46 | E69: 0 | F69: 2689.66
A70: 01.02.2026 | B70: 12 | C70: 2661.79 | D70: 165.56 | E70: 0 | F70: 2682.61
A71: 01.02.2026 | B71: 13 | C71: 2665.76 | D71: 175.48 | E71: 0 | F71: 2686.58
A72: 01.02.2026 | B72: 14 | C72: 2621.12 | D72: 244.69 | E72: 0 | F72: 2641.94
A73: 01.02.2026 | B73: 15 | C73: 2594.82 | D73: 276.65 | E73: 0 | F73: 2615.64
A74: 01.02.2026 | B74: 16 | C74: 2607.53 | D74: 353.28 | E74: 0 | F74: 2628.35
A75: 01.02.2026 | B75: 17 | C75: 2683.16 | D75: 637.41 | E75: 7.46 | F75: 2703.98
A76: 01.02.2026 | B76: 18 | C76: 2740.27 | D76: 328.51 | E76: 19.5 | F76: 2761.09
A77: 01.02.2026 | B77: 19 | C77: 2608.4 | D77: 406.94 | E77: 0 | F77: 2629.22
A78: 01.02.2026 | B78: 20 | C78: 2599 | D78: 338.96 | E78: 0 | F78: 2619.82
A79: 01.02.2026 | B79: 21 | C79: 2494.91 | D79: 270.52 | E79: 0 | F79: 2515.73
A80: 01.02.2026 | B80: 22 | C80: 2221.54 | D80: 0.26 | E80: 6.94 | F80: 2242.36
A81: 01.02.2026 | B81: 23 | C81: 2021.71 | D81: 0 | E81: 29.51 | F81: 2042.53
A82: 02.02.2026 | B82: 0 | C82: 1915.81 | D82: 0.02 | E82: 4.95 | F82: 1936.63
A83: 02.02.2026 | B83: 1 | C83: 1859.32 | D83: 11.27 | E83: 0.05 | F83: 1880.14
A84: 02.02.2026 | B84: 2 | C84: 1638.82 | D84: 0 | E84: 46.42 | F84: 1659.64
A85: 02.02.2026 | B85: 3 | C85: 1612.51 | D85: 0 | E85: 18.95 | F85: 1633.33
A86: 02.02.2026 | B86: 4 | C86: 1711.38 | D86: 174.42 | E86: 0 | F86: 1732.2
A87: 02.02.2026 | B87: 5 | C87: 1914.9 | D87: 297.64 | E87: 0 | F87: 1935.72
A88: 02.02.2026 | B88: 6 | C88: 2069.64 | D88: 141.26 | E88: 0.83 | F88: 2090.46
A89: 02.02.2026 | B89: 7 | C89: 2297.42 | D89: 387.45 | E89: 0 | F89: 2318.24
A90: 02.02.2026 | B90: 8 | C90: 2318.68 | D90: 141.41 | E90: 1.67 | F90: 2339.5
A91: 02.02.2026 | B91: 9 | C91: 2345.39 | D91: 382.11 | E91: 29.05 | F91: 2366.21
A92: 02.02.2026 | B92: 10 | C92: 2447.8 | D92: 291.72 | E92: 37.66 | F92: 2468.62
A93: 02.02.2026 | B93: 11 | C93: 2537.93 | D93: 287.09 | E93: 33.85 | F93: 2558.75
A94: 02.02.2026 | B94: 12 | C94: 2517.23 | D94: 279.59 | E94: 28.16 | F94: 2538.05
A95: 02.02.2026 | B95: 13 | C95: 2531.67 | D95: 290.59 | E95: 13.19 | F95: 2552.49
A96: 02.02.2026 | B96: 14 | C96: 2375.36 | D96: 417.85 | E96: 8.32 | F96: 2396.18
A97: 02.02.2026 | B97: 15 | C97: 2350.71 | D97: 493.63 | E97: 0 | F97: 2371.53
A98: 02.02.2026 | B98: 16 | C98: 2337.69 | D98: 531.86 | E98: 0 | F98: 2358.51
A99: 02.02.2026 | B99: 17 | C99: 2345.49 | D99: 598.91 | E99: 0 | F99: 2366.31
A100: 02.02.2026 | B100: 18 | C100: 2363.52 | D100: 468.24 | E100: 0 | F100: 2384.34
A101: 02.02.2026 | B101: 19 | C101: 2361.89 | D101: 285.03 | E101: 0 | F101: 2382.71
A102: 02.02.2026 | B102: 20 | C102: 2324.21 | D102: 42.15 | E102: 0.56 | F102: 2345.03
A103: 02.02.2026 | B103: 21 | C103: 2265.8 | D103: 0 | E103: 276.99 | F103: 2286.62
A104: 02.02.2026 | B104: 22 | C104: 2207.46 | D104: 0 | E104: 27.81 | F104: 2228.28
A105: 02.02.2026 | B105: 23 | C105: 1918.43 | D105: 17.74 | E105: 0 | F105: 1939.25
A106: 03.02.2026 | B106: 0 | C106: 1910.25 | D106: 3.5 | E106: 0.87 | F106: 1931.07
A107: 03.02.2026 | B107: 1 | C107: 1797.3 | D107: 85.53 | E107: 0 | F107: 1818.12
A108: 03.02.2026 | B108: 2 | C108: 1590.16 | D108: 201.49 | E108: 0 | F108: 1610.98
A109: 03.02.2026 | B109: 3 | C109: 1558.88 | D109: 211.01 | E109: 0 | F109: 1579.7
A110: 03.02.2026 | B110: 4 | C110: 1594.36 | D110: 298.51 | E110: 0 | F110: 1615.18
A111: 03.02.2026 | B111: 5 | C111: 1913.67 | D111: 328.08 | E111: 0 | F111: 1934.49
A112: 03.02.2026 | B112: 6 | C112: 2018.35 | D112: 203.61 | E112: 1.06 | F112: 2039.17
A113: 03.02.2026 | B113: 7 | C113: 2245.75 | D113: 347.25 | E113: 0 | F113: 2266.57
A114: 03.02.2026 | B114: 8 | C114: 2318.16 | D114: 394.18 | E114: 0 | F114: 2338.98
A115: 03.02.2026 | B115: 9 | C115: 2370.25 | D115: 784.71 | E115: 0 | F115: 2391.07
A116: 03.02.2026 | B116: 10 | C116: 2496.46 | D116: 386.18 | E116: 5.94 | F116: 2517.28
A117: 03.02.2026 | B117: 11 | C117: 2610.87 | D117: 69.04 | E117: 12.98 | F117: 2631.69
A118: 03.02.2026 | B118: 12 | C118: 2513.2 | D118: 207.16 | E118: 0 | F118: 2534.02
A119: 03.02.2026 | B119: 13 | C119: 2522.54 | D119: 463.77 | E119: 5.49 | F119: 2543.36
A120: 03.02.2026 | B120: 14 | C120: 2501.94 | D120: 366.07 | E120: 0 | F120: 2522.76
A121: 03.02.2026 | B121: 15 | C121: 2447.1 | D121: 1242.92 | E121: 0 | F121: 2467.92
A122: 03.02.2026 | B122: 16 | C122: 2425.13 | D122: 2831.65 | E122: 0 | F122: 2445.95
A123: 03.02.2026 | B123: 17 | C123: 2441.1 | D123: 1181.19 | E123: 0 | F123: 2461.92
A124: 03.02.2026 | B124: 18 | C124: 2495.7 | D124: 334.79 | E124: 16.97 | F124: 2516.52
A125: 03.02.2026 | B125: 19 | C125: 2503.46 | D125: 301.3 | E125: 15.17 | F125: 2524.28
A126: 03.02.2026 | B126: 20 | C126: 2405.91 | D126: 361.05 | E126: 15.87 | F126: 2426.73
A127: 03.02.2026 | B127: 21 | C127: 2317.09 | D127: 194.55 | E127: 0 | F127: 2337.91
A128: 03.02.2026 | B128: 22 | C128: 2236.71 | D128: 36.35 | E128: 0 | F128: 2257.53
A129: 03.02.2026 | B129: 23 | C129: 2015.79 | D129: 68.36 | E129: 0 | F129: 2036.61
A130: 04.02.2026 | B130: 0 | C130: 1899.32 | D130: 0 | E130: 25.86 | F130: 1920.14
A131: 04.02.2026 | B131: 1 | C131: 1679.15 | D131: 94.95 | E131: 0 | F131: 1699.97
A132: 04.02.2026 | B132: 2 | C132: 1601.42 | D132: 183.19 | E132: 0 | F132: 1622.24
A133: 04.02.2026 | B133: 3 | C133: 1592.13 | D133: 177.94 | E133: 0 | F133: 1612.95
A134: 04.02.2026 | B134: 4 | C134: 1695.24 | D134: 246.95 | E134: 0 | F134: 1716.06
A135: 04.02.2026 | B135: 5 | C135: 1935.33 | D135: 290.98 | E135: 0 | F135: 1956.15
A136: 04.02.2026 | B136: 6 | C136: 2073.45 | D136: 154.99 | E136: 31.88 | F136: 2094.27
A137: 04.02.2026 | B137: 7 | C137: 2274.44 | D137: 294.69 | E137: 0 | F137: 2295.26
A138: 04.02.2026 | B138: 8 | C138: 2497.29 | D138: 449.11 | E138: 2.82 | F138: 2518.11
A139: 04.02.2026 | B139: 9 | C139: 2558.01 | D139: 1502.57 | E139: 0 | F139: 2578.83
A140: 04.02.2026 | B140: 10 | C140: 2573.02 | D140: 1034.26 | E140: 0 | F140: 2593.84
A141: 04.02.2026 | B141: 11 | C141: 2638.23 | D141: 205.42 | E141: 0 | F141: 2659.05
A142: 04.02.2026 | B142: 12 | C142: 2595.88 | D142: 236.27 | E142: 0 | F142: 2616.7
A143: 04.02.2026 | B143: 13 | C143: 2604.13 | D143: 245.58 | E143: 0 | F143: 2624.95
A144: 04.02.2026 | B144: 14 | C144: 2600.81 | D144: 226.12 | E144: 0 | F144: 2621.63
A145: 04.02.2026 | B145: 15 | C145: 2543.15 | D145: 175.87 | E145: 0 | F145: 2563.97
A146: 04.02.2026 | B146: 16 | C146: 2523.67 | D146: 52.17 | E146: 0 | F146: 2544.49
A147: 04.02.2026 | B147: 17 | C147: 2532 | D147: 47.65 | E147: 62.9 | F147: 2552.82
A148: 04.02.2026 | B148: 18 | C148: 2589.48 | D148: 2.44 | E148: 45.57 | F148: 2610.3
A149: 04.02.2026 | B149: 19 | C149: 2590.72 | D149: 188.93 | E149: 0 | F149: 2611.54
A150: 04.02.2026 | B150: 20 | C150: 2526.91 | D150: 0 | E150: 90.48 | F150: 2547.73
A151: 04.02.2026 | B151: 21 | C151: 2328.06 | D151: 0 | E151: 27.5 | F151: 2348.88
A152: 04.02.2026 | B152: 22 | C152: 2240.19 | D152: 0 | E152: 370.86 | F152: 2261.01
A153: 04.02.2026 | B153: 23 | C153: 2028.02 | D153: 0 | E153: 253.34 | F153: 2048.84
A154: 05.02.2026 | B154: 0 | C154: 1943.4 | D154: 0 | E154: 44.92 | F154: 1964.22
A155: 05.02.2026 | B155: 1 | C155: 1863.06 | D155: 39.31 | E155: 0 | F155: 1883.88
A156: 05.02.2026 | B156: 2 | C156: 1635.11 | D156: 237.29 | E156: 0 | F156: 1655.93
A157: 05.02.2026 | B157: 3 | C157: 1602.2 | D157: 299.31 | E157: 0 | F157: 1623.02
A158: 05.02.2026 | B158: 4 | C158: 1743.3 | D158: 218.97 | E158: 0 | F158: 1764.12
A159: 05.02.2026 | B159: 5 | C159: 1944.89 | D159: 366.22 | E159: 0 | F159: 1965.71
A160: 05.02.2026 | B160: 6 | C160: 2214.15 | D160: 80.55 | E160: 47.36 | F160: 2234.97
A161: 05.02.2026 | B161: 7 | C161: 2360.75 | D161: 230.33 | E161: 0 | F161: 2381.57
A162: 05.02.2026 | B162: 8 | C162: 2527.73 | D162: 301.27 | E162: 0 | F162: 2548.55
A163: 05.02.2026 | B163: 9 | C163: 2580.64 | D163: 487.76 | E163: 0 | F163: 2601.46
A164: 05.02.2026 | B164: 10 | C164: 2593.06 | D164: 1031.56 | E164: 0 | F164: 2613.88
A165: 05.02.2026 | B165: 11 | C165: 2664.81 | D165: 277.17 | E165: 0 | F165: 2685.63
A166: 05.02.2026 | B166: 12 | C166: 2592.29 | D166: 293.56 | E166: 0 | F166: 2613.11
A167: 05.02.2026 | B167: 13 | C167: 2619.06 | D167: 265.14 | E167: 0 | F167: 2639.88
A168: 05.02.2026 | B168: 14 | C168: 2601.09 | D168: 206.4 | E168: 0 | F168: 2621.91
A169: 05.02.2026 | B169: 15 | C169: 2566.09 | D169: 222.97 | E169: 0 | F169: 2586.91
A170: 05.02.2026 | B170: 16 | C170: 2535.71 | D170: 198.24 | E170: 0 | F170: 2556.53
A171: 05.02.2026 | B171: 17 | C171: 2554.78 | D171: 186.97 | E171: 28.68 | F171: 2575.6
A172: 05.02.2026 | B172: 18 | C172: 2606.64 | D172: 42.77 | E172: 68.71 | F172: 2627.46
A173: 05.02.2026 | B173: 19 | C173: 2605.39 | D173: 0.01 | E173: 21.14 | F173: 2626.21
A174: 05.02.2026 | B174: 20 | C174: 2546.43 | D174: 0 | E174: 135.86 | F174: 2567.25
A175: 05.02.2026 | B175: 21 | C175: 2436.53 | D175: 0 | E175: 140.55 | F175: 2457.35
A176: 05.02.2026 | B176: 22 | C176: 2316.4 | D176: 0 | E176: 745.33 | F176: 2337.22
A177: 05.02.2026 | B177: 23 | C177: 2206.03 | D177: 0 | E177: 881.35 | F177: 2226.85
A178: 06.02.2026 | B178: 0 | C178: 1936.79 | D178: 0 | E178: 64.41 | F178: 1957.61
A179: 06.02.2026 | B179: 1 | C179: 1829.71 | D179: 42.87 | E179: 0 | F179: 1850.53
A180: 06.02.2026 | B180: 2 | C180: 1616.9 | D180: 93.43 | E180: 0 | F180: 1637.72
A181: 06.02.2026 | B181: 3 | C181: 1584.63 | D181: 232.51 | E181: 0 | F181: 1605.45
A182: 06.02.2026 | B182: 4 | C182: 1696.61 | D182: 227.47 | E182: 0 | F182: 1717.43
A183: 06.02.2026 | B183: 5 | C183: 1923.18 | D183: 32.98 | E183: 578.82 | F183: 1944
A184: 06.02.2026 | B184: 6 | C184: 2221.29 | D184: 27.93 | E184: 659.42 | F184: 2242.11
A185: 06.02.2026 | B185: 7 | C185: 2396.58 | D185: 353.65 | E185: 0 | F185: 2417.4
A186: 06.02.2026 | B186: 8 | C186: 2548.54 | D186: 277.58 | E186: 0 | F186: 2569.36
A187: 06.02.2026 | B187: 9 | C187: 2558.85 | D187: 281.8 | E187: 10.94 | F187: 2579.67
A188: 06.02.2026 | B188: 10 | C188: 2571.64 | D188: 303.61 | E188: 25.22 | F188: 2592.46
A189: 06.02.2026 | B189: 11 | C189: 2678.02 | D189: 156.69 | E189: 0 | F189: 2698.84
A190: 06.02.2026 | B190: 12 | C190: 2638.47 | D190: 191.19 | E190: 0 | F190: 2659.29
A191: 06.02.2026 | B191: 13 | C191: 2635.27 | D191: 190.96 | E191: 0 | F191: 2656.09
A192: 06.02.2026 | B192: 14 | C192: 2622.41 | D192: 191.74 | E192: 0 | F192: 2643.23
A193: 06.02.2026 | B193: 15 | C193: 2578.01 | D193: 192.1 | E193: 0 | F193: 2598.83
A194: 06.02.2026 | B194: 16 | C194: 2550.58 | D194: 241.67 | E194: 0 | F194: 2571.4
A195: 06.02.2026 | B195: 17 | C195: 2541.42 | D195: 232.94 | E195: 12.34 | F195: 2562.24
A196: 06.02.2026 | B196: 18 | C196: 2600.05 | D196: 170.28 | E196: 18.75 | F196: 2620.87
A197: 06.02.2026 | B197: 19 | C197: 2598.78 | D197: 284.7 | E197: 9.07 | F197: 2619.6
A198: 06.02.2026 | B198: 20 | C198: 2578.56 | D198: 236.92 | E198: 0 | F198: 2599.38
A199: 06.02.2026 | B199: 21 | C199: 2487.41 | D199: 4.5 | E199: 48.07 | F199: 2508.23
A200: 06.02.2026 | B200: 22 | C200: 2354.48 | D200: 0 | E200: 102.49 | F200: 2375.3
A201: 06.02.2026 | B201: 23 | C201: 2161.07 | D201: 0 | E201: 218.46 | F201: 2181.89
A202: 07.02.2026 | B202: 0 | C202: 1927.51 | D202: 10.38 | E202: 1.33 | F202: 1948.33
A203: 07.02.2026 | B203: 1 | C203: 1878.53 | D203: 32.26 | E203: 0 | F203: 1899.35
A204: 07.02.2026 | B204: 2 | C204: 1717.76 | D204: 185.35 | E204: 0 | F204: 1738.58
A205: 07.02.2026 | B205: 3 | C205: 1650.24 | D205: 238.41 | E205: 0 | F205: 1671.06
A206: 07.02.2026 | B206: 4 | C206: 1694.54 | D206: 225.66 | E206: 0 | F206: 1715.36
A207: 07.02.2026 | B207: 5 | C207: 1860.04 | D207: 344.92 | E207: 0 | F207: 1880.86
A208: 07.02.2026 | B208: 6 | C208: 1904 | D208: 287.66 | E208: 0 | F208: 1924.82
A209: 07.02.2026 | B209: 7 | C209: 2215.54 | D209: 109.44 | E209: 0 | F209: 2236.36
A210: 07.02.2026 | B210: 8 | C210: 2397.41 | D210: 324.58 | E210: 0 | F210: 2418.23
A211: 07.02.2026 | B211: 9 | C211: 2599.53 | D211: 298.32 | E211: 0 | F211: 2620.35
A212: 07.02.2026 | B212: 10 | C212: 2680.9 | D212: 279.4 | E212: 0 | F212: 2701.72
A213: 07.02.2026 | B213: 11 | C213: 2717.91 | D213: 312.87 | E213: 0 | F213: 2738.73
A214: 07.02.2026 | B214: 12 | C214: 2707.31 | D214: 276.36 | E214: 0 | F214: 2728.13
A215: 07.02.2026 | B215: 13 | C215: 2692.57 | D215: 339.55 | E215: 0 | F215: 2713.39
A216: 07.02.2026 | B216: 14 | C216: 2642.52 | D216: 786.3 | E216: 0 | F216: 2663.34
... 587 more rows

Sheet Часы пик
A1: Ежемесячный отчет по часам пиковой нагрузки для субъектов Российской Федерации
A3: Участник: | B3: АО "Росатом Энергосбыт"
A4: Субъект РФ: | B4: Тверская область
A5: Отчетный период: | B5: =мощность!H1 -> 2026-02-01
A6: Код(ы) ГТП: | B6: PTVERENE
A8: Дата | B8: Час максимального совокупного потребления электроэнергии в субъекте Российской Федерации
A9: 1 | B9: 2
A10: 02.02.2026 | B10: 11
A11: 03.02.2026 | B11: 11
A12: 04.02.2026 | B12: 10
A13: 05.02.2026 | B13: 10
A14: 06.02.2026 | B14: 10
A15: 09.02.2026 | B15: 11
A16: 10.02.2026 | B16: 10
A17: 11.02.2026 | B17: 11
A18: 12.02.2026 | B18: 10
A19: 13.02.2026 | B19: 19
A20: 16.02.2026 | B20: 12
A21: 17.02.2026 | B21: 10
A22: 18.02.2026 | B22: 11
A23: 19.02.2026 | B23: 11
A24: 20.02.2026 | B24: 11
A25: 24.02.2026 | B25: 10
A26: 25.02.2026 | B26: 20
A27: 26.02.2026 | B27: 10
A28: 27.02.2026 | B28: 10
